{"text_format":"1","workbook":"xlsx","n_sheets":9,"sheets":["Prompt","C100","C200","C300","C400","C500","C600","Enviar","Carreras"],"not_rendered":{"charts":0,"images":6,"macros":1,"external_links":0,"defined_names":3,"comments":1,"pivot_tables":0},"unopened":[],"bounds":{"document_bytes":16777216,"sheet_cells":100000,"rows_first":2000,"rows_last":500,"rows_between":2000,"halvings":0,"cell_chars":16384,"cell_head_chars":4096},"cells_cut":0,"cells_raw":0,"read":"whole","date_system":"1900"}

{"sheet":"Prompt","index":0,"n_rows":79,"n_cols":4,"rows_kept":79,"cut":false,"hidden":true,"merged":[[1,3,2,6],[4,1,6,8],[43,1,44,8],[78,1,79,8],[9,1,10,8]]}
[]
[null,null,null,"¡ATENCIÓN!"]
[]
[]
[null,"Para hacer uso de las funcionalidades de esta Cédula Electrónica debe habilitar macros"]
[]
[]
[]
[]
[null,"Si utiliza Excel 2013 siga el siguiente procedimiento:"]
[]
[]
[]
[]
[]
[]
[]
[]
[]
[]
[]
[]
[]
[]
[]
[]
[]
[]
[]
[]
[]
[]
[]
[]
[]
[]
[]
[]
[]
[]
[]
[]
[]
[null,"Si utiliza Excel 2007 siga el siguiente procedimiento:"]
[]
[]
[]
[]
[]
[]
[]
[]
[]
[]
[]
[]
[]
[]
[]
[]
[]
[]
[]
[]
[]
[]
[]
[]
[]
[]
[]
[]
[]
[]
[]
[]
[]
[]
[null,"Si utiliza Excel 2000, 2002, 2003 siga el siguiente procedimiento:"]

{"sheet":"C100","index":1,"n_rows":251,"n_cols":19,"rows_kept":251,"cut":false,"hidden":false,"merged":[[137,12,138,12],[118,10,118,14],[119,10,119,14],[120,10,120,14],[121,10,121,14],[122,10,122,14],[1,6,1,13],[2,6,2,13],[3,6,3,13],[14,7,14,16],[12,7,12,8],[2,15,4,16],[1,15,1,16],[9,3,9,17],[12,15,12,16],[46,13,46,14],[42,13,42,14],[45,13,45,14],[55,13,55,14],[54,13,54,14],[47,13,47,14],[51,13,51,14],[52,13,52,14],[48,13,48,14],[49,13,49,14],[50,13,50,14],[53,13,53,14],[37,13,37,14],[38,13,38,14],[20,11,20,14],[43,13,43,14],[44,13,44,14],[40,13,40,14],[30,3,30,17],[34,3,35,3],[34,6,35,10],[34,11,35,11],[34,12,35,12],[39,13,39,14],[34,4,35,4],[34,13,35,14],[36,13,36,14],[41,13,41,14],[16,7,16,10],[16,13,16,16],[21,12,21,13],[23,12,23,13],[34,15,34,17],[57,13,57,14],[58,13,58,14],[56,13,56,14],[59,13,59,14],[108,7,108,10],[90,14,90,16],[84,10,84,16],[90,10,90,11],[82,10,82,16],[60,13,60,14],[61,13,61,14],[70,13,70,14],[68,13,68,14],[71,13,71,14],[69,13,69,14],[67,13,67,14],[64,13,64,14],[66,13,66,14],[62,13,62,14],[65,13,65,14],[63,13,63,14]]}
[]
[null,null,null,null,null,null,"CENSO EDUCATIVO 2025",null,null,null,null,null,null,null,null,"CÉDULA"]
[null,null,null,null,null,null,"EDUCACIÓN SUPERIOR DE ",null,null,null,null,null,null,null,null,"7A"]
[null,null,null,null,null,null,"FORMACIÓN ARTÍSTICA (ESFA)"]
[null,null,null,"Versión :","GA - 1.0"]
[null,null,null,"INSTRUCCIONES DEL FORMATO ELECTRÓNICO "]
[]
[]
[]
[null,null,null,"IDENTIFICACIÓN DEL SERVICIO EDUCATIVO"]
[]
[]
[null,null,null,"1. CÓDIGO MODULAR :",null,null,null,null,null,null,null,null,null,"2. CÓDIGO DE LOCAL EDUCATIVO :  "]
[]
[null,null,null,"3. NOMBRE DEL SERVICIO/NIVEL:",null,null,null,""]
[]
[null,null,null,"4. DISTRITO DEL SERVICIO :",null,null,null,"",null,null,null,null,"LOCALIDAD :"]
[]
[]
[null,null,null,"5. TIPO Y NÚMERO DE DOCUMENTO DE AUTORIZACIÓN, CREACIÓN Y/O REVALIDACIÓN DE FUNCIONAMIENTO",null,null,null,null,null,null,null,null,null,null,null,null,"01: RD"]
[null,null,null,null,null,null,null,"Tipo Documento",null,"Número de Documento",null,"Fecha",null,null,null,null,"02: RM"]
[null,null,null,"Autorización, Creación Institucional",null,null,null,null,null,null,null,null,null,null,null,null,"03: DS"]
[null,null,null,null,null,null,null,null,null,null,null,null,null,null,null,null,"04: OFICIO"]
[null,null,null,"Revalidación",null,null,null,null,null,null,null,null,null,null,null,null,"05: RDR"]
[null,null,null,null,null,null,null,null,null,null,null,null,null,null,null,null,"06: OTRO"]
[]
[]
[null,null,null,"Gestión de la Institución Educativa : ",null,null,null,null,null," 1 - Pública de gestión directa",null,null," 2 - Pública de gestión privada",null,null," 3 - Privada",null,{"$f":"CONCATENATE(TRIM(UPPER(I28)),TRIM(UPPER(L28)),TRIM(UPPER(O28)))","v":""}]
[]
[]
[null,null,null,"100. CARACTERÍSTICAS DEL SERVICIO EDUCATIVO (Para II.EE. Públicas y Privadas)"]
[]
[null,null,null,null,"101. CARRERAS AUTORIZADAS QUE OFRECE LA ESCUELA"]
[]
["TOTAL",{"$f":"SUM(A37:B72)","v":0},null,"Nº","CÓDIGO",null,"DENOMINACIÓN",null,null,null,null,null,"Nº de\nResolución","Fecha de\nResolución",null," Duración de la carrera"]
[null,null,null,null,null,null,null,null,null,null,null,null,null,null,null,"3 años","4 años","5 años"]
[{"$f":"IF(OR(P37<>\"\",Q37<>\"\",R37<>\"\"),1,0)","v":0},{"$f":"IF(AND(F37<>\"\",M37<>\"\",N37<>\"\"),1,0)","v":0},{"$f":"IF(AND(G37<>\"\",L37<>\"\",N37<>\"\"),1,0)","v":0},"01",null,{"$f":"IF(ISERROR(VLOOKUP($E37,Carrera,2,FALSE)),\"\",VLOOKUP($E37,Carrera,2,FALSE))","v":""},null,null,null,null,null," "]
[{"$f":"IF(OR(P38<>\"\",Q38<>\"\",R38<>\"\"),1,0)","v":0},{"$f":"IF(AND(F38<>\"\",M38<>\"\",N38<>\"\"),1,0)","v":0},0,"02",null,{"$f":"IF(ISERROR(VLOOKUP($E38,Carrera,2,FALSE)),\"\",VLOOKUP($E38,Carrera,2,FALSE))","v":""},null,null,null,null,null," "]
[0,0,0,"03",null,{"$f":"IF(ISERROR(VLOOKUP($E39,Carrera,2,FALSE)),\"\",VLOOKUP($E39,Carrera,2,FALSE))","v":""},null,null,null,null,null," "]
[0,0,0,"04",null,"",null,null,null,null,null," "]
[0,0,0,"05",null,"",null,null,null,null,null," "]
[0,0,0,"06",null,"",null,null,null,null,null," "]
[0,0,0,"07",null,"",null,null,null,null,null," "]
[0,0,0,"08",null,"",null,null,null,null,null," "]
[0,0,0,"09",null,"",null,null,null,null,null," "]
[0,0,0,10,null,"",null,null,null,null,null," "]
[0,0,0,11,null,"",null,null,null,null,null," "]
[0,0,0,12,null,"",null,null,null,null,null," "]
[0,0,0,13,null,"",null,null,null,null,null," "]
[0,0,0,14,null,"",null,null,null,null,null," "]
[0,0,null,15,null,"",null,null,null,null,null," "]
[0,0,null,16,null,"",null,null,null,null,null," "]
[0,0,null,17,null,"",null,null,null,null,null," "]
[0,0,null,18,null,"",null,null,null,null,null," "]
[0,0,null,19,null,"",null,null,null,null,null," "]
[0,0,null,20,null,"",null,null,null,null,null," "]
[0,0,null,21,null,"",null,null,null,null,null," "]
[0,0,null,22,null,"",null,null,null,null,null," "]
[0,0,null,23,null,"",null,null,null,null,null," "]
[0,0,null,24,null,"",null,null,null,null,null," "]
[0,0,null,25,null,"",null,null,null,null,null," "]
[0,0,null,26,null,"",null,null,null,null,null," "]
[0,0,null,27,null,"",null,null,null,null,null," "]
[0,0,null,28,null,"",null,null,null,null,null," "]
[0,0,null,29,null,"",null,null,null,null,null," "]
[0,0,null,30,null,"",null,null,null,null,null," "]
[0,0,null,31,null,"",null,null,null,null,null," "]
[0,0,1,32,null,"",null,null,null,null,null," ",null,null,null,null,null,null,""]
[0,0,2,33,null,"",null,null,null,null,null," "]
[0,0,3,34,null,"",null,null,null,null,null," "]
[0,0,4,35,null,"",null,null,null,null,null," "]
[0,0,5,36,null,"",null,null,null,null,null," "]
[null,null,null,"Utilice los códigos de la tabla de Carreras disponible al final de esta cédula"]
[null,null,null,"102. EN EL PRESENTE AÑO 2023, ¿BAJO QUÉ MODALIDAD SE REALIZAN LAS CLASES EN ESTE INSTITUTO O ESCUELA?"]
[]
[null,null,null,null,null,null,"Presencial",null,null,"Semi presencial",null,null,"Virtual / A distancia",null,null,null,null,{"$f":"CONCATENATE(F76,I76,L76)","v":""}]
[]
[]
[null,null,null,null,"103. DATOS SOBRE PROMOTORÍA (Sólo para IST Privados)"]
[null,null,null,null,"103.1 TIPO DE PERSONA :"]
[null,null,null,null,"(Marque con un aspa “X” y registre la información solicitada según corresponda)."]
[]
[null,null,null,null,"Natural",null,"DNI",null,null,"Nombre"]
[]
[null,null,null,null,"Jurídica",null,"RUC",null,null,"Razon social"]
[]
[]
[null,null,null,null,"103.2 FORMA DE CONSTITUCIÓN (SOLO PARA PERSONA JURÍDICA):",null,null,null,null,null,"Marque con un aspa “X” y registre la información solicitada según corresponda"]
[]
[null,null,null,null,"Sociedad"]
[null,null,null,null,null,{"$f":"CONCATENATE(F90,F92)","v":""},null,"Nº de Partida registral",null,null,null,null,"Nº de Asiento registral"]
[null,null,null,null,"Asociación"]
[]
[]
[]
[null,null,null,null,"104. ¿CUÁNTOS LOCALES EDUCATIVOS TIENE LA ESCUELA?"]
[]
[null,null,null,null,"105. ¿EL SERVICIO/NIVEL EDUCATIVO PERTENECE A ALGUNA RED CON ESCUELAS SUPERIORES DE FORMACIÓN ARTISTICA - ESFA?"]
[]
[null,null,null,null,"Sí",null,null,"No",null,null,null,"Pase a la sección 200"]
[]
[null,null,null,null,"106. ¿EN QUÉ ACTIVIDADES HA PARTICIPADO EL SERVICIO/NIVEL EDUCATIVO COMO MIEMBRO DE ESTA RED?"]
[]
[null,null,null,null,null,"","Talleres / capacitaciones de arte orientados a docentes"]
[null,null,null,null,null,"","Talleres de arte dirigidos a alumnos"]
[null,null,null,null,null,"","Presentaciones artísticas de las ESFA en la institución educativa"]
[null,null,null,null,null,"","Festivales de arte en las instituciones educativas que pertenecen a la misma red"]
[null,null,null,null,null,"","Presentación de carreras de artísticas a cargo de docentes reconocidos de las ESFA."]
[null,null,null,null,null,"","Otro"]
[]
[]
[null,null,null,null,"107. ¿EL INSTITUTO O ESCUELA COMPARTE LOCAL EDUCATIVO CON ALGUNA UNIVERSIDAD?"]
[]
[null,null,null,null,"Sí",null,null,"No"]
[]
[]
[null,null,null,null,null,null,null,null,"¿Qué universidades?"]
[null,null,null,null,null,null,null,{"$f":"SUM(H119:H123)","v":0},"Seleccione una o más universidades según corresponda"]
[null,null,null,null,null,null,null,{"$f":"IF(K119<>\"\",1,0)","v":0},"Universidad 1"]
[null,null,null,null,null,null,null,{"$f":"IF(K120<>\"\",1,0)","v":0},"Universidad 2"]
[null,null,null,null,null,null,null,{"$f":"IF(K121<>\"\",1,0)","v":0},"Universidad 3"]
[null,null,null,null,null,null,null,{"$f":"IF(K122<>\"\",1,0)","v":0},"Universidad 4"]
[null,null,null,null,null,null,null,{"$f":"IF(K123<>\"\",1,0)","v":0},"Universidad 5"]
[]
[]
[null,null,null,"108. DURANTE EL ÚLTIMO MES, EN PROMEDIO, ¿CUÁNTAS HORAS SEMANALES,",null,null,null,null,null,null,"110. ¿CUENTA CON ESTUDIANTES BENEFICIADOS CON BECAS DE ESTUDIOS,"]
[null,null,null,"ADICIONALES A SU JORNADA LABORAL, USTED CONSIDERA QUE HA",null,null,null,null,null,null,"AL AMPARO DE LA LEY Nº 23585, “ESTUDIANTES DE PLANTELES Y"]
[null,null,null,"DESTINADO PARA REALIZAR ACTIVIDADES RELACIONADAS A SU TRABAJO",null,null,null,null,null,null,"UNIVERSIDADES PARTICULARES QUE PIERDAN A SUS PADRES O"]
[null,null,null,"COMO DIRECTOR?",null,null,null,null,null,null,"TUTORES TIENEN DERECHO A BECA?"]
[]
[null,null,null,null,"Horas Semanales adicionales"]
[null,null,null,null,null,null,null,null,null,null,"Sí  ",null,null,"No  "]
[]
[null,null,null,"109. ¿QUÉ FACTORES LE AYUDARÍAN A MEJORAR SU INNOVACIÓN O PRÁCTICA"]
[null,null,null,null,"PEDAGÓGICA?"]
[null,null,null,null,"Marque con una “X”, una o más opciones",null,null,null,null,null,null,null,"Cantidad de beneficiarios por año"]
[]
[null,null,null,null,null,null,"Acceso a tecnología/internet",null,null,null,null,null,"Año","Cantidad de"]
[null,null,null,null,null,null,"Acceso a material pedagógico",null,null,null,null,null,null,"beneficiarios"]
[null,null,null,null,null,null,"Tiempo para reflexionar y sistematizar la práctica",null,null,null,null,null,"2024"]
[null,null,null,null,null,null,"Asistencia técnica o asesoría personalizada"]
[null,null,null,null,null,null,"Talleres de intercambio de experiencia"]
[null,null,null,null,null,null,"Becas de estudio"]
[null,null,null,null,null,null,"Pasantias"]
[null,null,null,null,null,null,"Fuentes de financiamiento"]
[]
[]
[]
[]
[]
[]
["001: Universidad Mayor de San Marcos"]
["002: Universidad San Cristóbal de Huamanga"]
["003: Universidad San Antonio Abad del Cusco"]
["004: Universidad de Trujillo"]
["005: Universidad San Agustín"]
["006: Universidad Ciro Alegría"]
["007: Universidad de Ingeniería"]
["008: Universidad Agraria La Molina"]
["009: Universidad San Luis Gonzaga"]
["010: Universidad del Centro del Perú"]
["011: Universidad de la Amazonía Peruana"]
["012: Universidad del Altiplano"]
["013: Universidad de Piura"]
["014: Universidad de Cajamarca"]
["015: Universidad Federico Villarreal"]
["016: Universidad Agraria de la Selva"]
["017: Universidad Hermilio Valdizán"]
["018: Universidad de Educación Enrique Guzmán y Valle"]
["019: Universidad Daniel Alcides Carrión"]
["020: Universidad del Callao"]
["021: Universidad José Faustino Sánchez Carrión"]
["022: Universidad Pedro Ruíz Gallo"]
["023: Universidad Jorge Basadre Grohmann"]
["024: Universidad Santiago Antúnez de Mayolo"]
["025: Universidad de San Martín"]
["026: Universidad de Ucayali"]
["027: Universidad de Tumbes"]
["028: Universidad del Santa"]
["029: Universidad de Huancavelica"]
["030: Universidad Amazónica de Madre de Dios"]
["031: Universidad Toribio Rodríguez de Mendoza de Amazonas"]
["032: Universidad Micaela Bastidas de Apurímac"]
["033: Universidad Intercultural de la Amazonía"]
["034: Universidad Tecnológica de Lima Sur"]
["035: Universidad José María Arguedas"]
["036: Universidad de Moquegua"]
["037: Universidad de Juliaca"]
["038: Universidad de Jaén"]
["039: Universidad de Frontera"]
["040: Universidad Autónoma de Chota"]
["041: Universidad de Barranca"]
["042: Universidad de Cañete"]
["043: Universidad Intercultural Fabiola Salazar Leguía de Bagua"]
["044: Universidad Intercultural de la Selva Central Juan Santos Atahualpa"]
["045: Universidad Intercultural de Quillabamba"]
["046: Universidad Autónoma de Alto Amazonas"]
["047: Universidad Autónoma Altoandina de Tarma"]
["048: Universidad Autónoma de Huanta"]
["049: Universidad Autónoma de Tayacaja Daniel Hernández Morillo"]
["050: Pontificia Universidad Católica del Perú"]
["051: Universidad Peruana Cayetano Heredia"]
["052: Universidad Católica de Santa María"]
["053: Universidad del Pacífico"]
["054: Universidad de Lima"]
["055: Universidad de San Martín de Porres"]
["056: Universidad Femenina del Sagrado Corazón"]
["057: Universidad de Piura"]
["058: Universidad Ricardo Palma"]
["059: Universidad Peruana Los Andes"]
["060: Universidad Peruana Unión"]
["061: Universidad Andina del Cusco"]
["062: Universidad Tecnológica de los Andes"]
["063: Universidad Privada de Tacna"]
["064: Universidad Privada Antenor Orrego"]
["065: Universidad de Huánuco"]
["066: Universidad Marcelino Champagnat"]
["067: Universidad César Vallejo"]
["068: Universidad Peruana de Ciencias Aplicadas"]
["069: Universidad Privada del Norte"]
["070: Universidad San Ignacio de Loyola"]
["071: Universidad Norbert Wiener"]
["072: Universidad Católica San Pablo"]
["073: Universidad Privada San Juan Bautista"]
["074: Universidad Tecnológica del Perú"]
["075: Universidad Continental"]
["076: Universidad Científica del Sur"]
["077: Universidad Católica Santo Toribio de Mogrovejo"]
["078: Universidad Católica Sedes Sapientiae"]
["079: Universidad Señor de Sipán"]
["080: Universidad Católica de Trujillo Benedicto XVI"]
["081: Universidad ESAN"]
["082: Universidad Antonio Ruiz de Montoya"]
["083: Universidad para el Desarrollo Andino"]
["084: Universidad Autónoma de Ica"]
["085: Universidad Autónoma del Perú"]
["086: Universidad de Ciencias y Humanidades"]
["087: Universidad Jaime Bausate y Meza"]
["088: Universidad Le Cordon Bleu"]
["089: Universidad Privada de Huancayo Franklin Roosevelt"]
["090: Universidad de Ciencias y Artes de América Latina"]
["091: Universidad de Ingeniería y Tecnología"]
["092: Universidad La Salle"]
["093: Universidad María Auxiliadora"]
["094: Universidad privada peruano alemana"]
["095: Facultad de Teología Pontificia y Civil de Lima"]
["096: Universidad Privada de Trujillo"]
["097: Universidad Peruana del Centro"]
["098: Universidad Politécnica del Perú"]
["099: Escuela de Postgrado Gerens"]
["100: Escuela de Posgrado Newman"]

{"sheet":"C200","index":2,"n_rows":632,"n_cols":39,"rows_kept":632,"cut":false,"hidden":false,"merged":[[558,8,558,9],[558,16,558,17],[559,8,559,9],[559,13,559,15],[559,16,559,17],[553,8,553,9],[553,16,553,17],[554,8,554,9],[554,16,554,17],[555,8,555,9],[555,16,555,17],[556,8,556,9],[556,16,556,17],[557,8,557,9],[557,16,557,17],[548,8,548,9],[548,16,548,17],[549,8,549,9],[549,16,549,17],[550,8,550,9],[550,16,550,17],[551,8,551,9],[551,16,551,17],[552,8,552,9],[552,16,552,17],[518,6,518,10],[1,8,1,25],[2,8,2,25],[545,5,546,7],[545,8,546,10],[545,12,546,15],[545,16,546,18],[547,8,547,9],[547,16,547,17],[514,6,514,20],[516,5,517,10],[516,11,517,12],[487,23,487,26],[475,6,475,19],[477,5,478,7],[477,9,478,9],[477,10,477,19],[485,6,485,20],[487,5,488,10],[489,6,489,10],[487,11,488,12],[465,5,467,8],[465,9,465,28],[466,9,466,10],[516,33,517,34],[516,35,517,36],[516,37,517,38],[517,13,517,14],[517,15,517,16],[517,17,517,18],[517,19,517,20],[517,21,517,22],[517,23,517,24],[517,25,517,26],[516,13,516,18],[516,19,516,22],[516,23,516,26],[516,27,517,28],[516,29,517,30],[516,31,517,32],[487,27,488,28],[487,29,488,30],[487,31,488,32],[487,33,488,34],[487,35,488,36],[487,37,488,38],[488,13,488,14],[488,15,488,16],[488,17,488,18],[488,19,488,20],[488,21,488,22],[488,23,488,24],[488,25,488,26],[487,13,487,18],[487,19,487,22],[466,11,466,12],[466,13,466,14],[466,15,466,16],[466,17,466,18],[466,19,466,20],[466,21,466,22],[466,23,466,24],[466,25,466,26],[466,27,466,28],[450,5,450,8],[451,5,451,8],[454,6,454,20],[456,5,458,8],[456,9,457,10],[456,11,456,26],[457,11,457,12],[457,13,457,14],[457,15,457,16],[457,17,457,18],[457,19,457,20],[457,21,457,22],[457,23,457,24],[457,25,457,26],[441,5,441,8],[442,5,442,8],[443,5,443,8],[444,5,444,8],[445,5,445,8],[446,5,446,8],[447,5,447,8],[448,5,448,8],[449,5,449,8],[432,5,432,8],[433,5,433,8],[434,5,434,8],[435,5,435,8],[436,5,436,8],[437,5,437,8],[438,5,438,8],[439,5,439,8],[440,5,440,8],[420,5,421,6],[420,7,421,7],[420,8,420,16],[426,6,426,28],[428,6,430,8],[428,9,429,10],[428,11,428,30],[429,11,429,12],[429,13,429,14],[429,15,429,16],[429,17,429,18],[429,19,429,20],[429,21,429,22],[429,23,429,24],[429,25,429,26],[429,27,429,28],[429,29,429,30],[407,13,407,14],[407,15,407,16],[407,17,407,18],[407,19,407,20],[410,6,410,20],[412,5,413,6],[412,7,413,7],[412,8,412,25],[418,6,418,16],[404,13,404,14],[404,15,404,16],[404,17,404,18],[404,19,404,20],[405,13,405,14],[405,15,405,16],[405,17,405,18],[405,19,405,20],[406,13,406,14],[406,15,406,16],[406,17,406,18],[406,19,406,20],[401,13,401,14],[401,15,401,16],[401,17,401,18],[401,19,401,20],[402,13,402,14],[402,15,402,16],[402,17,402,18],[402,19,402,20],[403,13,403,14],[403,15,403,16],[403,17,403,18],[403,19,403,20],[398,13,398,14],[398,15,398,16],[398,17,398,18],[398,19,398,20],[399,13,399,14],[399,15,399,16],[399,17,399,18],[399,19,399,20],[400,13,400,14],[400,15,400,16],[400,17,400,18],[400,19,400,20],[395,13,395,14],[395,15,395,16],[395,17,395,18],[395,19,395,20],[396,13,396,14],[396,15,396,16],[396,17,396,18],[396,19,396,20],[397,13,397,14],[397,15,397,16],[397,17,397,18],[397,19,397,20],[392,13,392,14],[392,15,392,16],[392,17,392,18],[392,19,392,20],[393,13,393,14],[393,15,393,16],[393,17,393,18],[393,19,393,20],[394,13,394,14],[394,15,394,16],[394,17,394,18],[394,19,394,20],[389,13,389,14],[389,15,389,16],[389,17,389,18],[389,19,389,20],[390,13,390,14],[390,15,390,16],[390,17,390,18],[390,19,390,20],[391,13,391,14],[391,15,391,16],[391,17,391,18],[391,19,391,20],[386,13,386,14],[386,15,386,16],[386,17,386,18],[386,19,386,20],[387,13,387,14],[387,15,387,16],[387,17,387,18],[387,19,387,20],[388,13,388,14],[388,15,388,16],[388,17,388,18],[388,19,388,20],[314,6,314,10],[381,6,381,20],[383,5,384,12],[383,13,383,20],[384,13,384,16],[384,17,384,20],[385,6,385,10],[385,13,385,14],[385,15,385,16],[385,17,385,18],[385,19,385,20],[310,6,310,26],[312,5,313,10],[312,13,313,14],[312,15,312,34],[313,11,313,12],[313,15,313,16],[313,17,313,18],[313,19,313,20],[313,21,313,22],[313,23,313,24],[313,25,313,26],[313,27,313,28],[313,29,313,30],[313,31,313,32],[313,33,313,34],[146,13,146,14],[146,15,146,16],[146,17,146,18],[146,19,146,20],[8,6,8,28],[10,8,11,9],[10,10,10,29],[11,26,11,27],[11,28,11,29],[70,6,70,26],[72,5,73,10],[72,13,73,14],[72,15,72,34],[73,11,73,12],[73,15,73,16],[73,17,73,18],[73,19,73,20],[73,21,73,22],[73,23,73,24],[73,25,73,26],[73,27,73,28],[73,29,73,30],[73,31,73,32],[73,33,73,34],[143,5,144,12],[143,13,143,20],[144,13,144,16],[144,17,144,20],[145,6,145,10],[145,13,145,14],[145,15,145,16],[145,17,145,18],[145,19,145,20],[11,22,11,23],[11,12,11,13],[11,10,11,11],[11,14,11,15],[11,20,11,21],[74,6,74,10],[11,18,11,19],[11,16,11,17],[11,24,11,25],[11,6,11,7],[147,13,147,14],[147,15,147,16],[147,17,147,18],[147,19,147,20],[148,13,148,14],[148,15,148,16],[148,17,148,18],[148,19,148,20],[149,13,149,14],[149,15,149,16],[149,17,149,18],[149,19,149,20],[150,13,150,14],[150,15,150,16],[150,17,150,18],[150,19,150,20],[151,13,151,14],[151,15,151,16],[151,17,151,18],[151,19,151,20],[152,13,152,14],[152,15,152,16],[152,17,152,18],[152,19,152,20],[153,13,153,14],[153,15,153,16],[153,17,153,18],[153,19,153,20],[154,13,154,14],[154,15,154,16],[154,17,154,18],[154,19,154,20],[155,13,155,14],[155,15,155,16],[155,17,155,18],[155,19,155,20],[156,13,156,14],[156,15,156,16],[156,17,156,18],[156,19,156,20],[157,13,157,14],[157,15,157,16],[157,17,157,18],[157,19,157,20],[158,13,158,14],[158,15,158,16],[158,17,158,18],[158,19,158,20],[159,13,159,14],[159,15,159,16],[159,17,159,18],[159,19,159,20],[160,13,160,14],[160,15,160,16],[160,17,160,18],[160,19,160,20],[161,13,161,14],[161,15,161,16],[161,17,161,18],[161,19,161,20],[162,19,162,20],[163,13,163,14],[163,15,163,16],[163,17,163,18],[163,19,163,20],[164,13,164,14],[164,15,164,16],[164,17,164,18],[164,19,164,20],[141,6,141,20],[170,6,170,20],[172,5,173,6],[172,7,173,7],[172,8,172,25],[180,5,181,6],[180,7,181,7],[180,8,180,16],[178,6,178,16],[165,13,165,14],[165,15,165,16],[165,17,165,18],[165,19,165,20],[166,13,166,14],[166,15,166,16],[166,17,166,18],[166,19,166,20],[167,13,167,14],[167,15,167,16],[167,17,167,18],[167,19,167,20],[162,13,162,14],[162,15,162,16],[162,17,162,18],[186,6,186,28],[188,6,190,8],[188,9,189,10],[188,11,188,30],[189,11,189,12],[189,13,189,14],[189,15,189,16],[189,17,189,18],[189,19,189,20],[189,21,189,22],[189,23,189,24],[189,25,189,26],[189,27,189,28],[189,29,189,30],[192,5,192,8],[193,5,193,8],[194,5,194,8],[195,5,195,8],[196,5,196,8],[197,5,197,8],[198,5,198,8],[199,5,199,8],[200,5,200,8],[201,5,201,8],[202,5,202,8],[203,5,203,8],[204,5,204,8],[205,5,205,8],[206,5,206,8],[207,5,207,8],[208,5,208,8],[209,5,209,8],[210,5,210,8],[211,5,211,8],[214,6,214,20],[216,5,218,8],[216,9,217,10],[216,11,216,26],[217,11,217,12],[217,13,217,14],[217,15,217,16],[217,17,217,18],[217,19,217,20],[217,21,217,22],[217,23,217,24],[217,25,217,26],[225,5,227,8],[225,9,225,28],[226,9,226,10],[226,11,226,12],[226,13,226,14],[226,15,226,16],[226,17,226,18],[226,19,226,20],[226,21,226,22],[226,23,226,24],[226,25,226,26],[226,27,226,28],[237,5,238,7],[237,9,238,9],[237,10,237,19],[235,6,235,19],[248,6,248,28],[250,8,251,9],[250,10,250,29],[251,6,251,7],[251,10,251,11],[251,12,251,13],[251,14,251,15],[251,16,251,17],[251,18,251,19],[251,20,251,21],[251,22,251,23],[251,24,251,25],[251,26,251,27],[251,28,251,29]]}
[]
[null,null,null,null,null,null,null,null,"CENSO EDUCATIVO 2025"]
[null,null,null,null,null,null,null,null,"MATRÍCULA, DOCENTES Y RECURSOS"]
[]
[]
[]
[null,null,null,null,null,"200. MATRICULA Y SECCIONES - FORMACIÓN ARTÍSTICA (Para Institutos o Escuelas Públicas y Privadas)"]
[]
[null,null,null,null,null,201,"MATRÍCULA EN FORMACIÓN ARTÍSTICA, POR CICLOS Y SEXO, SEGÚN EDAD Y MODALIDAD DEL SERVICIO\n(Cumplida al 31 de marzo de 2025) - Sumar todos los turnos. Registrar la información del semestre académico 2025-I"]
[null,null,null,null,null,null,null,null,null,null,null,null,null,null,null,null,"I","II","III","IV","V","VI","VII","VIII","IX","X"]
[null,null,null,null,null,null,null,null,"TOTAL",null,"CICLO"]
[null,null,null,null,null,"EDADES","MODALIDADES",null,null,null,"I",null,"II",null,"III",null,"IV",null,"V",null,"VI",null,"VII",null,"VIII",null,"IX",null,"X"]
[null,null,null,null,null,null,null,null,"H","M","H","M","H","M","H","M","H","M","H","M","H","M","H","M","H","M","H","M","H","M"]
["0000",null,null,null,null,"TOTAL",null,null,{"$f":"K14+M14+O14+Q14+S14+U14+W14+Y14+AA14+AC14","v":0},0,{"$f":"SUM(K15:K68)","v":0},{"$f":"SUM(L15:L68)","v":0},0,0,0,0,0,0,0,0,0,0,0,0,0,0,0,0,0,0]
["15-1",{"$f":"SUM(I15:I17)","v":0},{"$f":"SUM(J15:J17)","v":0},{"$f":"F15","v":15},null,15,"Presencial",null,0,0]
["15-2",{"$f":"SUM(I18:I20)","v":0},{"$f":"SUM(J18:J20)","v":0},{"$f":"F18","v":16},null,null,"Semipresencial",null,0,0]
["15-3",{"$f":"SUM(I21:I23)","v":0},{"$f":"SUM(J21:J23)","v":0},{"$f":"F21","v":17},null,null,"A distancia",null,0,0]
["16-1",{"$f":"SUM(I24:I26)","v":0},{"$f":"SUM(J24:J26)","v":0},{"$f":"F24","v":18},null,16,"Presencial",null,0,0]
["16-2",{"$f":"SUM(I27:I29)","v":0},{"$f":"SUM(J27:J29)","v":0},{"$f":"F27","v":19},null,null,"Semipresencial",null,{"$f":"K19+M19+O19+Q19+S19+U19+W19+Y19+AA19+AC19","v":0},{"$f":"L19+N19+P19+R19+T19+V19+X19+Z19+AB19+AD19","v":0}]
["16-3",{"$f":"SUM(I30:I32)","v":0},{"$f":"SUM(J30:J32)","v":0},{"$f":"F30","v":20},null,null,"A distancia",null,{"$f":"K20+M20+O20+Q20+S20+U20+W20+Y20+AA20+AC20","v":0},{"$f":"L20+N20+P20+R20+T20+V20+X20+Z20+AB20+AD20","v":0}]
["17-1",{"$f":"SUM(I33:I35)","v":0},{"$f":"SUM(J33:J35)","v":0},{"$f":"F33","v":21},null,17,"Presencial",null,0,0]
["17-2",{"$f":"SUM(I36:I38)","v":0},{"$f":"SUM(J36:J38)","v":0},{"$f":"F36","v":22},null,null,"Semipresencial",null,{"$f":"K22+M22+O22+Q22+S22+U22+W22+Y22+AA22+AC22","v":0},{"$f":"L22+N22+P22+R22+T22+V22+X22+Z22+AB22+AD22","v":0}]
["17-3",null,null,null,null,null,"A distancia",null,{"$f":"K23+M23+O23+Q23+S23+U23+W23+Y23+AA23+AC23","v":0},{"$f":"L23+N23+P23+R23+T23+V23+X23+Z23+AB23+AD23","v":0}]
["18-1",null,null,null,null,18,"Presencial",null,0,0]
["18-2",null,null,null,null,null,"Semipresencial",null,{"$f":"K25+M25+O25+Q25+S25+U25+W25+Y25+AA25+AC25","v":0},{"$f":"L25+N25+P25+R25+T25+V25+X25+Z25+AB25+AD25","v":0}]
["18-3",null,null,null,null,null,"A distancia",null,{"$f":"K26+M26+O26+Q26+S26+U26+W26+Y26+AA26+AC26","v":0},{"$f":"L26+N26+P26+R26+T26+V26+X26+Z26+AB26+AD26","v":0}]
["19-1",null,null,null,null,19,"Presencial",null,0,0]
["19-2",null,null,null,null,null,"Semipresencial",null,{"$f":"K28+M28+O28+Q28+S28+U28+W28+Y28+AA28+AC28","v":0},{"$f":"L28+N28+P28+R28+T28+V28+X28+Z28+AB28+AD28","v":0}]
["19-3",null,null,null,null,null,"A distancia",null,{"$f":"K29+M29+O29+Q29+S29+U29+W29+Y29+AA29+AC29","v":0},{"$f":"L29+N29+P29+R29+T29+V29+X29+Z29+AB29+AD29","v":0}]
["20-1",null,null,null,null,20,"Presencial",null,{"$f":"K30+M30+O30+Q30+S30+U30+W30+Y30+AA30+AC30","v":0},0]
["20-2",null,null,null,null,null,"Semipresencial",null,{"$f":"K31+M31+O31+Q31+S31+U31+W31+Y31+AA31+AC31","v":0},{"$f":"L31+N31+P31+R31+T31+V31+X31+Z31+AB31+AD31","v":0}]
["20-3",null,null,null,null,null,"A distancia",null,{"$f":"K32+M32+O32+Q32+S32+U32+W32+Y32+AA32+AC32","v":0},{"$f":"L32+N32+P32+R32+T32+V32+X32+Z32+AB32+AD32","v":0}]
["21-1",null,null,null,null,21,"Presencial",null,0,0]
["21-2",null,null,null,null,null,"Semipresencial",null,{"$f":"K34+M34+O34+Q34+S34+U34+W34+Y34+AA34+AC34","v":0},{"$f":"L34+N34+P34+R34+T34+V34+X34+Z34+AB34+AD34","v":0}]
["21-3",null,null,null,null,null,"A distancia",null,{"$f":"K35+M35+O35+Q35+S35+U35+W35+Y35+AA35+AC35","v":0},{"$f":"L35+N35+P35+R35+T35+V35+X35+Z35+AB35+AD35","v":0}]
["22-1",null,null,null,null,22,"Presencial",null,0,0]
["22-2",null,null,null,null,null,"Semipresencial",null,{"$f":"K37+M37+O37+Q37+S37+U37+W37+Y37+AA37+AC37","v":0},{"$f":"L37+N37+P37+R37+T37+V37+X37+Z37+AB37+AD37","v":0}]
["22-3",null,null,null,null,null,"A distancia",null,{"$f":"K38+M38+O38+Q38+S38+U38+W38+Y38+AA38+AC38","v":0},{"$f":"L38+N38+P38+R38+T38+V38+X38+Z38+AB38+AD38","v":0}]
["23-1",{"$f":"SUM(I39:I41)","v":0},{"$f":"SUM(J39:J41)","v":0},{"$f":"F39","v":23},null,23,"Presencial",null,0,0]
["23-2",{"$f":"SUM(I42:I44)","v":0},{"$f":"SUM(J42:J44)","v":0},{"$f":"F42","v":24},null,null,"Semipresencial",null,{"$f":"K40+M40+O40+Q40+S40+U40+W40+Y40+AA40+AC40","v":0},{"$f":"L40+N40+P40+R40+T40+V40+X40+Z40+AB40+AD40","v":0}]
["23-3",{"$f":"SUM(I45:I47)","v":0},{"$f":"SUM(J45:J47)","v":0},{"$f":"F45","v":"25 - 29"},null,null,"A distancia",null,{"$f":"K41+M41+O41+Q41+S41+U41+W41+Y41+AA41+AC41","v":0},{"$f":"L41+N41+P41+R41+T41+V41+X41+Z41+AB41+AD41","v":0}]
["24-1",{"$f":"SUM(I48:I50)","v":0},{"$f":"SUM(J48:J50)","v":0},{"$f":"F48","v":"30 - 34"},null,24,"Presencial",null,0,0]
["24-2",{"$f":"SUM(I51:I53)","v":0},{"$f":"SUM(J51:J53)","v":0},{"$f":"F51","v":"35 - 39"},null,null,"Semipresencial",null,{"$f":"K43+M43+O43+Q43+S43+U43+W43+Y43+AA43+AC43","v":0},{"$f":"L43+N43+P43+R43+T43+V43+X43+Z43+AB43+AD43","v":0}]
["24-3",{"$f":"SUM(I54:I56)","v":0},{"$f":"SUM(J54:J56)","v":0},{"$f":"F54","v":"40 - 44"},null,null,"A distancia",null,{"$f":"K44+M44+O44+Q44+S44+U44+W44+Y44+AA44+AC44","v":0},{"$f":"L44+N44+P44+R44+T44+V44+X44+Z44+AB44+AD44","v":0}]
["25-1",{"$f":"SUM(I57:I59)","v":0},{"$f":"SUM(J57:J59)","v":0},{"$f":"F57","v":"45 - 49"},null,"25 - 29","Presencial",null,0,0]
["25-2",{"$f":"SUM(I60:I62)","v":0},{"$f":"SUM(J60:J62)","v":0},{"$f":"F60","v":"50 - 54"},null,null,"Semipresencial",null,{"$f":"K46+M46+O46+Q46+S46+U46+W46+Y46+AA46+AC46","v":0},{"$f":"L46+N46+P46+R46+T46+V46+X46+Z46+AB46+AD46","v":0}]
["25-3",{"$f":"SUM(I63:I65)","v":0},{"$f":"SUM(J63:J65)","v":0},{"$f":"F63","v":"55 - 59"},null,null,"A distancia",null,{"$f":"K47+M47+O47+Q47+S47+U47+W47+Y47+AA47+AC47","v":0},{"$f":"L47+N47+P47+R47+T47+V47+X47+Z47+AB47+AD47","v":0}]
["30-1",{"$f":"SUM(I66:I68)","v":0},{"$f":"SUM(J66:J68)","v":0},{"$f":"F66","v":"60 y más"},null,"30 - 34","Presencial",null,0,0]
["30-2",null,null,null,null,null,"Semipresencial",null,{"$f":"K49+M49+O49+Q49+S49+U49+W49+Y49+AA49+AC49","v":0},{"$f":"L49+N49+P49+R49+T49+V49+X49+Z49+AB49+AD49","v":0}]
["30-3",null,null,null,null,null,"A distancia",null,{"$f":"K50+M50+O50+Q50+S50+U50+W50+Y50+AA50+AC50","v":0},{"$f":"L50+N50+P50+R50+T50+V50+X50+Z50+AB50+AD50","v":0}]
["35-1",null,null,null,null,"35 - 39","Presencial",null,0,0]
["35-2",null,null,null,null,null,"Semipresencial",null,{"$f":"K52+M52+O52+Q52+S52+U52+W52+Y52+AA52+AC52","v":0},{"$f":"L52+N52+P52+R52+T52+V52+X52+Z52+AB52+AD52","v":0}]
["35-3",null,null,null,null,null,"A distancia",null,{"$f":"K53+M53+O53+Q53+S53+U53+W53+Y53+AA53+AC53","v":0},{"$f":"L53+N53+P53+R53+T53+V53+X53+Z53+AB53+AD53","v":0}]
["40-1",null,null,null,null,"40 - 44","Presencial",null,0,0]
["40-2",null,null,null,null,null,"Semipresencial",null,{"$f":"K55+M55+O55+Q55+S55+U55+W55+Y55+AA55+AC55","v":0},{"$f":"L55+N55+P55+R55+T55+V55+X55+Z55+AB55+AD55","v":0}]
["40-3",null,null,null,null,null,"A distancia",null,{"$f":"K56+M56+O56+Q56+S56+U56+W56+Y56+AA56+AC56","v":0},{"$f":"L56+N56+P56+R56+T56+V56+X56+Z56+AB56+AD56","v":0}]
["45-1",null,null,null,null,"45 - 49","Presencial",null,0,0]
["45-2",null,null,null,null,null,"Semipresencial",null,{"$f":"K58+M58+O58+Q58+S58+U58+W58+Y58+AA58+AC58","v":0},{"$f":"L58+N58+P58+R58+T58+V58+X58+Z58+AB58+AD58","v":0}]
["45-3",null,null,null,null,null,"A distancia",null,{"$f":"K59+M59+O59+Q59+S59+U59+W59+Y59+AA59+AC59","v":0},{"$f":"L59+N59+P59+R59+T59+V59+X59+Z59+AB59+AD59","v":0}]
["50-1",null,null,null,null,"50 - 54","Presencial",null,0,0]
["50-2",null,null,null,null,null,"Semipresencial",null,{"$f":"K61+M61+O61+Q61+S61+U61+W61+Y61+AA61+AC61","v":0},{"$f":"L61+N61+P61+R61+T61+V61+X61+Z61+AB61+AD61","v":0}]
["50-3",null,null,null,null,null,"A distancia",null,{"$f":"K62+M62+O62+Q62+S62+U62+W62+Y62+AA62+AC62","v":0},{"$f":"L62+N62+P62+R62+T62+V62+X62+Z62+AB62+AD62","v":0}]
["55-1",null,null,null,null,"55 - 59","Presencial",null,0,0]
["55-2",null,null,null,null,null,"Semipresencial",null,{"$f":"K64+M64+O64+Q64+S64+U64+W64+Y64+AA64+AC64","v":0},{"$f":"L64+N64+P64+R64+T64+V64+X64+Z64+AB64+AD64","v":0}]
["55-3",null,null,null,null,null,"A distancia",null,{"$f":"K65+M65+O65+Q65+S65+U65+W65+Y65+AA65+AC65","v":0},{"$f":"L65+N65+P65+R65+T65+V65+X65+Z65+AB65+AD65","v":0}]
["60-1",null,null,null,null,"60 y más","Presencial",null,{"$f":"K66+M66+O66+Q66+S66+U66+W66+Y66+AA66+AC66","v":0},0]
["60-2",null,null,null,null,null,"Semipresencial",null,{"$f":"K67+M67+O67+Q67+S67+U67+W67+Y67+AA67+AC67","v":0},{"$f":"L67+N67+P67+R67+T67+V67+X67+Z67+AB67+AD67","v":0}]
["60-3",null,null,null,null,null,"A distancia",null,{"$f":"K68+M68+O68+Q68+S68+U68+W68+Y68+AA68+AC68","v":0},{"$f":"L68+N68+P68+R68+T68+V68+X68+Z68+AB68+AD68","v":0}]
[null,null,null,null,null,"NOTA: Incluya a los estudiantes con algún tipo de discapacidad u otra condición."]
[]
[null,null,null,null,null,202,"MATRÍCULA EN FORMACIÓN ARTÍSTICA, POR CICLOS Y SEXO, SEGÚN CARRERA Y MODALIDAD DEL SERVICIO"]
[]
[null,null,null,null,null,"CARRERAS",null,null,null,null,null,null,null,"TOTAL",null,"CICLO"]
[null,null,null,null,null,null,null,null,null,null,null,"MODALIDADES",null,null,null,"I",null,"II",null,"III",null,"IV",null,"V",null,"VI",null,"VII",null,"VIII",null,"IX",null,"X"]
[null,null,null,null,null,"CÓDIGO","DENOMINACIÓN",null,null,null,null,null,null,"H","M","H","M","H","M","H","M","H","M","H","M","H","M","H","M","H","M","H","M","H","M"]
[{"$f":"F76","v":"0000000000"},null,null,null,null,"0000000000","TOTAL",null,null,null,null,null,null,{"$f":"P76+R76+T76+V76+X76+Z76+AB76+AD76+AF76+AH76","v":0},{"$f":"Q76+S76+U76+W76+Y76+AA76+AC76+AE76+AG76+AI76","v":0},{"$f":"SUM(P77:P139)","v":0},{"$f":"SUM(Q77:Q139)","v":0},{"$f":"SUM(R77:R139)","v":0},{"$f":"SUM(S77:S139)","v":0},{"$f":"SUM(T77:T139)","v":0},0,0,0,0,0,0,0,0,0,0,0,0,0,{"$f":"SUM(AH77:AH139)","v":0},{"$f":"SUM(AI77:AI139)","v":0}]
[{"$f":"IF(F77<>\"\",CONCATENATE(\"1\",MID(F77,2,9)),\"\")","v":""},{"$f":"CONCATENATE(F77,LEFT(G77,5))","v":""},{"$f":"IF(AND(B77<>\"\",SUM(P77:AI79)=0),1,0)","v":0},{"$f":"IF(B77<>\"\",IF(OR(F77=\"\",G77=\"\"),1,0),\"\")","v":""},null,null,{"$f":"IF(ISERROR(VLOOKUP($F77,Carrera,2,FALSE)),\"\",VLOOKUP($F77,Carrera,2,FALSE))","v":""},null,null,null,null,"Presencial",null,{"$f":"P77+R77+T77+V77+X77+Z77+AB77+AD77+AF77+AH77","v":0},0]
[{"$f":"IF(F78<>\"\",CONCATENATE(\"2\",MID(F78,2,9)),\"\")","v":""},null,null,null,null,{"$f":"IF(F77<>\"\",F77,\"\")","v":""},null,null,null,null,null,"Semipresencial",null,0,0]
[{"$f":"IF(F79<>\"\",CONCATENATE(\"3\",MID(F79,2,9)),\"\")","v":""},null,null,null,null,{"$f":"IF(F77<>\"\",F77,\"\")","v":""},null,null,null,null,null,"A distancia",null,0,0]
[{"$f":"IF(F80<>\"\",CONCATENATE(\"1\",MID(F80,2,9)),\"\")","v":""},{"$f":"CONCATENATE(F80,LEFT(G80,5))","v":""},{"$f":"IF(AND(B80<>\"\",SUM(P80:AI82)=0),1,0)","v":0},{"$f":"IF(B80<>\"\",IF(OR(F80=\"\",G80=\"\"),1,0),\"\")","v":""},null,null,{"$f":"IF(ISERROR(VLOOKUP($F80,Carrera,2,FALSE)),\"\",VLOOKUP($F80,Carrera,2,FALSE))","v":""},null,null,null,null,"Presencial",null,0,0]
[{"$f":"IF(F81<>\"\",CONCATENATE(\"2\",MID(F81,2,9)),\"\")","v":""},null,null,null,null,{"$f":"IF(F80<>\"\",F80,\"\")","v":""},null,null,null,null,null,"Semipresencial",null,0,0]
[{"$f":"IF(F82<>\"\",CONCATENATE(\"3\",MID(F82,2,9)),\"\")","v":""},null,null,null,null,{"$f":"IF(F80<>\"\",F80,\"\")","v":""},null,null,null,null,null,"A distancia",null,0,0]
[{"$f":"IF(F83<>\"\",CONCATENATE(\"1\",MID(F83,2,9)),\"\")","v":""},{"$f":"CONCATENATE(F83,LEFT(G83,5))","v":""},{"$f":"IF(AND(B83<>\"\",SUM(P83:AI85)=0),1,0)","v":0},{"$f":"IF(B83<>\"\",IF(OR(F83=\"\",G83=\"\"),1,0),\"\")","v":""},null,null,{"$f":"IF(ISERROR(VLOOKUP($F83,Carrera,2,FALSE)),\"\",VLOOKUP($F83,Carrera,2,FALSE))","v":""},null,null,null,null,"Presencial",null,0,0]
[{"$f":"IF(F84<>\"\",CONCATENATE(\"2\",MID(F84,2,9)),\"\")","v":""},null,null,null,null,{"$f":"IF(F83<>\"\",F83,\"\")","v":""},null,null,null,null,null,"Semipresencial",null,{"$f":"P84+R84+T84+V84+X84+Z84+AB84+AD84+AF84+AH84","v":0},{"$f":"Q84+S84+U84+W84+Y84+AA84+AC84+AE84+AG84+AI84","v":0}]
[{"$f":"IF(F85<>\"\",CONCATENATE(\"3\",MID(F85,2,9)),\"\")","v":""},null,null,null,null,{"$f":"IF(F83<>\"\",F83,\"\")","v":""},null,null,null,null,null,"A distancia",null,{"$f":"P85+R85+T85+V85+X85+Z85+AB85+AD85+AF85+AH85","v":0},{"$f":"Q85+S85+U85+W85+Y85+AA85+AC85+AE85+AG85+AI85","v":0}]
[{"$f":"IF(F86<>\"\",CONCATENATE(\"1\",MID(F86,2,9)),\"\")","v":""},{"$f":"CONCATENATE(F86,LEFT(G86,5))","v":""},{"$f":"IF(AND(B86<>\"\",SUM(P86:AI88)=0),1,0)","v":0},{"$f":"IF(B86<>\"\",IF(OR(F86=\"\",G86=\"\"),1,0),\"\")","v":""},null,null,{"$f":"IF(ISERROR(VLOOKUP($F86,Carrera,2,FALSE)),\"\",VLOOKUP($F86,Carrera,2,FALSE))","v":""},null,null,null,null,"Presencial",null,0,0]
[{"$f":"IF(F87<>\"\",CONCATENATE(\"2\",MID(F87,2,9)),\"\")","v":""},null,null,null,null,{"$f":"IF(F86<>\"\",F86,\"\")","v":""},null,null,null,null,null,"Semipresencial",null,0,0]
[{"$f":"IF(F88<>\"\",CONCATENATE(\"3\",MID(F88,2,9)),\"\")","v":""},null,null,null,null,{"$f":"IF(F86<>\"\",F86,\"\")","v":""},null,null,null,null,null,"A distancia",null,0,0]
[{"$f":"IF(F89<>\"\",CONCATENATE(\"1\",MID(F89,2,9)),\"\")","v":""},{"$f":"CONCATENATE(F89,LEFT(G89,5))","v":""},{"$f":"IF(AND(B89<>\"\",SUM(P89:AI91)=0),1,0)","v":0},{"$f":"IF(B89<>\"\",IF(OR(F89=\"\",G89=\"\"),1,0),\"\")","v":""},null,null,{"$f":"IF(ISERROR(VLOOKUP($F89,Carrera,2,FALSE)),\"\",VLOOKUP($F89,Carrera,2,FALSE))","v":""},null,null,null,null,"Presencial",null,0,0]
[{"$f":"IF(F90<>\"\",CONCATENATE(\"2\",MID(F90,2,9)),\"\")","v":""},null,null,null,null,{"$f":"IF(F89<>\"\",F89,\"\")","v":""},null,null,null,null,null,"Semipresencial",null,0,0]
[{"$f":"IF(F91<>\"\",CONCATENATE(\"3\",MID(F91,2,9)),\"\")","v":""},null,null,null,null,{"$f":"IF(F89<>\"\",F89,\"\")","v":""},null,null,null,null,null,"A distancia",null,0,0]
[{"$f":"IF(F92<>\"\",CONCATENATE(\"1\",MID(F92,2,9)),\"\")","v":""},{"$f":"CONCATENATE(F92,LEFT(G92,5))","v":""},{"$f":"IF(AND(B92<>\"\",SUM(P92:AI94)=0),1,0)","v":0},{"$f":"IF(B92<>\"\",IF(OR(F92=\"\",G92=\"\"),1,0),\"\")","v":""},null,null,{"$f":"IF(ISERROR(VLOOKUP($F92,Carrera,2,FALSE)),\"\",VLOOKUP($F92,Carrera,2,FALSE))","v":""},null,null,null,null,"Presencial",null,0,0]
[{"$f":"IF(F93<>\"\",CONCATENATE(\"2\",MID(F93,2,9)),\"\")","v":""},null,null,null,null,{"$f":"IF(F92<>\"\",F92,\"\")","v":""},null,null,null,null,null,"Semipresencial",null,{"$f":"P93+R93+T93+V93+X93+Z93+AB93+AD93+AF93+AH93","v":0},0]
[{"$f":"IF(F94<>\"\",CONCATENATE(\"3\",MID(F94,2,9)),\"\")","v":""},null,null,null,null,{"$f":"IF(F92<>\"\",F92,\"\")","v":""},null,null,null,null,null,"A distancia",null,0,0]
[{"$f":"IF(F95<>\"\",CONCATENATE(\"1\",MID(F95,2,9)),\"\")","v":""},{"$f":"CONCATENATE(F95,LEFT(G95,5))","v":""},{"$f":"IF(AND(B95<>\"\",SUM(P95:AI97)=0),1,0)","v":0},{"$f":"IF(B95<>\"\",IF(OR(F95=\"\",G95=\"\"),1,0),\"\")","v":""},null,null,{"$f":"IF(ISERROR(VLOOKUP($F95,Carrera,2,FALSE)),\"\",VLOOKUP($F95,Carrera,2,FALSE))","v":""},null,null,null,null,"Presencial",null,0,0]
[{"$f":"IF(F96<>\"\",CONCATENATE(\"2\",MID(F96,2,9)),\"\")","v":""},null,null,null,null,{"$f":"IF(F95<>\"\",F95,\"\")","v":""},null,null,null,null,null,"Semipresencial",null,0,0]
[{"$f":"IF(F97<>\"\",CONCATENATE(\"3\",MID(F97,2,9)),\"\")","v":""},null,null,null,null,{"$f":"IF(F95<>\"\",F95,\"\")","v":""},null,null,null,null,null,"A distancia",null,0,0]
[{"$f":"IF(F98<>\"\",CONCATENATE(\"1\",MID(F98,2,9)),\"\")","v":""},{"$f":"CONCATENATE(F98,LEFT(G98,5))","v":""},{"$f":"IF(AND(B98<>\"\",SUM(P98:AI100)=0),1,0)","v":0},{"$f":"IF(B98<>\"\",IF(OR(F98=\"\",G98=\"\"),1,0),\"\")","v":""},null,null,{"$f":"IF(ISERROR(VLOOKUP($F98,Carrera,2,FALSE)),\"\",VLOOKUP($F98,Carrera,2,FALSE))","v":""},null,null,null,null,"Presencial",null,0,0]
[{"$f":"IF(F99<>\"\",CONCATENATE(\"2\",MID(F99,2,9)),\"\")","v":""},null,null,null,null,{"$f":"IF(F98<>\"\",F98,\"\")","v":""},null,null,null,null,null,"Semipresencial",null,0,0]
[{"$f":"IF(F100<>\"\",CONCATENATE(\"3\",MID(F100,2,9)),\"\")","v":""},null,null,null,null,{"$f":"IF(F98<>\"\",F98,\"\")","v":""},null,null,null,null,null,"A distancia",null,0,0]
[{"$f":"IF(F101<>\"\",CONCATENATE(\"1\",MID(F101,2,9)),\"\")","v":""},{"$f":"CONCATENATE(F101,LEFT(G101,5))","v":""},{"$f":"IF(AND(B101<>\"\",SUM(P101:AI103)=0),1,0)","v":0},{"$f":"IF(B101<>\"\",IF(OR(F101=\"\",G101=\"\"),1,0),\"\")","v":""},null,null,{"$f":"IF(ISERROR(VLOOKUP($F101,Carrera,2,FALSE)),\"\",VLOOKUP($F101,Carrera,2,FALSE))","v":""},null,null,null,null,"Presencial",null,{"$f":"P101+R101+T101+V101+X101+Z101+AB101+AD101+AF101+AH101","v":0},{"$f":"Q101+S101+U101+W101+Y101+AA101+AC101+AE101+AG101+AI101","v":0}]
[{"$f":"IF(F102<>\"\",CONCATENATE(\"2\",MID(F102,2,9)),\"\")","v":""},null,null,null,null,{"$f":"IF(F101<>\"\",F101,\"\")","v":""},null,null,null,null,null,"Semipresencial",null,0,0]
[{"$f":"IF(F103<>\"\",CONCATENATE(\"3\",MID(F103,2,9)),\"\")","v":""},null,null,null,null,{"$f":"IF(F101<>\"\",F101,\"\")","v":""},null,null,null,null,null,"A distancia",null,0,0]
[{"$f":"IF(F104<>\"\",CONCATENATE(\"1\",MID(F104,2,9)),\"\")","v":""},{"$f":"CONCATENATE(F104,LEFT(G104,5))","v":""},{"$f":"IF(AND(B104<>\"\",SUM(P104:AI106)=0),1,0)","v":0},{"$f":"IF(B104<>\"\",IF(OR(F104=\"\",G104=\"\"),1,0),\"\")","v":""},null,null,{"$f":"IF(ISERROR(VLOOKUP($F104,Carrera,2,FALSE)),\"\",VLOOKUP($F104,Carrera,2,FALSE))","v":""},null,null,null,null,"Presencial",null,0,0]
[{"$f":"IF(F105<>\"\",CONCATENATE(\"2\",MID(F105,2,9)),\"\")","v":""},null,null,null,null,{"$f":"IF(F104<>\"\",F104,\"\")","v":""},null,null,null,null,null,"Semipresencial",null,0,0]
[{"$f":"IF(F106<>\"\",CONCATENATE(\"3\",MID(F106,2,9)),\"\")","v":""},null,null,null,null,{"$f":"IF(F104<>\"\",F104,\"\")","v":""},null,null,null,null,null,"A distancia",null,0,0]
[{"$f":"IF(F107<>\"\",CONCATENATE(\"1\",MID(F107,2,9)),\"\")","v":""},{"$f":"CONCATENATE(F107,LEFT(G107,5))","v":""},{"$f":"IF(AND(B107<>\"\",SUM(P107:AI109)=0),1,0)","v":0},{"$f":"IF(B107<>\"\",IF(OR(F107=\"\",G107=\"\"),1,0),\"\")","v":""},null,null,{"$f":"IF(ISERROR(VLOOKUP($F107,Carrera,2,FALSE)),\"\",VLOOKUP($F107,Carrera,2,FALSE))","v":""},null,null,null,null,"Presencial",null,0,0]
[{"$f":"IF(F108<>\"\",CONCATENATE(\"2\",MID(F108,2,9)),\"\")","v":""},null,null,null,null,{"$f":"IF(F107<>\"\",F107,\"\")","v":""},null,null,null,null,null,"Semipresencial",null,0,0]
[{"$f":"IF(F109<>\"\",CONCATENATE(\"3\",MID(F109,2,9)),\"\")","v":""},null,null,null,null,{"$f":"IF(F107<>\"\",F107,\"\")","v":""},null,null,null,null,null,"A distancia",null,0,0]
[{"$f":"IF(F110<>\"\",CONCATENATE(\"1\",MID(F110,2,9)),\"\")","v":""},{"$f":"CONCATENATE(F110,LEFT(G110,5))","v":""},{"$f":"IF(AND(B110<>\"\",SUM(P110:AI112)=0),1,0)","v":0},{"$f":"IF(B110<>\"\",IF(OR(F110=\"\",G110=\"\"),1,0),\"\")","v":""},null,null,{"$f":"IF(ISERROR(VLOOKUP($F110,Carrera,2,FALSE)),\"\",VLOOKUP($F110,Carrera,2,FALSE))","v":""},null,null,null,null,"Presencial",null,0,0]
[{"$f":"IF(F111<>\"\",CONCATENATE(\"2\",MID(F111,2,9)),\"\")","v":""},null,null,null,null,{"$f":"IF(F110<>\"\",F110,\"\")","v":""},null,null,null,null,null,"Semipresencial",null,0,0]
[{"$f":"IF(F112<>\"\",CONCATENATE(\"3\",MID(F112,2,9)),\"\")","v":""},null,null,null,null,{"$f":"IF(F110<>\"\",F110,\"\")","v":""},null,null,null,null,null,"A distancia",null,0,0]
[{"$f":"IF(F113<>\"\",CONCATENATE(\"1\",MID(F113,2,9)),\"\")","v":""},{"$f":"CONCATENATE(F113,LEFT(G113,5))","v":""},{"$f":"IF(AND(B113<>\"\",SUM(P113:AI115)=0),1,0)","v":0},{"$f":"IF(B113<>\"\",IF(OR(F113=\"\",G113=\"\"),1,0),\"\")","v":""},null,null,{"$f":"IF(ISERROR(VLOOKUP($F113,Carrera,2,FALSE)),\"\",VLOOKUP($F113,Carrera,2,FALSE))","v":""},null,null,null,null,"Presencial",null,{"$f":"P113+R113+T113+V113+X113+Z113+AB113+AD113+AF113+AH113","v":0},{"$f":"Q113+S113+U113+W113+Y113+AA113+AC113+AE113+AG113+AI113","v":0}]
[{"$f":"IF(F114<>\"\",CONCATENATE(\"2\",MID(F114,2,9)),\"\")","v":""},null,null,null,null,{"$f":"IF(F113<>\"\",F113,\"\")","v":""},null,null,null,null,null,"Semipresencial",null,0,0]
[{"$f":"IF(F115<>\"\",CONCATENATE(\"3\",MID(F115,2,9)),\"\")","v":""},null,null,null,null,{"$f":"IF(F113<>\"\",F113,\"\")","v":""},null,null,null,null,null,"A distancia",null,0,0]
[{"$f":"IF(F116<>\"\",CONCATENATE(\"1\",MID(F116,2,9)),\"\")","v":""},{"$f":"CONCATENATE(F116,LEFT(G116,5))","v":""},{"$f":"IF(AND(B116<>\"\",SUM(P116:AI118)=0),1,0)","v":0},{"$f":"IF(B116<>\"\",IF(OR(F116=\"\",G116=\"\"),1,0),\"\")","v":""},null,null,{"$f":"IF(ISERROR(VLOOKUP($F116,Carrera,2,FALSE)),\"\",VLOOKUP($F116,Carrera,2,FALSE))","v":""},null,null,null,null,"Presencial",null,0,0]
[{"$f":"IF(F117<>\"\",CONCATENATE(\"2\",MID(F117,2,9)),\"\")","v":""},null,null,null,null,{"$f":"IF(F116<>\"\",F116,\"\")","v":""},null,null,null,null,null,"Semipresencial",null,0,0]
[{"$f":"IF(F118<>\"\",CONCATENATE(\"3\",MID(F118,2,9)),\"\")","v":""},null,null,null,null,{"$f":"IF(F116<>\"\",F116,\"\")","v":""},null,null,null,null,null,"A distancia",null,0,0]
[{"$f":"IF(F119<>\"\",CONCATENATE(\"1\",MID(F119,2,9)),\"\")","v":""},{"$f":"CONCATENATE(F119,LEFT(G119,5))","v":""},{"$f":"IF(AND(B119<>\"\",SUM(P119:AI121)=0),1,0)","v":0},{"$f":"IF(B119<>\"\",IF(OR(F119=\"\",G119=\"\"),1,0),\"\")","v":""},null,null,{"$f":"IF(ISERROR(VLOOKUP($F119,Carrera,2,FALSE)),\"\",VLOOKUP($F119,Carrera,2,FALSE))","v":""},null,null,null,null,"Presencial",null,0,0]
[{"$f":"IF(F120<>\"\",CONCATENATE(\"2\",MID(F120,2,9)),\"\")","v":""},null,null,null,null,{"$f":"IF(F119<>\"\",F119,\"\")","v":""},null,null,null,null,null,"Semipresencial",null,0,0]
[{"$f":"IF(F121<>\"\",CONCATENATE(\"3\",MID(F121,2,9)),\"\")","v":""},null,null,null,null,{"$f":"IF(F119<>\"\",F119,\"\")","v":""},null,null,null,null,null,"A distancia",null,0,0]
[{"$f":"IF(F122<>\"\",CONCATENATE(\"1\",MID(F122,2,9)),\"\")","v":""},{"$f":"CONCATENATE(F122,LEFT(G122,5))","v":""},{"$f":"IF(AND(B122<>\"\",SUM(P122:AI124)=0),1,0)","v":0},{"$f":"IF(B122<>\"\",IF(OR(F122=\"\",G122=\"\"),1,0),\"\")","v":""},null,null,{"$f":"IF(ISERROR(VLOOKUP($F122,Carrera,2,FALSE)),\"\",VLOOKUP($F122,Carrera,2,FALSE))","v":""},null,null,null,null,"Presencial",null,0,0]
[{"$f":"IF(F123<>\"\",CONCATENATE(\"2\",MID(F123,2,9)),\"\")","v":""},null,null,null,null,{"$f":"IF(F122<>\"\",F122,\"\")","v":""},null,null,null,null,null,"Semipresencial",null,0,0]
[{"$f":"IF(F124<>\"\",CONCATENATE(\"3\",MID(F124,2,9)),\"\")","v":""},null,null,null,null,{"$f":"IF(F122<>\"\",F122,\"\")","v":""},null,null,null,null,null,"A distancia",null,0,0]
[{"$f":"IF(F125<>\"\",CONCATENATE(\"1\",MID(F125,2,9)),\"\")","v":""},{"$f":"CONCATENATE(F125,LEFT(G125,5))","v":""},{"$f":"IF(AND(B125<>\"\",SUM(P125:AI127)=0),1,0)","v":0},{"$f":"IF(B125<>\"\",IF(OR(F125=\"\",G125=\"\"),1,0),\"\")","v":""},null,null,{"$f":"IF(ISERROR(VLOOKUP($F125,Carrera,2,FALSE)),\"\",VLOOKUP($F125,Carrera,2,FALSE))","v":""},null,null,null,null,"Presencial",null,0,0]
[{"$f":"IF(F126<>\"\",CONCATENATE(\"2\",MID(F126,2,9)),\"\")","v":""},null,null,null,null,{"$f":"IF(F125<>\"\",F125,\"\")","v":""},null,null,null,null,null,"Semipresencial",null,0,0]
[{"$f":"IF(F127<>\"\",CONCATENATE(\"3\",MID(F127,2,9)),\"\")","v":""},null,null,null,null,{"$f":"IF(F125<>\"\",F125,\"\")","v":""},null,null,null,null,null,"A distancia",null,0,0]
[{"$f":"IF(F128<>\"\",CONCATENATE(\"1\",MID(F128,2,9)),\"\")","v":""},{"$f":"CONCATENATE(F128,LEFT(G128,5))","v":""},{"$f":"IF(AND(B128<>\"\",SUM(P128:AI130)=0),1,0)","v":0},{"$f":"IF(B128<>\"\",IF(OR(F128=\"\",G128=\"\"),1,0),\"\")","v":""},null,null,{"$f":"IF(ISERROR(VLOOKUP($F128,Carrera,2,FALSE)),\"\",VLOOKUP($F128,Carrera,2,FALSE))","v":""},null,null,null,null,"Presencial",null,0,0]
[{"$f":"IF(F129<>\"\",CONCATENATE(\"2\",MID(F129,2,9)),\"\")","v":""},null,null,null,null,{"$f":"IF(F128<>\"\",F128,\"\")","v":""},null,null,null,null,null,"Semipresencial",null,0,0]
[{"$f":"IF(F130<>\"\",CONCATENATE(\"3\",MID(F130,2,9)),\"\")","v":""},null,null,null,null,{"$f":"IF(F128<>\"\",F128,\"\")","v":""},null,null,null,null,null,"A distancia",null,0,0]
[{"$f":"IF(F131<>\"\",CONCATENATE(\"1\",MID(F131,2,9)),\"\")","v":""},{"$f":"CONCATENATE(F131,LEFT(G131,5))","v":""},{"$f":"IF(AND(B131<>\"\",SUM(P131:AI133)=0),1,0)","v":0},{"$f":"IF(B131<>\"\",IF(OR(F131=\"\",G131=\"\"),1,0),\"\")","v":""},null,null,{"$f":"IF(ISERROR(VLOOKUP($F131,Carrera,2,FALSE)),\"\",VLOOKUP($F131,Carrera,2,FALSE))","v":""},null,null,null,null,"Presencial",null,0,0]
[{"$f":"IF(F132<>\"\",CONCATENATE(\"2\",MID(F132,2,9)),\"\")","v":""},null,null,null,null,{"$f":"IF(F131<>\"\",F131,\"\")","v":""},null,null,null,null,null,"Semipresencial",null,0,0]
[{"$f":"IF(F133<>\"\",CONCATENATE(\"3\",MID(F133,2,9)),\"\")","v":""},null,null,null,null,{"$f":"IF(F131<>\"\",F131,\"\")","v":""},null,null,null,null,null,"A distancia",null,0,0]
[{"$f":"IF(F134<>\"\",CONCATENATE(\"1\",MID(F134,2,9)),\"\")","v":""},{"$f":"CONCATENATE(F134,LEFT(G134,5))","v":""},{"$f":"IF(AND(B134<>\"\",SUM(P134:AI136)=0),1,0)","v":0},{"$f":"IF(B134<>\"\",IF(OR(F134=\"\",G134=\"\"),1,0),\"\")","v":""},null,null,{"$f":"IF(ISERROR(VLOOKUP($F134,Carrera,2,FALSE)),\"\",VLOOKUP($F134,Carrera,2,FALSE))","v":""},null,null,null,null,"Presencial",null,0,0]
[{"$f":"IF(F135<>\"\",CONCATENATE(\"2\",MID(F135,2,9)),\"\")","v":""},null,null,null,null,{"$f":"IF(F134<>\"\",F134,\"\")","v":""},null,null,null,null,null,"Semipresencial",null,0,0]
[{"$f":"IF(F136<>\"\",CONCATENATE(\"3\",MID(F136,2,9)),\"\")","v":""},null,null,null,null,{"$f":"IF(F134<>\"\",F134,\"\")","v":""},null,null,null,null,null,"A distancia",null,0,0]
[{"$f":"IF(F137<>\"\",CONCATENATE(\"1\",MID(F137,2,9)),\"\")","v":""},{"$f":"CONCATENATE(F137,LEFT(G137,5))","v":""},{"$f":"IF(AND(B137<>\"\",SUM(P137:AI139)=0),1,0)","v":0},{"$f":"IF(B137<>\"\",IF(OR(F137=\"\",G137=\"\"),1,0),\"\")","v":""},null,null,{"$f":"IF(ISERROR(VLOOKUP($F137,Carrera,2,FALSE)),\"\",VLOOKUP($F137,Carrera,2,FALSE))","v":""},null,null,null,null,"Presencial",null,0,0]
[{"$f":"IF(F138<>\"\",CONCATENATE(\"2\",MID(F138,2,9)),\"\")","v":""},null,null,null,null,{"$f":"IF(F137<>\"\",F137,\"\")","v":""},null,null,null,null,null,"Semipresencial",null,0,0]
[{"$f":"IF(F139<>\"\",CONCATENATE(\"3\",MID(F139,2,9)),\"\")","v":""},null,null,null,null,{"$f":"IF(F137<>\"\",F137,\"\")","v":""},null,null,null,null,null,"A distancia",null,0,0]
[]
[]
[null,null,null,null,null,203," POSTULANTES E INGRESANTES EN FORMACIÓN ARTÍSTICA, POR SEXO, SEGÚN CARRERA"]
[]
[null,null,null,null,null,"CARRERA",null,null,null,null,null,null,null,"SEMESTRE ACADÉMICO 2025-I"]
[null,null,null,null,null,null,null,null,null,null,null,null,null,"POSTULANTES",null,null,null,"INGRESANTES"]
[null,null,null,null,null,"CÓDIGO","DENOMINACIÓN",null,null,null,null,null,null,"H",null,"M",null,"H",null,"M"]
[null,null,null,null,null,"0000000000","TOTAL",null,null,null,null,null,null,{"$f":"SUM(N148:O168)","v":0},null,{"$f":"SUM(P148:Q168)","v":0},null,{"$f":"SUM(R148:S168)","v":0},null,{"$f":"SUM(T148:U168)","v":0}]
[null,null,null,null,null,{"$f":"IF(F77<>\"\",F77,\"\")","v":""},{"$f":"IF(G77<>\"\",G77,\"\")","v":""}]
[null,null,null,null,null,{"$f":"IF(F80<>\"\",F80,\"\")","v":""},{"$f":"IF(G80<>\"\",G80,\"\")","v":""}]
[null,null,null,null,null,{"$f":"IF(F83<>\"\",F83,\"\")","v":""},{"$f":"IF(G83<>\"\",G83,\"\")","v":""}]
[null,null,null,null,null,{"$f":"IF(F86<>\"\",F86,\"\")","v":""},{"$f":"IF(G86<>\"\",G86,\"\")","v":""}]
[null,null,null,null,null,{"$f":"IF(F89<>\"\",F89,\"\")","v":""},{"$f":"IF(G89<>\"\",G89,\"\")","v":""}]
[null,null,null,null,null,{"$f":"IF(F92<>\"\",F92,\"\")","v":""},{"$f":"IF(G92<>\"\",G92,\"\")","v":""}]
[null,null,null,null,null,{"$f":"IF(F95<>\"\",F95,\"\")","v":""},{"$f":"IF(G95<>\"\",G95,\"\")","v":""}]
[null,null,null,null,null,{"$f":"IF(F98<>\"\",F98,\"\")","v":""},{"$f":"IF(G98<>\"\",G98,\"\")","v":""}]
[null,null,null,null,null,{"$f":"IF(F101<>\"\",F101,\"\")","v":""},{"$f":"IF(G101<>\"\",G101,\"\")","v":""}]
[null,null,null,null,null,{"$f":"IF(F104<>\"\",F104,\"\")","v":""},{"$f":"IF(G104<>\"\",G104,\"\")","v":""}]
[null,null,null,null,null,{"$f":"IF(F107<>\"\",F107,\"\")","v":""},{"$f":"IF(G107<>\"\",G107,\"\")","v":""}]
[null,null,null,null,null,{"$f":"IF(F110<>\"\",F110,\"\")","v":""},{"$f":"IF(G110<>\"\",G110,\"\")","v":""}]
[null,null,null,null,null,{"$f":"IF(F113<>\"\",F113,\"\")","v":""},{"$f":"IF(G113<>\"\",G113,\"\")","v":""}]
[null,null,null,null,null,{"$f":"IF(F116<>\"\",F116,\"\")","v":""},{"$f":"IF(G116<>\"\",G116,\"\")","v":""}]
[null,null,null,null,null,{"$f":"IF(F119<>\"\",F119,\"\")","v":""},{"$f":"IF(G119<>\"\",G119,\"\")","v":""}]
[null,null,null,null,null,{"$f":"IF(F122<>\"\",F122,\"\")","v":""},{"$f":"IF(G122<>\"\",G122,\"\")","v":""}]
[null,null,null,null,null,{"$f":"IF(F125<>\"\",F125,\"\")","v":""},{"$f":"IF(G125<>\"\",G125,\"\")","v":""}]
[null,null,null,null,null,{"$f":"IF(F128<>\"\",F128,\"\")","v":""},{"$f":"IF(G128<>\"\",G128,\"\")","v":""}]
[null,null,null,null,null,{"$f":"IF(F131<>\"\",F131,\"\")","v":""},{"$f":"IF(G131<>\"\",G131,\"\")","v":""}]
[null,null,null,null,null,{"$f":"IF(F134<>\"\",F134,\"\")","v":""},{"$f":"IF(G134<>\"\",G134,\"\")","v":""}]
[null,null,null,null,null,{"$f":"IF(F137<>\"\",F137,\"\")","v":""},{"$f":"IF(G137<>\"\",G137,\"\")","v":""}]
[]
[]
[null,null,null,null,null,204,"INGRESANTES EN FORMACIÓN ARTÍSTICA, POR EDAD, SEGÚN SEXO"]
[]
[null,null,null,null,null,"SEXO",null,"TOTAL","EDAD EN AÑOS CUMPLIDOS AL 31 DE MARZO DE 2025 / SEMESTRE 2025-I"]
[null,null,null,null,null,null,null,null,15,16,17,18,19,20,21,22,23,24,"25-29","30-34","35-39","40-44","45-49","50-54","55-59","60\ny más"]
["01",null,null,null,null,"Hombre",null,{"$f":"SUM(I175:Z175)","v":0}]
["02",null,null,null,null,"Mujer",null,{"$f":"SUM(I176:Z176)","v":0}]
[null,null,null,null,null,"Nota: Los totales de esta tabla deben ser iguales a los reportados en la columna “Ingresantes” de la tabla 203."]
[]
[null,null,null,null,null,205,"MATRÍCULA EN FORMACIÓN ARTÍSTICA, POR SEXO Y CICLO I, SEGÚN AÑO DE EGRESO DE LA EDUCACIÓN BÁSICA REGULAR"]
[]
[null,null,null,null,null,"SEXO",null,"TOTAL","AÑO QUE EGRESO O TERMINÓ LA EDUCACIÓN BÁSICA REGULAR"]
[null,null,null,null,null,null,null,null,2024,2023,2022,2021,2020,2019,2018,2017," Menor al 2017"]
["01",null,null,null,null,"Hombre",null,{"$f":"SUM(I183:Q183)","v":0}]
["02",null,null,null,null,"Mujer",null,{"$f":"SUM(I184:Q184)","v":0}]
[]
[]
[null,null,null,null,null,206,"MATRÍCULA EN FORMACIÓN ARTÍSTICA, POR CICLO Y SEXO, SEGÚN LENGUA MATERNA\n(Sumar todos los turnos). Registrar la información del semestre académico 2025-I"]
[]
[null,null,null,null,null,null,"LENGUA MATERNA",null,null,"TOTAL",null,"CICLO"]
[null,null,null,null,null,"CÓDIGO",null,null,null,null,null,"I",null,"II",null,"III",null,"IV",null,"V",null,"VI",null,"VII",null,"VIII",null,"IX",null,"X"]
[null,null,null,null,null,null,null,null,null,"H","M","H","M","H","M","H","M","H","M","H","M","H","M","H","M","H","M","H","M","H","M"]
[null,null,null,null,null,"0000 : TOTAL",null,null,null,{"$f":"L192+N192+P192+R192+T192+V192+X192+Z192+AB192+AD192","v":0},{"$f":"M192+O192+Q192+S192+U192+W192+Y192+AA192+AC192+AE192","v":0},{"$f":"SUM(L193:L212)","v":0},0,0,0,0,0,0,0,0,0,0,0,0,0,0,0,0,0,0,0]
[null,null,null,null,null,null,null,null,null,0,0]
[null,null,null,null,null,null,null,null,null,0,0]
[null,null,null,null,null,null,null,null,null,0,0]
[null,null,null,null,null,null,null,null,null,0,0]
[null,null,null,null,null,null,null,null,null,0,0]
[null,null,null,null,null,null,null,null,null,0,0]
[null,null,null,null,null,null,null,null,null,0,0]
[null,null,null,null,null,null,null,null,null,0,0]
[null,null,null,null,null,null,null,null,null,0,0]
[null,null,null,null,null,null,null,null,null,0,0]
[null,null,null,null,null,null,null,null,null,0,0]
[null,null,null,null,null,null,null,null,null,0,0]
[null,null,null,null,null,null,null,null,null,0,0]
[null,null,null,null,null,null,null,null,null,0,0]
[null,null,null,null,null,null,null,null,null,0,0]
[null,null,null,null,null,null,null,null,null,0,0]
[null,null,null,null,null,null,null,null,null,0,0]
[null,null,null,null,null,null,null,null,null,0,0]
[null,null,null,null,null,null,null,null,null,0,0]
[null,null,null,null,null,null,null,null,null,0,0]
[]
[]
[null,null,null,null,null,207,"MATRICULA EN FORMACIÓN ARTÍSTICA POR EDAD Y SEXO, SEGÚN TIPO DE PROGRAMA DE REPARACIONES EN EDUCACIÓN (Ley N° 28592"]
[]
[null,null,null,null,null,"TIPO DE PROGRAMA DE\nREPARACIÓN EN EDUCACIÓN",null,null,null,"TOTAL",null,"EDAD"]
[null,null,null,null,null,null,null,null,null,null,null,15,null,16,null,17,null,18,null,19,null,20,null,21,null,22]
[null,null,null,null,null,null,null,null,null,"H","M","H","M","H","M","H","M","H","M","H","M","H","M","H","M","H","M"]
["00",null,null,null,null,"TOTAL",null,null,null,{"$f":"L220+N220+P220+R220+T220+V220+X220+Z220+AB220","v":0},{"$f":"M220+O220+Q220+S220+U220+W220+Y220+AA220+AC220","v":0},{"$f":"SUM(L221:L224)","v":0},{"$f":"SUM(M221:M224)","v":0},{"$f":"SUM(N221:N224)","v":0},0,0,0,0,0,0,0,0,0,0,0,0,0,{"$f":"J229+L229+N229+P229+R229+T229+V229+X229+Z229+AB229","v":0},{"$f":"K229+M229+O229+Q229+S229+U229+W229+Y229+AA229+AC229","v":0},{"$f":"L220+N220+P220+R220+T220+V220+X220+Z220","v":0},{"$f":"M220+O220+Q220+S220+U220+W220+Y220+AA220","v":0}]
["01",null,null,null,null,"RUV - Víctimas directas",null,null,null,{"$f":"L221+N221+P221+R221+T221+V221+X221+Z221+AB221","v":0},0,null,null,null,null,null,null,null,null,null,null,null,null,null,null,null,null,{"$f":"J230+L230+N230+P230+R230+T230+V230+X230+Z230+AB230","v":0},0,{"$f":"L221+N221+P221+R221+T221+V221+X221+Z221","v":0},0]
["02",null,null,null,null,"REBRED-Transferencias de beneficios",null,null,null,0,0,null,null,null,null,null,null,null,null,null,null,null,null,null,null,null,null,0,0,0,0]
["03",null,null,null,null,"Otros Programas del Estado",null,null,null,0,0,null,null,null,null,null,null,null,null,null,null,null,null,null,null,null,null,0,0,0,0]
["04",null,null,null,null,"Estudiante no beneficiado",null,null,null,0,0,null,null,null,null,null,null,null,null,null,null,null,null,null,null,null,null,0,0,0,0]
[null,null,null,null,null,"CONTINUACIÓN CUADRO 207 …."]
[null,null,null,null,null,"TIPO DE PROGRAMA DE\nREPARACIÓN EN EDUCACIÓN",null,null,null,"EDAD"]
[null,null,null,null,null,null,null,null,null,23,null,24,null,"25-29",null,"30-34",null,"35-39",null,"40-44",null,"45-49",null,"50-54",null,"55-59",null,"60 y más"]
[null,null,null,null,null,null,null,null,null,"H","M","H","M","H","M","H","M","H","M","H","M","H","M","H","M","H","M","H","M"]
["00",null,null,null,null,"TOTAL",null,null,null,{"$f":"SUM(J230:J233)","v":0},0,0,0,0,0,0,0,0,0,0,0,0,0,0,0,0,0,0,0]
["01",null,null,null,null,"RUV - Víctimas directas"]
["02",null,null,null,null,"REBRED-Transferencias de beneficios"]
["03",null,null,null,null,"Otros Programas del Estado"]
["04",null,null,null,null,"Estudiante no beneficiado"]
[null,null,null,null,null,"Nota: El total de esta tabla debe ser igual a la tabla 201"]
[]
[null,null,null,null,null,208,"NÚMERO TOTAL DE SECCIONES EN FORMACIÓN ARTÍSTICA POR CICLO, SEGÚN TURNO"]
[]
[null,null,null,null,null,"TURNO",null,null,null,"TOTAL","CICLO"]
[null,null,null,null,null,null,null,null,null,null,"I","II","III","IV","V","VI","VII","VIII","IX","X"]
["00",null,null,null,null,"TOTAL",null,null,null,{"$f":"SUM(K240:T240)","v":0},{"$f":"SUM(K241:K243)","v":0},0,0,0,0,0,0,0,0,0]
["01",null,null,null,null,"Mañana",null,null,null,{"$f":"SUM(K241:T241)","v":0}]
["02",null,null,null,null,"Tarde",null,null,null,{"$f":"SUM(K242:T242)","v":0}]
["03",null,null,null,null,"Noche",null,null,null,{"$f":"SUM(K243:T243)","v":0}]
[null,null,null,null,null,"Solo registre el número de secciones que tiene, por ciclo de estudio según turno"]
[null,null,null,null,null,null,"I","I","II","II","III","III","IV","IV","V","V","VI","VI","VII","VII","VIII","VIII","IX","IX","X","X"]
[]
[null,null,null,null,null,"200. MATRÍCULA Y SECCIONES - EDUCACIÓN ARTÍSTICA (Para Institutos o Escuelas Públicas y Privadas)"]
[]
[null,null,null,null,null,209,"MATRÍCULA EN EDUCACIÓN ARTÍSTICA, POR CICLOS Y SEXO, SEGÚN EDAD Y MODALIDAD DEL SERVICIO\n(Cumplida al 31 de marzo de 2025) (Sumar todos los turnos). Registrar la información del semestre académico 2025-I"]
[]
[null,null,null,null,null,null,null,null,"TOTAL",null,"CICLO"]
[null,null,null,null,null,"EDADES","MODALIDADES",null,null,null,"I",null,"II",null,"III",null,"IV",null,"V",null,"VI",null,"VII",null,"VIII",null,"IX",null,"X"]
[null,null,null,null,null,null,null,null,"H","M","H","M","H","M","H","M","H","M","H","M","H","M","H","M","H","M","H","M","H","M"]
["0000",null,null,null,null,"TOTAL",null,null,{"$f":"K254+M254+O254+Q254+S254+U254+W254+Y254+AA254+AC254","v":0},0,{"$f":"SUM(K255:K308)","v":0},0,0,0,0,0,0,0,0,0,0,0,0,0,0,0,0,0,0,0]
["15-1",{"$f":"SUM(I255:I257)","v":0},{"$f":"SUM(J255:J257)","v":0},{"$f":"F255","v":15},null,15,"Presencial",null,0,0]
["15-2",{"$f":"SUM(I258:I260)","v":0},{"$f":"SUM(J258:J260)","v":0},{"$f":"F258","v":16},null,null,"Semipresencial",null,0,0]
["15-3",{"$f":"SUM(I261:I263)","v":0},{"$f":"SUM(J261:J263)","v":0},{"$f":"F261","v":17},null,null,"A distancia",null,0,0]
["16-1",{"$f":"SUM(I264:I266)","v":0},{"$f":"SUM(J264:J266)","v":0},{"$f":"F264","v":18},null,16,"Presencial",null,0,0]
["16-2",{"$f":"SUM(I267:I269)","v":0},{"$f":"SUM(J267:J269)","v":0},{"$f":"F267","v":19},null,null,"Semipresencial",null,{"$f":"K259+M259+O259+Q259+S259+U259+W259+Y259+AA259+AC259","v":0},{"$f":"L259+N259+P259+R259+T259+V259+X259+Z259+AB259+AD259","v":0}]
["16-3",{"$f":"SUM(I270:I272)","v":0},{"$f":"SUM(J270:J272)","v":0},{"$f":"F270","v":20},null,null,"A distancia",null,{"$f":"K260+M260+O260+Q260+S260+U260+W260+Y260+AA260+AC260","v":0},{"$f":"L260+N260+P260+R260+T260+V260+X260+Z260+AB260+AD260","v":0}]
["17-1",{"$f":"SUM(I273:I275)","v":0},{"$f":"SUM(J273:J275)","v":0},{"$f":"F273","v":21},null,17,"Presencial",null,0,0]
["17-2",{"$f":"SUM(I276:I278)","v":0},{"$f":"SUM(J276:J278)","v":0},{"$f":"F276","v":22},null,null,"Semipresencial",null,{"$f":"K262+M262+O262+Q262+S262+U262+W262+Y262+AA262+AC262","v":0},{"$f":"L262+N262+P262+R262+T262+V262+X262+Z262+AB262+AD262","v":0}]
["17-3",null,null,null,null,null,"A distancia",null,{"$f":"K263+M263+O263+Q263+S263+U263+W263+Y263+AA263+AC263","v":0},{"$f":"L263+N263+P263+R263+T263+V263+X263+Z263+AB263+AD263","v":0}]
["18-1",null,null,null,null,18,"Presencial",null,0,0]
["18-2",null,null,null,null,null,"Semipresencial",null,{"$f":"K265+M265+O265+Q265+S265+U265+W265+Y265+AA265+AC265","v":0},{"$f":"L265+N265+P265+R265+T265+V265+X265+Z265+AB265+AD265","v":0}]
["18-3",null,null,null,null,null,"A distancia",null,{"$f":"K266+M266+O266+Q266+S266+U266+W266+Y266+AA266+AC266","v":0},{"$f":"L266+N266+P266+R266+T266+V266+X266+Z266+AB266+AD266","v":0}]
["19-1",null,null,null,null,19,"Presencial",null,0,0]
["19-2",null,null,null,null,null,"Semipresencial",null,{"$f":"K268+M268+O268+Q268+S268+U268+W268+Y268+AA268+AC268","v":0},{"$f":"L268+N268+P268+R268+T268+V268+X268+Z268+AB268+AD268","v":0}]
["19-3",null,null,null,null,null,"A distancia",null,{"$f":"K269+M269+O269+Q269+S269+U269+W269+Y269+AA269+AC269","v":0},{"$f":"L269+N269+P269+R269+T269+V269+X269+Z269+AB269+AD269","v":0}]
["20-1",null,null,null,null,20,"Presencial",null,{"$f":"K270+M270+O270+Q270+S270+U270+W270+Y270+AA270+AC270","v":0},0]
["20-2",null,null,null,null,null,"Semipresencial",null,{"$f":"K271+M271+O271+Q271+S271+U271+W271+Y271+AA271+AC271","v":0},{"$f":"L271+N271+P271+R271+T271+V271+X271+Z271+AB271+AD271","v":0}]
["20-3",null,null,null,null,null,"A distancia",null,{"$f":"K272+M272+O272+Q272+S272+U272+W272+Y272+AA272+AC272","v":0},{"$f":"L272+N272+P272+R272+T272+V272+X272+Z272+AB272+AD272","v":0}]
["21-1",null,null,null,null,21,"Presencial",null,0,0]
["21-2",null,null,null,null,null,"Semipresencial",null,{"$f":"K274+M274+O274+Q274+S274+U274+W274+Y274+AA274+AC274","v":0},{"$f":"L274+N274+P274+R274+T274+V274+X274+Z274+AB274+AD274","v":0}]
["21-3",null,null,null,null,null,"A distancia",null,{"$f":"K275+M275+O275+Q275+S275+U275+W275+Y275+AA275+AC275","v":0},{"$f":"L275+N275+P275+R275+T275+V275+X275+Z275+AB275+AD275","v":0}]
["22-1",null,null,null,null,22,"Presencial",null,0,0]
["22-2",null,null,null,null,null,"Semipresencial",null,{"$f":"K277+M277+O277+Q277+S277+U277+W277+Y277+AA277+AC277","v":0},{"$f":"L277+N277+P277+R277+T277+V277+X277+Z277+AB277+AD277","v":0}]
["22-3",null,null,null,null,null,"A distancia",null,{"$f":"K278+M278+O278+Q278+S278+U278+W278+Y278+AA278+AC278","v":0},{"$f":"L278+N278+P278+R278+T278+V278+X278+Z278+AB278+AD278","v":0}]
["23-1",{"$f":"SUM(I279:I281)","v":0},{"$f":"SUM(J279:J281)","v":0},{"$f":"F279","v":23},null,23,"Presencial",null,0,0]
["23-2",{"$f":"SUM(I282:I284)","v":0},{"$f":"SUM(J282:J284)","v":0},{"$f":"F282","v":24},null,null,"Semipresencial",null,{"$f":"K280+M280+O280+Q280+S280+U280+W280+Y280+AA280+AC280","v":0},{"$f":"L280+N280+P280+R280+T280+V280+X280+Z280+AB280+AD280","v":0}]
["23-3",{"$f":"SUM(I285:I287)","v":0},{"$f":"SUM(J285:J287)","v":0},{"$f":"F285","v":"25 - 29"},null,null,"A distancia",null,{"$f":"K281+M281+O281+Q281+S281+U281+W281+Y281+AA281+AC281","v":0},{"$f":"L281+N281+P281+R281+T281+V281+X281+Z281+AB281+AD281","v":0}]
["24-1",{"$f":"SUM(I288:I290)","v":0},{"$f":"SUM(J288:J290)","v":0},{"$f":"F288","v":"30 - 34"},null,24,"Presencial",null,0,0]
["24-2",{"$f":"SUM(I291:I293)","v":0},{"$f":"SUM(J291:J293)","v":0},{"$f":"F291","v":"35 - 39"},null,null,"Semipresencial",null,{"$f":"K283+M283+O283+Q283+S283+U283+W283+Y283+AA283+AC283","v":0},{"$f":"L283+N283+P283+R283+T283+V283+X283+Z283+AB283+AD283","v":0}]
["24-3",{"$f":"SUM(I294:I296)","v":0},{"$f":"SUM(J294:J296)","v":0},{"$f":"F294","v":"40 - 44"},null,null,"A distancia",null,{"$f":"K284+M284+O284+Q284+S284+U284+W284+Y284+AA284+AC284","v":0},{"$f":"L284+N284+P284+R284+T284+V284+X284+Z284+AB284+AD284","v":0}]
["25-1",{"$f":"SUM(I297:I299)","v":0},{"$f":"SUM(J297:J299)","v":0},{"$f":"F297","v":"45 - 49"},null,"25 - 29","Presencial",null,0,0]
["25-2",{"$f":"SUM(I300:I302)","v":0},{"$f":"SUM(J300:J302)","v":0},{"$f":"F300","v":"50 - 54"},null,null,"Semipresencial",null,{"$f":"K286+M286+O286+Q286+S286+U286+W286+Y286+AA286+AC286","v":0},{"$f":"L286+N286+P286+R286+T286+V286+X286+Z286+AB286+AD286","v":0}]
["25-3",{"$f":"SUM(I303:I305)","v":0},{"$f":"SUM(J303:J305)","v":0},{"$f":"F303","v":"55 - 59"},null,null,"A distancia",null,{"$f":"K287+M287+O287+Q287+S287+U287+W287+Y287+AA287+AC287","v":0},{"$f":"L287+N287+P287+R287+T287+V287+X287+Z287+AB287+AD287","v":0}]
["30-1",{"$f":"SUM(I306:I308)","v":0},{"$f":"SUM(J306:J308)","v":0},{"$f":"F306","v":"60 y más"},null,"30 - 34","Presencial",null,0,0]
["30-2",null,null,null,null,null,"Semipresencial",null,{"$f":"K289+M289+O289+Q289+S289+U289+W289+Y289+AA289+AC289","v":0},{"$f":"L289+N289+P289+R289+T289+V289+X289+Z289+AB289+AD289","v":0}]
["30-3",null,null,null,null,null,"A distancia",null,{"$f":"K290+M290+O290+Q290+S290+U290+W290+Y290+AA290+AC290","v":0},{"$f":"L290+N290+P290+R290+T290+V290+X290+Z290+AB290+AD290","v":0}]
["35-1",null,null,null,null,"35 - 39","Presencial",null,0,0]
["35-2",null,null,null,null,null,"Semipresencial",null,{"$f":"K292+M292+O292+Q292+S292+U292+W292+Y292+AA292+AC292","v":0},{"$f":"L292+N292+P292+R292+T292+V292+X292+Z292+AB292+AD292","v":0}]
["35-3",null,null,null,null,null,"A distancia",null,{"$f":"K293+M293+O293+Q293+S293+U293+W293+Y293+AA293+AC293","v":0},{"$f":"L293+N293+P293+R293+T293+V293+X293+Z293+AB293+AD293","v":0}]
["40-1",null,null,null,null,"40 - 44","Presencial",null,0,0]
["40-2",null,null,null,null,null,"Semipresencial",null,{"$f":"K295+M295+O295+Q295+S295+U295+W295+Y295+AA295+AC295","v":0},{"$f":"L295+N295+P295+R295+T295+V295+X295+Z295+AB295+AD295","v":0}]
["40-3",null,null,null,null,null,"A distancia",null,{"$f":"K296+M296+O296+Q296+S296+U296+W296+Y296+AA296+AC296","v":0},{"$f":"L296+N296+P296+R296+T296+V296+X296+Z296+AB296+AD296","v":0}]
["45-1",null,null,null,null,"45 - 49","Presencial",null,0,0]
["45-2",null,null,null,null,null,"Semipresencial",null,{"$f":"K298+M298+O298+Q298+S298+U298+W298+Y298+AA298+AC298","v":0},{"$f":"L298+N298+P298+R298+T298+V298+X298+Z298+AB298+AD298","v":0}]
["45-3",null,null,null,null,null,"A distancia",null,{"$f":"K299+M299+O299+Q299+S299+U299+W299+Y299+AA299+AC299","v":0},{"$f":"L299+N299+P299+R299+T299+V299+X299+Z299+AB299+AD299","v":0}]
["50-1",null,null,null,null,"50 - 54","Presencial",null,0,0]
["50-2",null,null,null,null,null,"Semipresencial",null,{"$f":"K301+M301+O301+Q301+S301+U301+W301+Y301+AA301+AC301","v":0},{"$f":"L301+N301+P301+R301+T301+V301+X301+Z301+AB301+AD301","v":0}]
["50-3",null,null,null,null,null,"A distancia",null,{"$f":"K302+M302+O302+Q302+S302+U302+W302+Y302+AA302+AC302","v":0},{"$f":"L302+N302+P302+R302+T302+V302+X302+Z302+AB302+AD302","v":0}]
["55-1",null,null,null,null,"55 - 59","Presencial",null,0,0]
["55-2",null,null,null,null,null,"Semipresencial",null,{"$f":"K304+M304+O304+Q304+S304+U304+W304+Y304+AA304+AC304","v":0},{"$f":"L304+N304+P304+R304+T304+V304+X304+Z304+AB304+AD304","v":0}]
["55-3",null,null,null,null,null,"A distancia",null,{"$f":"K305+M305+O305+Q305+S305+U305+W305+Y305+AA305+AC305","v":0},{"$f":"L305+N305+P305+R305+T305+V305+X305+Z305+AB305+AD305","v":0}]
["60-1",null,null,null,null,"60 y más","Presencial",null,{"$f":"K306+M306+O306+Q306+S306+U306+W306+Y306+AA306+AC306","v":0},0]
["60-2",null,null,null,null,null,"Semipresencial",null,{"$f":"K307+M307+O307+Q307+S307+U307+W307+Y307+AA307+AC307","v":0},{"$f":"L307+N307+P307+R307+T307+V307+X307+Z307+AB307+AD307","v":0}]
["60-3",null,null,null,null,null,"A distancia",null,{"$f":"K308+M308+O308+Q308+S308+U308+W308+Y308+AA308+AC308","v":0},{"$f":"L308+N308+P308+R308+T308+V308+X308+Z308+AB308+AD308","v":0}]
[null,null,null,null,null,"NOTA: Incluya a los estudiantes con algún tipo de discapacidad u otra condición."]
[null,null,null,null,null,null,null,null,null,null,{"$f":"P316","v":0},{"$f":"Q316","v":0},0,0,0,0,0,0,0,0,0,0,0,0,0,0,0,0,0,0]
[null,null,null,null,null,210," MATRÍCULA EN EDUCACIÓN ARTÍSTICA, POR CICLOS Y SEXO, SEGÚN CARRERA Y MODALIDAD DEL SERVICIO"]
[]
[null,null,null,null,null,"CARRERAS",null,null,null,null,null,null,null,"TOTAL",null,"CICLO"]
[null,null,null,null,null,null,null,null,null,null,null,"MODALIDADES",null,null,null,"I",null,"II",null,"III",null,"IV",null,"V",null,"VI",null,"VII",null,"VIII",null,"IX",null,"X"]
[null,null,null,null,null,"CÓDIGO","DENOMINACIÓN",null,null,null,null,null,null,"H","M","H","M","H","M","H","M","H","M","H","M","H","M","H","M","H","M","H","M","H","M"]
[{"$f":"F316","v":"0000000000"},null,null,null,null,"0000000000","TOTAL",null,null,null,null,null,null,{"$f":"P316+R316+T316+V316+X316+Z316+AB316+AD316+AF316+AH316","v":0},{"$f":"Q316+S316+U316+W316+Y316+AA316+AC316+AE316+AG316+AI316","v":0},{"$f":"SUM(P317:P379)","v":0},0,0,0,0,0,0,0,0,0,0,0,0,0,0,0,0,0,0,0]
[{"$f":"IF(F317<>\"\",CONCATENATE(\"1\",MID(F317,2,9)),\"\")","v":""},{"$f":"CONCATENATE(F317,LEFT(G317,5))","v":""},{"$f":"IF(AND(B317<>\"\",SUM(P317:AI319)=0),1,0)","v":0},{"$f":"IF(B317<>\"\",IF(OR(F317=\"\",G317=\"\"),1,0),\"\")","v":""},null,null,{"$f":"IF(ISERROR(VLOOKUP($F317,Carrera,2,FALSE)),\"\",VLOOKUP($F317,Carrera,2,FALSE))","v":""},null,null,null,null,"Presencial",null,{"$f":"P317+R317+T317+V317+X317+Z317+AB317+AD317+AF317+AH317","v":0},{"$f":"Q317+S317+U317+W317+Y317+AA317+AC317+AE317+AG317+AI317","v":0}]
[{"$f":"IF(F318<>\"\",CONCATENATE(\"2\",MID(F318,2,9)),\"\")","v":""},null,null,null,null,{"$f":"IF(F317<>\"\",F317,\"\")","v":""},null,null,null,null,null,"Semipresencial",null,0,0]
[{"$f":"IF(F319<>\"\",CONCATENATE(\"3\",MID(F319,2,9)),\"\")","v":""},null,null,null,null,{"$f":"IF(F317<>\"\",F317,\"\")","v":""},null,null,null,null,null,"A distancia",null,0,0]
[{"$f":"IF(F320<>\"\",CONCATENATE(\"1\",MID(F320,2,9)),\"\")","v":""},{"$f":"CONCATENATE(F320,LEFT(G320,5))","v":""},{"$f":"IF(AND(B320<>\"\",SUM(P320:AI322)=0),1,0)","v":0},{"$f":"IF(B320<>\"\",IF(OR(F320=\"\",G320=\"\"),1,0),\"\")","v":""},null,null,{"$f":"IF(ISERROR(VLOOKUP($F320,Carrera,2,FALSE)),\"\",VLOOKUP($F320,Carrera,2,FALSE))","v":""},null,null,null,null,"Presencial",null,0,0]
[{"$f":"IF(F321<>\"\",CONCATENATE(\"2\",MID(F321,2,9)),\"\")","v":""},null,null,null,null,{"$f":"IF(F320<>\"\",F320,\"\")","v":""},null,null,null,null,null,"Semipresencial",null,0,0]
[{"$f":"IF(F322<>\"\",CONCATENATE(\"3\",MID(F322,2,9)),\"\")","v":""},null,null,null,null,{"$f":"IF(F320<>\"\",F320,\"\")","v":""},null,null,null,null,null,"A distancia",null,0,0]
[{"$f":"IF(F323<>\"\",CONCATENATE(\"1\",MID(F323,2,9)),\"\")","v":""},{"$f":"CONCATENATE(F323,LEFT(G323,5))","v":""},{"$f":"IF(AND(B323<>\"\",SUM(P323:AI325)=0),1,0)","v":0},{"$f":"IF(B323<>\"\",IF(OR(F323=\"\",G323=\"\"),1,0),\"\")","v":""},null,null,{"$f":"IF(ISERROR(VLOOKUP($F323,Carrera,2,FALSE)),\"\",VLOOKUP($F323,Carrera,2,FALSE))","v":""},null,null,null,null,"Presencial",null,0,0]
[{"$f":"IF(F324<>\"\",CONCATENATE(\"2\",MID(F324,2,9)),\"\")","v":""},null,null,null,null,{"$f":"IF(F323<>\"\",F323,\"\")","v":""},null,null,null,null,null,"Semipresencial",null,{"$f":"P324+R324+T324+V324+X324+Z324+AB324+AD324+AF324+AH324","v":0},{"$f":"Q324+S324+U324+W324+Y324+AA324+AC324+AE324+AG324+AI324","v":0}]
[{"$f":"IF(F325<>\"\",CONCATENATE(\"3\",MID(F325,2,9)),\"\")","v":""},null,null,null,null,{"$f":"IF(F323<>\"\",F323,\"\")","v":""},null,null,null,null,null,"A distancia",null,{"$f":"P325+R325+T325+V325+X325+Z325+AB325+AD325+AF325+AH325","v":0},{"$f":"Q325+S325+U325+W325+Y325+AA325+AC325+AE325+AG325+AI325","v":0}]
[{"$f":"IF(F326<>\"\",CONCATENATE(\"1\",MID(F326,2,9)),\"\")","v":""},{"$f":"CONCATENATE(F326,LEFT(G326,5))","v":""},{"$f":"IF(AND(B326<>\"\",SUM(P326:AI328)=0),1,0)","v":0},{"$f":"IF(B326<>\"\",IF(OR(F326=\"\",G326=\"\"),1,0),\"\")","v":""},null,null,{"$f":"IF(ISERROR(VLOOKUP($F326,Carrera,2,FALSE)),\"\",VLOOKUP($F326,Carrera,2,FALSE))","v":""},null,null,null,null,"Presencial",null,{"$f":"P326+R326+T326+V326+X326+Z326+AB326+AD326+AF326+AH326","v":0},{"$f":"Q326+S326+U326+W326+Y326+AA326+AC326+AE326+AG326+AI326","v":0}]
[{"$f":"IF(F327<>\"\",CONCATENATE(\"2\",MID(F327,2,9)),\"\")","v":""},null,null,null,null,{"$f":"IF(F326<>\"\",F326,\"\")","v":""},null,null,null,null,null,"Semipresencial",null,0,0]
[{"$f":"IF(F328<>\"\",CONCATENATE(\"3\",MID(F328,2,9)),\"\")","v":""},null,null,null,null,{"$f":"IF(F326<>\"\",F326,\"\")","v":""},null,null,null,null,null,"A distancia",null,0,0]
[{"$f":"IF(F329<>\"\",CONCATENATE(\"1\",MID(F329,2,9)),\"\")","v":""},{"$f":"CONCATENATE(F329,LEFT(G329,5))","v":""},{"$f":"IF(AND(B329<>\"\",SUM(P329:AI331)=0),1,0)","v":0},{"$f":"IF(B329<>\"\",IF(OR(F329=\"\",G329=\"\"),1,0),\"\")","v":""},null,null,{"$f":"IF(ISERROR(VLOOKUP($F329,Carrera,2,FALSE)),\"\",VLOOKUP($F329,Carrera,2,FALSE))","v":""},null,null,null,null,"Presencial",null,0,0]
[{"$f":"IF(F330<>\"\",CONCATENATE(\"2\",MID(F330,2,9)),\"\")","v":""},null,null,null,null,{"$f":"IF(F329<>\"\",F329,\"\")","v":""},null,null,null,null,null,"Semipresencial",null,0,0]
[{"$f":"IF(F331<>\"\",CONCATENATE(\"3\",MID(F331,2,9)),\"\")","v":""},null,null,null,null,{"$f":"IF(F329<>\"\",F329,\"\")","v":""},null,null,null,null,null,"A distancia",null,0,0]
[{"$f":"IF(F332<>\"\",CONCATENATE(\"1\",MID(F332,2,9)),\"\")","v":""},{"$f":"CONCATENATE(F332,LEFT(G332,5))","v":""},{"$f":"IF(AND(B332<>\"\",SUM(P332:AI334)=0),1,0)","v":0},{"$f":"IF(B332<>\"\",IF(OR(F332=\"\",G332=\"\"),1,0),\"\")","v":""},null,null,{"$f":"IF(ISERROR(VLOOKUP($F332,Carrera,2,FALSE)),\"\",VLOOKUP($F332,Carrera,2,FALSE))","v":""},null,null,null,null,"Presencial",null,0,0]
[{"$f":"IF(F333<>\"\",CONCATENATE(\"2\",MID(F333,2,9)),\"\")","v":""},null,null,null,null,{"$f":"IF(F332<>\"\",F332,\"\")","v":""},null,null,null,null,null,"Semipresencial",null,0,0]
[{"$f":"IF(F334<>\"\",CONCATENATE(\"3\",MID(F334,2,9)),\"\")","v":""},null,null,null,null,{"$f":"IF(F332<>\"\",F332,\"\")","v":""},null,null,null,null,null,"A distancia",null,0,0]
[{"$f":"IF(F335<>\"\",CONCATENATE(\"1\",MID(F335,2,9)),\"\")","v":""},{"$f":"CONCATENATE(F335,LEFT(G335,5))","v":""},{"$f":"IF(AND(B335<>\"\",SUM(P335:AI337)=0),1,0)","v":0},{"$f":"IF(B335<>\"\",IF(OR(F335=\"\",G335=\"\"),1,0),\"\")","v":""},null,null,{"$f":"IF(ISERROR(VLOOKUP($F335,Carrera,2,FALSE)),\"\",VLOOKUP($F335,Carrera,2,FALSE))","v":""},null,null,null,null,"Presencial",null,0,0]
[{"$f":"IF(F336<>\"\",CONCATENATE(\"2\",MID(F336,2,9)),\"\")","v":""},null,null,null,null,{"$f":"IF(F335<>\"\",F335,\"\")","v":""},null,null,null,null,null,"Semipresencial",null,0,0]
[{"$f":"IF(F337<>\"\",CONCATENATE(\"3\",MID(F337,2,9)),\"\")","v":""},null,null,null,null,{"$f":"IF(F335<>\"\",F335,\"\")","v":""},null,null,null,null,null,"A distancia",null,0,0]
[{"$f":"IF(F338<>\"\",CONCATENATE(\"1\",MID(F338,2,9)),\"\")","v":""},{"$f":"CONCATENATE(F338,LEFT(G338,5))","v":""},{"$f":"IF(AND(B338<>\"\",SUM(P338:AI340)=0),1,0)","v":0},{"$f":"IF(B338<>\"\",IF(OR(F338=\"\",G338=\"\"),1,0),\"\")","v":""},null,null,{"$f":"IF(ISERROR(VLOOKUP($F338,Carrera,2,FALSE)),\"\",VLOOKUP($F338,Carrera,2,FALSE))","v":""},null,null,null,null,"Presencial",null,0,0]
[{"$f":"IF(F339<>\"\",CONCATENATE(\"2\",MID(F339,2,9)),\"\")","v":""},null,null,null,null,{"$f":"IF(F338<>\"\",F338,\"\")","v":""},null,null,null,null,null,"Semipresencial",null,0,0]
[{"$f":"IF(F340<>\"\",CONCATENATE(\"3\",MID(F340,2,9)),\"\")","v":""},null,null,null,null,{"$f":"IF(F338<>\"\",F338,\"\")","v":""},null,null,null,null,null,"A distancia",null,0,0]
[{"$f":"IF(F341<>\"\",CONCATENATE(\"1\",MID(F341,2,9)),\"\")","v":""},{"$f":"CONCATENATE(F341,LEFT(G341,5))","v":""},{"$f":"IF(AND(B341<>\"\",SUM(P341:AI343)=0),1,0)","v":0},{"$f":"IF(B341<>\"\",IF(OR(F341=\"\",G341=\"\"),1,0),\"\")","v":""},null,null,{"$f":"IF(ISERROR(VLOOKUP($F341,Carrera,2,FALSE)),\"\",VLOOKUP($F341,Carrera,2,FALSE))","v":""},null,null,null,null,"Presencial",null,0,0]
[{"$f":"IF(F342<>\"\",CONCATENATE(\"2\",MID(F342,2,9)),\"\")","v":""},null,null,null,null,{"$f":"IF(F341<>\"\",F341,\"\")","v":""},null,null,null,null,null,"Semipresencial",null,0,0]
[{"$f":"IF(F343<>\"\",CONCATENATE(\"3\",MID(F343,2,9)),\"\")","v":""},null,null,null,null,{"$f":"IF(F341<>\"\",F341,\"\")","v":""},null,null,null,null,null,"A distancia",null,0,0]
[{"$f":"IF(F344<>\"\",CONCATENATE(\"1\",MID(F344,2,9)),\"\")","v":""},{"$f":"CONCATENATE(F344,LEFT(G344,5))","v":""},{"$f":"IF(AND(B344<>\"\",SUM(P344:AI346)=0),1,0)","v":0},{"$f":"IF(B344<>\"\",IF(OR(F344=\"\",G344=\"\"),1,0),\"\")","v":""},null,null,{"$f":"IF(ISERROR(VLOOKUP($F344,Carrera,2,FALSE)),\"\",VLOOKUP($F344,Carrera,2,FALSE))","v":""},null,null,null,null,"Presencial",null,0,0]
[{"$f":"IF(F345<>\"\",CONCATENATE(\"2\",MID(F345,2,9)),\"\")","v":""},null,null,null,null,{"$f":"IF(F344<>\"\",F344,\"\")","v":""},null,null,null,null,null,"Semipresencial",null,0,0]
[{"$f":"IF(F346<>\"\",CONCATENATE(\"3\",MID(F346,2,9)),\"\")","v":""},null,null,null,null,{"$f":"IF(F344<>\"\",F344,\"\")","v":""},null,null,null,null,null,"A distancia",null,0,0]
[{"$f":"IF(F347<>\"\",CONCATENATE(\"1\",MID(F347,2,9)),\"\")","v":""},{"$f":"CONCATENATE(F347,LEFT(G347,5))","v":""},{"$f":"IF(AND(B347<>\"\",SUM(P347:AI349)=0),1,0)","v":0},{"$f":"IF(B347<>\"\",IF(OR(F347=\"\",G347=\"\"),1,0),\"\")","v":""},null,null,{"$f":"IF(ISERROR(VLOOKUP($F347,Carrera,2,FALSE)),\"\",VLOOKUP($F347,Carrera,2,FALSE))","v":""},null,null,null,null,"Presencial",null,0,0]
[{"$f":"IF(F348<>\"\",CONCATENATE(\"2\",MID(F348,2,9)),\"\")","v":""},null,null,null,null,{"$f":"IF(F347<>\"\",F347,\"\")","v":""},null,null,null,null,null,"Semipresencial",null,0,0]
[{"$f":"IF(F349<>\"\",CONCATENATE(\"3\",MID(F349,2,9)),\"\")","v":""},null,null,null,null,{"$f":"IF(F347<>\"\",F347,\"\")","v":""},null,null,null,null,null,"A distancia",null,0,0]
[{"$f":"IF(F350<>\"\",CONCATENATE(\"1\",MID(F350,2,9)),\"\")","v":""},{"$f":"CONCATENATE(F350,LEFT(G350,5))","v":""},{"$f":"IF(AND(B350<>\"\",SUM(P350:AI352)=0),1,0)","v":0},{"$f":"IF(B350<>\"\",IF(OR(F350=\"\",G350=\"\"),1,0),\"\")","v":""},null,null,{"$f":"IF(ISERROR(VLOOKUP($F350,Carrera,2,FALSE)),\"\",VLOOKUP($F350,Carrera,2,FALSE))","v":""},null,null,null,null,"Presencial",null,0,0]
[{"$f":"IF(F351<>\"\",CONCATENATE(\"2\",MID(F351,2,9)),\"\")","v":""},null,null,null,null,{"$f":"IF(F350<>\"\",F350,\"\")","v":""},null,null,null,null,null,"Semipresencial",null,0,0]
[{"$f":"IF(F352<>\"\",CONCATENATE(\"3\",MID(F352,2,9)),\"\")","v":""},null,null,null,null,{"$f":"IF(F350<>\"\",F350,\"\")","v":""},null,null,null,null,null,"A distancia",null,0,0]
[{"$f":"IF(F353<>\"\",CONCATENATE(\"1\",MID(F353,2,9)),\"\")","v":""},{"$f":"CONCATENATE(F353,LEFT(G353,5))","v":""},{"$f":"IF(AND(B353<>\"\",SUM(P353:AI355)=0),1,0)","v":0},{"$f":"IF(B353<>\"\",IF(OR(F353=\"\",G353=\"\"),1,0),\"\")","v":""},null,null,{"$f":"IF(ISERROR(VLOOKUP($F353,Carrera,2,FALSE)),\"\",VLOOKUP($F353,Carrera,2,FALSE))","v":""},null,null,null,null,"Presencial",null,0,0]
[{"$f":"IF(F354<>\"\",CONCATENATE(\"2\",MID(F354,2,9)),\"\")","v":""},null,null,null,null,{"$f":"IF(F353<>\"\",F353,\"\")","v":""},null,null,null,null,null,"Semipresencial",null,0,0]
[{"$f":"IF(F355<>\"\",CONCATENATE(\"3\",MID(F355,2,9)),\"\")","v":""},null,null,null,null,{"$f":"IF(F353<>\"\",F353,\"\")","v":""},null,null,null,null,null,"A distancia",null,0,0]
[{"$f":"IF(F356<>\"\",CONCATENATE(\"1\",MID(F356,2,9)),\"\")","v":""},{"$f":"CONCATENATE(F356,LEFT(G356,5))","v":""},{"$f":"IF(AND(B356<>\"\",SUM(P356:AI358)=0),1,0)","v":0},{"$f":"IF(B356<>\"\",IF(OR(F356=\"\",G356=\"\"),1,0),\"\")","v":""},null,null,{"$f":"IF(ISERROR(VLOOKUP($F356,Carrera,2,FALSE)),\"\",VLOOKUP($F356,Carrera,2,FALSE))","v":""},null,null,null,null,"Presencial",null,0,0]
[{"$f":"IF(F357<>\"\",CONCATENATE(\"2\",MID(F357,2,9)),\"\")","v":""},null,null,null,null,{"$f":"IF(F356<>\"\",F356,\"\")","v":""},null,null,null,null,null,"Semipresencial",null,0,0]
[{"$f":"IF(F358<>\"\",CONCATENATE(\"3\",MID(F358,2,9)),\"\")","v":""},null,null,null,null,{"$f":"IF(F356<>\"\",F356,\"\")","v":""},null,null,null,null,null,"A distancia",null,0,0]
[{"$f":"IF(F359<>\"\",CONCATENATE(\"1\",MID(F359,2,9)),\"\")","v":""},{"$f":"CONCATENATE(F359,LEFT(G359,5))","v":""},{"$f":"IF(AND(B359<>\"\",SUM(P359:AI361)=0),1,0)","v":0},{"$f":"IF(B359<>\"\",IF(OR(F359=\"\",G359=\"\"),1,0),\"\")","v":""},null,null,{"$f":"IF(ISERROR(VLOOKUP($F359,Carrera,2,FALSE)),\"\",VLOOKUP($F359,Carrera,2,FALSE))","v":""},null,null,null,null,"Presencial",null,0,0]
[{"$f":"IF(F360<>\"\",CONCATENATE(\"2\",MID(F360,2,9)),\"\")","v":""},null,null,null,null,{"$f":"IF(F359<>\"\",F359,\"\")","v":""},null,null,null,null,null,"Semipresencial",null,0,0]
[{"$f":"IF(F361<>\"\",CONCATENATE(\"3\",MID(F361,2,9)),\"\")","v":""},null,null,null,null,{"$f":"IF(F359<>\"\",F359,\"\")","v":""},null,null,null,null,null,"A distancia",null,0,0]
[{"$f":"IF(F362<>\"\",CONCATENATE(\"1\",MID(F362,2,9)),\"\")","v":""},{"$f":"CONCATENATE(F362,LEFT(G362,5))","v":""},{"$f":"IF(AND(B362<>\"\",SUM(P362:AI364)=0),1,0)","v":0},{"$f":"IF(B362<>\"\",IF(OR(F362=\"\",G362=\"\"),1,0),\"\")","v":""},null,null,{"$f":"IF(ISERROR(VLOOKUP($F362,Carrera,2,FALSE)),\"\",VLOOKUP($F362,Carrera,2,FALSE))","v":""},null,null,null,null,"Presencial",null,0,0]
[{"$f":"IF(F363<>\"\",CONCATENATE(\"2\",MID(F363,2,9)),\"\")","v":""},null,null,null,null,{"$f":"IF(F362<>\"\",F362,\"\")","v":""},null,null,null,null,null,"Semipresencial",null,0,0]
[{"$f":"IF(F364<>\"\",CONCATENATE(\"3\",MID(F364,2,9)),\"\")","v":""},null,null,null,null,{"$f":"IF(F362<>\"\",F362,\"\")","v":""},null,null,null,null,null,"A distancia",null,0,0]
[{"$f":"IF(F365<>\"\",CONCATENATE(\"1\",MID(F365,2,9)),\"\")","v":""},{"$f":"CONCATENATE(F365,LEFT(G365,5))","v":""},{"$f":"IF(AND(B365<>\"\",SUM(P365:AI367)=0),1,0)","v":0},{"$f":"IF(B365<>\"\",IF(OR(F365=\"\",G365=\"\"),1,0),\"\")","v":""},null,null,{"$f":"IF(ISERROR(VLOOKUP($F365,Carrera,2,FALSE)),\"\",VLOOKUP($F365,Carrera,2,FALSE))","v":""},null,null,null,null,"Presencial",null,0,0]
[{"$f":"IF(F366<>\"\",CONCATENATE(\"2\",MID(F366,2,9)),\"\")","v":""},null,null,null,null,{"$f":"IF(F365<>\"\",F365,\"\")","v":""},null,null,null,null,null,"Semipresencial",null,0,0]
[{"$f":"IF(F367<>\"\",CONCATENATE(\"3\",MID(F367,2,9)),\"\")","v":""},null,null,null,null,{"$f":"IF(F365<>\"\",F365,\"\")","v":""},null,null,null,null,null,"A distancia",null,0,0]
[{"$f":"IF(F368<>\"\",CONCATENATE(\"1\",MID(F368,2,9)),\"\")","v":""},{"$f":"CONCATENATE(F368,LEFT(G368,5))","v":""},{"$f":"IF(AND(B368<>\"\",SUM(P368:AI370)=0),1,0)","v":0},{"$f":"IF(B368<>\"\",IF(OR(F368=\"\",G368=\"\"),1,0),\"\")","v":""},null,null,{"$f":"IF(ISERROR(VLOOKUP($F368,Carrera,2,FALSE)),\"\",VLOOKUP($F368,Carrera,2,FALSE))","v":""},null,null,null,null,"Presencial",null,0,0]
[{"$f":"IF(F369<>\"\",CONCATENATE(\"2\",MID(F369,2,9)),\"\")","v":""},null,null,null,null,{"$f":"IF(F368<>\"\",F368,\"\")","v":""},null,null,null,null,null,"Semipresencial",null,0,0]
[{"$f":"IF(F370<>\"\",CONCATENATE(\"3\",MID(F370,2,9)),\"\")","v":""},null,null,null,null,{"$f":"IF(F368<>\"\",F368,\"\")","v":""},null,null,null,null,null,"A distancia",null,0,0]
[{"$f":"IF(F371<>\"\",CONCATENATE(\"1\",MID(F371,2,9)),\"\")","v":""},{"$f":"CONCATENATE(F371,LEFT(G371,5))","v":""},{"$f":"IF(AND(B371<>\"\",SUM(P371:AI373)=0),1,0)","v":0},{"$f":"IF(B371<>\"\",IF(OR(F371=\"\",G371=\"\"),1,0),\"\")","v":""},null,null,{"$f":"IF(ISERROR(VLOOKUP($F371,Carrera,2,FALSE)),\"\",VLOOKUP($F371,Carrera,2,FALSE))","v":""},null,null,null,null,"Presencial",null,0,0]
[{"$f":"IF(F372<>\"\",CONCATENATE(\"2\",MID(F372,2,9)),\"\")","v":""},null,null,null,null,{"$f":"IF(F371<>\"\",F371,\"\")","v":""},null,null,null,null,null,"Semipresencial",null,0,0]
[{"$f":"IF(F373<>\"\",CONCATENATE(\"3\",MID(F373,2,9)),\"\")","v":""},null,null,null,null,{"$f":"IF(F371<>\"\",F371,\"\")","v":""},null,null,null,null,null,"A distancia",null,0,0]
[{"$f":"IF(F374<>\"\",CONCATENATE(\"1\",MID(F374,2,9)),\"\")","v":""},{"$f":"CONCATENATE(F374,LEFT(G374,5))","v":""},{"$f":"IF(AND(B374<>\"\",SUM(P374:AI376)=0),1,0)","v":0},{"$f":"IF(B374<>\"\",IF(OR(F374=\"\",G374=\"\"),1,0),\"\")","v":""},null,null,{"$f":"IF(ISERROR(VLOOKUP($F374,Carrera,2,FALSE)),\"\",VLOOKUP($F374,Carrera,2,FALSE))","v":""},null,null,null,null,"Presencial",null,0,0]
[{"$f":"IF(F375<>\"\",CONCATENATE(\"2\",MID(F375,2,9)),\"\")","v":""},null,null,null,null,{"$f":"IF(F374<>\"\",F374,\"\")","v":""},null,null,null,null,null,"Semipresencial",null,0,0]
[{"$f":"IF(F376<>\"\",CONCATENATE(\"3\",MID(F376,2,9)),\"\")","v":""},null,null,null,null,{"$f":"IF(F374<>\"\",F374,\"\")","v":""},null,null,null,null,null,"A distancia",null,0,0]
[{"$f":"IF(F377<>\"\",CONCATENATE(\"1\",MID(F377,2,9)),\"\")","v":""},{"$f":"CONCATENATE(F377,LEFT(G377,5))","v":""},{"$f":"IF(AND(B377<>\"\",SUM(P377:AI379)=0),1,0)","v":0},{"$f":"IF(B377<>\"\",IF(OR(F377=\"\",G377=\"\"),1,0),\"\")","v":""},null,null,{"$f":"IF(ISERROR(VLOOKUP($F377,Carrera,2,FALSE)),\"\",VLOOKUP($F377,Carrera,2,FALSE))","v":""},null,null,null,null,"Presencial",null,0,0]
[{"$f":"IF(F378<>\"\",CONCATENATE(\"2\",MID(F378,2,9)),\"\")","v":""},null,null,null,null,{"$f":"IF(F377<>\"\",F377,\"\")","v":""},null,null,null,null,null,"Semipresencial",null,0,0]
[{"$f":"IF(F379<>\"\",CONCATENATE(\"3\",MID(F379,2,9)),\"\")","v":""},null,null,null,null,{"$f":"IF(F377<>\"\",F377,\"\")","v":""},null,null,null,null,null,"A distancia",null,0,0]
[]
[]
[null,null,null,null,null,211,"POSTULANTES E INGRESANTES EN EDUCACIÓN ARTÍSTICA, POR SEXO, SEGÚN CARRERA"]
[]
[null,null,null,null,null,"CARRERA",null,null,null,null,null,null,null,"SEMESTRE ACADÉMICO 2025-I"]
[null,null,null,null,null,null,null,null,null,null,null,null,null,"POSTULANTES",null,null,null,"INGRESANTES"]
[null,null,null,null,null,"CÓDIGO","DENOMINACIÓN",null,null,null,null,null,null,"H",null,"M",null,"H",null,"M"]
[null,null,null,null,null,"0000000000","TOTAL",null,null,null,null,null,null,{"$f":"SUM(N388:O408)","v":0},null,{"$f":"SUM(P388:Q408)","v":0},null,{"$f":"SUM(R388:S408)","v":0},null,{"$f":"SUM(T388:U408)","v":0}]
[null,null,null,null,null,{"$f":"IF(F317<>\"\",F317,\"\")","v":""},{"$f":"IF(G317<>\"\",G317,\"\")","v":""}]
[null,null,null,null,null,{"$f":"IF(F320<>\"\",F320,\"\")","v":""},{"$f":"IF(G320<>\"\",G320,\"\")","v":""}]
[null,null,null,null,null,{"$f":"IF(F323<>\"\",F323,\"\")","v":""},{"$f":"IF(G323<>\"\",G323,\"\")","v":""}]
[null,null,null,null,null,{"$f":"IF(F326<>\"\",F326,\"\")","v":""},{"$f":"IF(G326<>\"\",G326,\"\")","v":""}]
[null,null,null,null,null,{"$f":"IF(F329<>\"\",F329,\"\")","v":""},{"$f":"IF(G329<>\"\",G329,\"\")","v":""}]
[null,null,null,null,null,{"$f":"IF(F332<>\"\",F332,\"\")","v":""},{"$f":"IF(G332<>\"\",G332,\"\")","v":""}]
[null,null,null,null,null,{"$f":"IF(F335<>\"\",F335,\"\")","v":""},{"$f":"IF(G335<>\"\",G335,\"\")","v":""}]
[null,null,null,null,null,{"$f":"IF(F338<>\"\",F338,\"\")","v":""},{"$f":"IF(G338<>\"\",G338,\"\")","v":""}]
[null,null,null,null,null,{"$f":"IF(F341<>\"\",F341,\"\")","v":""},{"$f":"IF(G341<>\"\",G341,\"\")","v":""}]
[null,null,null,null,null,{"$f":"IF(F344<>\"\",F344,\"\")","v":""},{"$f":"IF(G344<>\"\",G344,\"\")","v":""}]
[null,null,null,null,null,{"$f":"IF(F347<>\"\",F347,\"\")","v":""},{"$f":"IF(G347<>\"\",G347,\"\")","v":""}]
[null,null,null,null,null,{"$f":"IF(F350<>\"\",F350,\"\")","v":""},{"$f":"IF(G350<>\"\",G350,\"\")","v":""}]
[null,null,null,null,null,{"$f":"IF(F353<>\"\",F353,\"\")","v":""},{"$f":"IF(G353<>\"\",G353,\"\")","v":""}]
[null,null,null,null,null,{"$f":"IF(F356<>\"\",F356,\"\")","v":""},{"$f":"IF(G356<>\"\",G356,\"\")","v":""}]
[null,null,null,null,null,{"$f":"IF(F359<>\"\",F359,\"\")","v":""},{"$f":"IF(G359<>\"\",G359,\"\")","v":""}]
[null,null,null,null,null,{"$f":"IF(F362<>\"\",F362,\"\")","v":""},{"$f":"IF(G362<>\"\",G362,\"\")","v":""}]
[null,null,null,null,null,{"$f":"IF(F365<>\"\",F365,\"\")","v":""},{"$f":"IF(G365<>\"\",G365,\"\")","v":""}]
[null,null,null,null,null,{"$f":"IF(F368<>\"\",F368,\"\")","v":""},{"$f":"IF(G368<>\"\",G368,\"\")","v":""}]
[null,null,null,null,null,{"$f":"IF(F371<>\"\",F371,\"\")","v":""},{"$f":"IF(G371<>\"\",G371,\"\")","v":""}]
[null,null,null,null,null,{"$f":"IF(F374<>\"\",F374,\"\")","v":""},{"$f":"IF(G374<>\"\",G374,\"\")","v":""}]
[null,null,null,null,null,{"$f":"IF(F377<>\"\",F377,\"\")","v":""},{"$f":"IF(G377<>\"\",G377,\"\")","v":""}]
[]
[]
[null,null,null,null,null,212,"INGRESANTES EN EDUCACIÓN ARTÍSTICA, POR EDAD, SEGÚN SEXO"]
[]
[null,null,null,null,null,"SEXO",null,"TOTAL","EDAD EN AÑOS CUMPLIDOS AL 31 DE MARZO DE 2025 / SEMESTRE 2025-I"]
[null,null,null,null,null,null,null,null,15,16,17,18,19,20,21,22,23,24,"25-29","30-34","35-39","40-44","45-49","50-54","55-59","60\ny más"]
["01",null,null,null,null,"Hombre",null,{"$f":"SUM(I415:Z415)","v":0}]
["02",null,null,null,null,"Mujer",null,{"$f":"SUM(I416:Z416)","v":0}]
[null,null,null,null,null,"Nota: Los totales de esta tabla deben ser iguales a los reportados en la columna “Ingresantes” de la tabla 211."]
[]
[null,null,null,null,null,213,"MATRÍCULA EN EDUCACIÓN ARTÍSTICA, POR SEXO Y CICLO I, SEGÚN AÑO DE EGRESO DE LA EDUCACIÓN BÁSICA REGULAR"]
[]
[null,null,null,null,null,"SEXO",null,"TOTAL","AÑO QUE EGRESO O TERMINÓ LA EDUCACIÓN BÁSICA REGULAR"]
[null,null,null,null,null,null,null,null,2024,2023,2022,2021,2020,2019,2018,2017," Menor al 2017"]
["01",null,null,null,null,"Hombre",null,{"$f":"SUM(I423:Q423)","v":0}]
["02",null,null,null,null,"Mujer",null,{"$f":"SUM(I424:Q424)","v":0}]
[]
[]
[null,null,null,null,null,214," MATRÍCULA EN EDUCACIÓN ARTÍSTICA, POR CICLO Y SEXO, SEGÚN LENGUA MATERNA\n(Sumar todos los turnos). Registrar la información del semestre académico 2024-I"]
[]
[null,null,null,null,null,null,"LENGUA MATERNA",null,null,"TOTAL",null,"CICLO"]
[null,null,null,null,null,"CÓDIGO",null,null,null,null,null,"I",null,"II",null,"III",null,"IV",null,"V",null,"VI",null,"VII",null,"VIII",null,"IX",null,"X"]
[null,null,null,null,null,null,null,null,null,"H","M","H","M","H","M","H","M","H","M","H","M","H","M","H","M","H","M","H","M","H","M"]
[null,null,null,null,null,"0000 : TOTAL",null,null,null,{"$f":"L432+N432+P432+R432+T432+V432+X432+Z432+AB432+AD432","v":0},{"$f":"M432+O432+Q432+S432+U432+W432+Y432+AA432+AC432+AE432","v":0},{"$f":"SUM(L433:L452)","v":0},{"$f":"SUM(M433:M452)","v":0},{"$f":"SUM(N433:N452)","v":0},{"$f":"SUM(O433:O452)","v":0},{"$f":"SUM(P433:P452)","v":0},{"$f":"SUM(Q433:Q452)","v":0},{"$f":"SUM(R433:R452)","v":0},{"$f":"SUM(S433:S452)","v":0},{"$f":"SUM(T433:T452)","v":0},{"$f":"SUM(U433:U452)","v":0},{"$f":"SUM(V433:V452)","v":0},{"$f":"SUM(W433:W452)","v":0},{"$f":"SUM(X433:X452)","v":0},{"$f":"SUM(Y433:Y452)","v":0},{"$f":"SUM(Z433:Z452)","v":0},{"$f":"SUM(AA433:AA452)","v":0},{"$f":"SUM(AB433:AB452)","v":0},{"$f":"SUM(AC433:AC452)","v":0},{"$f":"SUM(AD433:AD452)","v":0},{"$f":"SUM(AE433:AE452)","v":0}]
[null,null,null,null,null,null,null,null,null,0,0]
[null,null,null,null,null,null,null,null,null,0,0]
[null,null,null,null,null,null,null,null,null,0,0]
[null,null,null,null,null,null,null,null,null,0,0]
[null,null,null,null,null,null,null,null,null,0,0]
[null,null,null,null,null,null,null,null,null,0,0]
[null,null,null,null,null,null,null,null,null,0,0]
[null,null,null,null,null,null,null,null,null,0,0]
[null,null,null,null,null,null,null,null,null,0,0]
[null,null,null,null,null,null,null,null,null,0,0]
[null,null,null,null,null,null,null,null,null,0,0]
[null,null,null,null,null,null,null,null,null,0,0]
[null,null,null,null,null,null,null,null,null,0,0]
[null,null,null,null,null,null,null,null,null,0,0]
[null,null,null,null,null,null,null,null,null,0,0]
[null,null,null,null,null,null,null,null,null,0,0]
[null,null,null,null,null,null,null,null,null,0,0]
[null,null,null,null,null,null,null,null,null,0,0]
[null,null,null,null,null,null,null,null,null,0,0]
[null,null,null,null,null,null,null,null,null,0,0]
[]
[]
[null,null,null,null,null,215," MATRICULA EN EDUCACIÓN ARTÍSTICA POR EDAD Y SEXO, SEGÚN TIPO DE PROGRAMA DE REPARACIONES EN EDUCACIÓN (Ley N° 28592)"]
[]
[null,null,null,null,null,"TIPO DE PROGRAMA DE\nREPARACIÓN EN EDUCACIÓN",null,null,null,"TOTAL",null,"EDAD"]
[null,null,null,null,null,null,null,null,null,null,null,15,null,16,null,17,null,18,null,19,null,20,null,21,null,22]
[null,null,null,null,null,null,null,null,null,"H","M","H","M","H","M","H","M","H","M","H","M","H","M","H","M","H","M"]
["00",null,null,null,null,"TOTAL",null,null,null,{"$f":"L460+N460+P460+R460+T460+V460+X460+Z460+AB460","v":0},{"$f":"M460+O460+Q460+S460+U460+W460+Y460+AA460+AC460","v":0},{"$f":"SUM(L461:L464)","v":0},{"$f":"SUM(M461:M464)","v":0},{"$f":"SUM(N461:N464)","v":0},0,0,0,0,0,0,0,0,0,0,0,0,0,{"$f":"J469+L469+N469+P469+R469+T469+V469+X469+Z469+AB469","v":0},{"$f":"K469+M469+O469+Q469+S469+U469+W469+Y469+AA469+AC469","v":0},{"$f":"L460+N460+P460+R460+T460+V460+X460+Z460","v":0},{"$f":"M460+O460+Q460+S460+U460+W460+Y460+AA460","v":0}]
["01",null,null,null,null,"RUV - Víctimas directas",null,null,null,{"$f":"L461+N461+P461+R461+T461+V461+X461+Z461+AB461","v":0},{"$f":"M461+O461+Q461+S461+U461+W461+Y461+AA461+AC461","v":0},null,null,null,null,null,null,null,null,null,null,null,null,null,null,null,null,{"$f":"J470+L470+N470+P470+R470+T470+V470+X470+Z470+AB470","v":0},{"$f":"K470+M470+O470+Q470+S470+U470+W470+Y470+AA470+AC470","v":0},{"$f":"L461+N461+P461+R461+T461+V461+X461+Z461","v":0},{"$f":"M461+O461+Q461+S461+U461+W461+Y461+AA461","v":0}]
["02",null,null,null,null,"REBRED-Transferencias de beneficios",null,null,null,0,0,null,null,null,null,null,null,null,null,null,null,null,null,null,null,null,null,0,0,0,0]
["03",null,null,null,null,"Otros Programas del Estado",null,null,null,0,0,null,null,null,null,null,null,null,null,null,null,null,null,null,null,null,null,0,0,0,0]
["04",null,null,null,null,"Estudiante no beneficiado",null,null,null,0,0,null,null,null,null,null,null,null,null,null,null,null,null,null,null,null,null,0,0,0,0]
[null,null,null,null,null,"CONTINUACIÓN CUADRO 215 …."]
[null,null,null,null,null,"TIPO DE PROGRAMA DE\nREPARACIÓN EN EDUCACIÓN",null,null,null,"EDAD"]
[null,null,null,null,null,null,null,null,null,23,null,24,null,"25-29",null,"30-34",null,"35-39",null,"40-44",null,"45-49",null,"50-54",null,"55-59",null,"60 y más"]
[null,null,null,null,null,null,null,null,null,"H","M","H","M","H","M","H","M","H","M","H","M","H","M","H","M","H","M","H","M"]
["00",null,null,null,null,"TOTAL",null,null,null,{"$f":"SUM(J470:J473)","v":0},0,0,0,0,0,0,0,0,0,0,0,0,0,0,0,0,0,0,0]
["01",null,null,null,null,"RUV - Víctimas directas"]
["02",null,null,null,null,"REBRED-Transferencias de beneficios"]
["03",null,null,null,null,"Otros Programas del Estado"]
["04",null,null,null,null,"Estudiante no beneficiado"]
[null,null,null,null,null,"Nota: El total de esta tabla debe ser igual a la tabla 201"]
[]
[null,null,null,null,null,216,"NÚMERO TOTAL DE SECCIONES EN EDUCACIÓN ARTÍSTICA POR CICLO, SEGÚN TURNO"]
[]
[null,null,null,null,null,"TURNO",null,null,null,"TOTAL","CICLO"]
[null,null,null,null,null,null,null,null,null,null,"I","II","III","IV","V","VI","VII","VII","IX","X"]
["00",null,null,null,null,"TOTAL",null,null,null,{"$f":"SUM(K480:T480)","v":0},{"$f":"SUM(K481:K483)","v":0},0,0,0,0,0,0,0,0,0]
["01",null,null,null,null,"Mañana",null,null,null,{"$f":"SUM(K481:T481)","v":0}]
["02",null,null,null,null,"Tarde",null,null,null,{"$f":"SUM(K482:T482)","v":0}]
["03",null,null,null,null,"Noche",null,null,null,{"$f":"SUM(K483:T483)","v":0}]
[null,null,null,null,null,"Solo registre el número de secciones que tiene, por ciclo de estudio según turno"]
[]
[null,null,null,null,null,217," MATRÍCULA POR TIPO DE DISCAPACIDAD U OTRA CONDICIÓN Y SEXO, SEGÚN CARRERA"]
[]
[null,null,null,null,null,"CARRERAS",null,null,null,null,null,"TOTAL",null,"Discapacidad Intelectual",null,null,null,null,null,"Discapacidad Auditiva",null,null,null,"Discapacidad Visual",null,null,null,"Discapacidad Física o Motora",null,"Trastorno del Espectro Autista",null,"Sordoceguera",null,"Multidis-capacidad",null,"Otra discapacidad u otra condición",null," Ninguna  discapacidad"]
[null,null,null,null,null,null,null,null,null,null,null,null,null,"Retardo mental leve",null,"Retardo mental moderado",null,"Retardo mental severo",null,"Hipoacusia",null,"Sordera total",null,"Baja visión",null,"Ceguera"]
[null,null,null,null,null,"CÓDIGO","DENOMINACIÓN",null,null,null,null,"H","M","H","M","H","M","H","M","H","M","H","M","H","M","H","M","H","M","H","M","H","M","H","M","H","M","H","M"]
[null,null,null,null,null,"0000000000","TOTAL",null,null,null,null,{"$f":"SUM(L492:L512)","v":0},0,0,0,0,0,0,0,0,0,0,0,0,0,0,0,0,0,0,0,0,0,0,0,0,0,0,0]
[null,null,null,null,null,null,{"$f":"IF(ISERROR(VLOOKUP($F492,Carrera,2,FALSE)),\"\",VLOOKUP($F492,Carrera,2,FALSE))","v":""},null,null,null,null,{"$f":"N492+P492+R492+T492+V492+X492+Z492+AB492+AD492+AF492+AH492+AJ492+AL492","v":0},{"$f":"O492+Q492+S492+U492+W492+Y492+AA492+AC492+AE492+AG492+AI492+AK492+AM492","v":0}]
[null,null,null,null,null,null,"",null,null,null,null,{"$f":"N493+P493+R493+T493+V493+X493+Z493+AB493+AD493+AF493+AH493+AJ493+AL493","v":0},0]
[null,null,null,null,null,null,"",null,null,null,null,0,0]
[null,null,null,null,null,null,"",null,null,null,null,0,0]
[null,null,null,null,null,null,"",null,null,null,null,0,0]
[null,null,null,null,null,null,"",null,null,null,null,0,0]
[null,null,null,null,null,null,"",null,null,null,null,0,0]
[null,null,null,null,null,null,"",null,null,null,null,0,0]
[null,null,null,null,null,null,"",null,null,null,null,0,0]
[null,null,null,null,null,null,"",null,null,null,null,0,0]
[null,null,null,null,null,null,"",null,null,null,null,0,0]
[null,null,null,null,null,null,"",null,null,null,null,0,0]
[null,null,null,null,null,null,"",null,null,null,null,0,0]
[null,null,null,null,null,null,"",null,null,null,null,0,0]
[null,null,null,null,null,null,"",null,null,null,null,0,0]
[null,null,null,null,null,null,"",null,null,null,null,0,0]
[null,null,null,null,null,null,"",null,null,null,null,0,0]
[null,null,null,null,null,null,"",null,null,null,null,0,0]
[null,null,null,null,null,null,"",null,null,null,null,0,0]
[null,null,null,null,null,null,"",null,null,null,null,0,0]
[null,null,null,null,null,null,"",null,null,null,null,0,0]
[null,null,null,null,null,"Nota: Los totales de esta tabla deben ser iguales a la suma de los totales de las tablas 201 y 209."]
[]
[null,null,null,null,null,218,"INGRESANTES POR TIPO DE DISCAPACIDAD U OTRA CONDICIÓN Y SEXO, SEGÚN CARRERA"]
[]
[null,null,null,null,null,"CARRERAS",null,null,null,null,null,"TOTAL",null,"Discapacidad Intelectual",null,null,null,null,null,"Discapacidad Auditiva",null,null,null,"Discapacidad Visual",null,null,null,"Discapacidad Física o Motora",null,"Trastorno del Espectro Autista",null,"Sordoceguera",null,"Multidis-capacidad",null,"Otra discapacidad u otra condición",null," Ninguna  discapacidad"]
[null,null,null,null,null,null,null,null,null,null,null,null,null,"Retardo mental leve",null,"Retardo mental moderado",null,"Retardo mental severo",null,"Hipoacusia",null,"Sordera total",null,"Baja visión",null,"Ceguera"]
[null,null,null,null,null,"CÓDIGO","DENOMINACIÓN",null,null,null,null,"H","M","H","M","H","M","H","M","H","M","H","M","H","M","H","M","H","M","H","M","H","M","H","M","H","M","H","M"]
[null,null,null,null,null,"0000000000","TOTAL",null,null,null,null,{"$f":"SUM(L521:L541)","v":0},0,0,0,0,0,0,0,0,0,0,0,0,0,0,0,0,0,0,0,0,0,0,0,0,0,0,0]
[null,null,null,null,null,null,{"$f":"IF(ISERROR(VLOOKUP($F521,Carrera,2,FALSE)),\"\",VLOOKUP($F521,Carrera,2,FALSE))","v":""},null,null,null,null,{"$f":"N521+P521+R521+T521+V521+X521+Z521+AB521+AD521+AF521+AH521+AJ521+AL521","v":0},{"$f":"O521+Q521+S521+U521+W521+Y521+AA521+AC521+AE521+AG521+AI521+AK521+AM521","v":0}]
[null,null,null,null,null,null,"",null,null,null,null,{"$f":"N522+P522+R522+T522+V522+X522+Z522+AB522+AD522+AF522+AH522+AJ522+AL522","v":0},{"$f":"O522+Q522+S522+U522+W522+Y522+AA522+AC522+AE522+AG522+AI522+AK522+AM522","v":0}]
[null,null,null,null,null,null,"",null,null,null,null,0,0]
[null,null,null,null,null,null,"",null,null,null,null,0,0]
[null,null,null,null,null,null,"",null,null,null,null,0,0]
[null,null,null,null,null,null,"",null,null,null,null,0,0]
[null,null,null,null,null,null,"",null,null,null,null,0,0]
[null,null,null,null,null,null,"",null,null,null,null,0,0]
[null,null,null,null,null,null,"",null,null,null,null,0,0]
[null,null,null,null,null,null,"",null,null,null,null,0,0]
[null,null,null,null,null,null,"",null,null,null,null,0,0]
[null,null,null,null,null,null,"",null,null,null,null,0,0]
[null,null,null,null,null,null,"",null,null,null,null,0,0]
[null,null,null,null,null,null,"",null,null,null,null,0,0]
[null,null,null,null,null,null,"",null,null,null,null,0,0]
[null,null,null,null,null,null,"",null,null,null,null,0,0]
[null,null,null,null,null,null,"",null,null,null,null,0,0]
[null,null,null,null,null,null,"",null,null,null,null,0,0]
[null,null,null,null,null,null,"",null,null,null,null,0,0]
[null,null,null,null,null,null,"",null,null,null,null,0,0]
[null,null,null,null,null,null,"",null,null,null,null,0,0]
[null,null,null,null,null,"Nota: Los totales de esta tabla deben ser iguales a la suma de las tablas 203 y 211 reportados en la columna “Ingresantes”"]
[]
[null,null,null,null,null,219,"PORCENTAJE DE ESTUDIANTES, SEGÚN LA REGIÓN DE PROCEDENCIA"]
[]
[null,null,null,null,null,"REGIONES",null,null,"PORCENTAJE",null,null,null,"REGIONES",null,null,null,"PORCENTAJE"]
[]
[null,null,null,null,null,"01","AMAZONAS",null,null,null,"%",null,14,"LAMBAYEQUE",null,null,null,null,"%"]
[null,null,null,null,null,"02","ÁNCASH",null,null,null,"%",null,15,"LIMA",null,null,null,null,"%"]
[null,null,null,null,null,"03","APURÍMAC",null,null,null,"%",null,16,"LORETO",null,null,null,null,"%"]
[null,null,null,null,null,"04","AREQUIPA",null,null,null,"%",null,17,"MADRE DE DIOS",null,null,null,null,"%"]
[null,null,null,null,null,"05","AYACUCHO",null,null,null,"%",null,18,"MOQUEGUA",null,null,null,null,"%"]
[null,null,null,null,null,"06","CAJAMARCA",null,null,null,"%",null,19,"PASCO",null,null,null,null,"%"]
[null,null,null,null,null,"07","CALLAO",null,null,null,"%",null,20,"PIURA",null,null,null,null,"%"]
[null,null,null,null,null,"08","CUSCO",null,null,null,"%",null,21,"PUNO",null,null,null,null,"%"]
[null,null,null,null,null,"09","HUANCAVELICA",null,null,null,"%",null,22,"SAN MARTÍN",null,null,null,null,"%"]
[null,null,null,null,null,"10","HUÁNUCO",null,null,null,"%",null,23,"TACNA",null,null,null,null,"%"]
[null,null,null,null,null,"11","ICA",null,null,null,"%",null,24,"TUMBES",null,null,null,null,"%"]
[null,null,null,null,null,12,"JUNÍN",null,null,null,"%",null,25,"UCAYALI",null,null,null,null,"%"]
[null,null,null,null,null,13,"LA LIBERTAD",null,null,null,"%",null,"00","TOTAL",null,null,{"$f":"SUM(I548:J560,Q548:R559)","v":0},null,"%"]
[null,null,null,null,null,"Nota: Considere a todos los estudiantes matriculados de la misma región y de las otras regiones de procedencia."]
[]
[]
[]
[]
["Lengua Materna"]
["0100: Castellano"]
["0200: Achuar"]
["0300: Aimara"]
["0400: Amahuaca"]
["0500: Arabela"]
["0600: Asháninka"]
["0610: Asheninka"]
["0700: Awajún"]
["0800: Bora"]
["0900: Kapanawa"]
["1000: Cashinahua"]
["1100: Kawki"]
["1200: Chamikuro"]
["1300: Ese eja"]
["1400: Harakbut"]
["1500: Iñapari"]
["1600: Ikuitu"]
["1700: Iskonawa"]
["1800: Jaqaru"]
["1900: Kakataibo"]
["2000: Kakinte (caquinte)"]
["2110: Kandozi (Chapra)"]
["2120: Kandozi (Kandozi)"]
["2200: Kukama-kukamiria"]
["2300: Madija (culina)"]
["2400: Maijiki"]
["2500: Matsés"]
["2600: Matsigenka"]
["2700: Munichi"]
["2800: Murui-muinani"]
["2900: Matsigenka-montetokunirira"]
["3000: Nomatsigenga"]
["3100: Ocaina"]
["3200: Omagua"]
["3310: Quechua amazónico (Kichwa)"]
["3321: Quechua central (Ancash)"]
["3322: Quechua central (Huánuco)"]
["3323: Quechua central (Wanka)"]
["3324: Quechua central (Pasco)"]
["3331: Quechua norteño (Cajamarca)"]
["3332: Quechua norteño (Inkawasi Kañaris)"]
["3341: Quechua sureño (Chanka)"]
["3342: Quechua sureño (Collao)"]
["3400: Resígaro"]
["3500: Secoya"]
["3600: Sharanahua"]
["3700: Shawi"]
["3800: Shipibo-Konibo"]
["3900: Shiwilu"]
["4000: Taushiro"]
["4100: Ticuna"]
["4200: Urarina"]
["4300: Wampis"]
["4400: Yagua"]
["4500: Yaminahua"]
["4600: Yanesha"]
["4700: Yine"]
["4800: Nahua"]
["5100: Alemán"]
["5200: Inglés"]
["5300: Italiano"]
["5400: Japonés"]
["5500: Portugués"]
["5600: Ruso"]
["5700: Francés"]
["5800: Otra lengua extranjera"]

{"sheet":"C300","index":3,"n_rows":520,"n_cols":53,"rows_kept":520,"cut":false,"hidden":false,"merged":[[15,10,17,10],[15,11,17,11],[15,12,17,12],[15,13,17,13],[15,19,17,19],[15,18,17,18],[15,14,15,15],[15,45,16,45],[15,33,17,33],[15,34,17,34],[15,47,16,47],[14,14,14,15],[15,16,17,16],[15,17,17,17],[15,26,17,26],[15,24,17,24],[15,20,16,21],[15,48,16,48],[15,49,16,49],[1,12,1,18],[2,12,2,18],[15,23,17,23],[15,25,17,25],[15,22,17,22],[15,27,17,27],[7,10,7,20],[6,10,6,20],[15,32,17,32],[15,28,17,28],[15,46,17,46],[15,31,17,31],[15,30,17,30],[15,29,17,29]]}
[]
[null,null,null,null,null,null,null,null,null,null,null,null,"CENSO EDUCATIVO 2025"]
[null,null,null,null,null,null,null,null,null,null,null,null,"MATRÍCULA, DOCENTES Y RECURSOS"]
[]
["PERSONAL",{"$f":"N10+S10","v":0}]
[]
["DOCENTES",{"$f":"COUNTIF(Q19:Q518,\"01: Docente\")","v":0},null,null,null,null,null,null,null,null,"300. PERSONAL DOCENTE Y ADMINISTRATIVO (Para II.EE. Públicas y Privadas)"]
["ADMINISTRATIVOS",{"$f":"COUNTIF(Q19:Q518,\"02: Administrativo\")","v":0},null,null,null,null,null,null,null,null,"En esta tabla, REGISTRE a todo el personal docente, auxiliares de educación y personal administrativo que se encuentre laborando en el servicio/nivel educativo durante el periodo\nde reporte del censo educativo. (EXCLUYA al personal que se encuentre haciendo uso de licencia y a los que han sido destacados a otra IE/DRE/UGEL)"]
[]
["DOCENTES CON SECCIÓN",{"$f":"COUNTIF(AI19:AI518,\"SI\")","v":0},null,null,null,null,null,null,null,null,null,null,"TOTAL DOCENTES :   ",null,null,null,null,"ADMINISTRATIVOS :    "]
[]
[null,{"$f":"B7+B8","v":0},null,null,null,null,null,null,null,null,"A continuación registre a todo el personal que desempeñe funciones docentes en el Servicio/Nivel educativo: Directivos con o sin aula a cargo, docentes de aula, jefes o jerárquicos"]
[null,null,null,null,null,null,null,null,null,null,"Documentos fuente: Legajo de personal y CAP de la institución educativa."]
[null,null,3,4,5,6,7,8,9]
[null,null,null,null,null,null,null,null,null,null,null,301.10000000000002,301.2,301.3,302,null,303,304,305,306,null,307,308,309,310,311,311.10000000000002,312,313,314,315,316,317,318,319,320,null,null,null,null,null,null,null,null,null,321,322,"323.1","323.2","323.3"]
["GESTIÓN",{"$f":"IF(OR('C100'!I28=\"X\",'C100'!L28=\"X\"),1,IF('C100'!O28=\"X\",3,\"\"))","v":""},null,null,null,null,null,null,null,null,"Nº","Apellido Paterno","Apellido Materno","Nombres","Documento de Identidad",null,"Tipo de\nPersonal","Edad","Sexo","Lengua\nmaterna","Además de la lengua materna con la cual aprendió a hablar en su niñez\n¿Habla alguna otra lengua?",null,"Fuente de\nfinanciamiento","Condición Laboral","Modalidad de Contrato","Máximo nivel\neducativo alcanzado","Nivel Educativo\n(Técnico, Profesional Técnico, Universitario)","Especialidad Pedagógica\nque ha estudiado","¿En qué tipo de\ninstitución obtuvo\nsu formación pedagógica?","Estudios de Postgrado\nen Pedagogía","Años de Experiencia Laboral","Años de\nexperiencia\nlaboral en\neste servicio/nivel\neducativo","Función o cargo","Situación en\ncargo directivo","¿Tiene secciones a cargo?","Ciclos Atendidos",null,null,null,null,null,null,null,null,null,"Enseña idioma Inglés en el ESFA","¿Tiene algún conocimiento de las TICs?","¿ Atiende a estudiantes con NEE asociadas a discapacidad ?","¿Presenta alguna discapacidad?","Solo si respondió Sí en la pregunta\n333.2 ¿Cúal es el tipo de discapacidad?"]
[null,null,"Exp1","Exp2","Exp3","Exp4","Exp5","Exp6","Exp7",null,null,null,null,null,302.10000000000002,302.2,null,null,null,null,null,null,null,null,null,null,null,null,null,null,null,null,null,null,null,"Marque con una “X”, según corresponda"]
["302.1 Tipo de documento de Identidad","313. Tipo de inst. donde estudio","Corr","Escala","Gest","Secc","Tipo Pers","Duplex","Fmt",null,null,null,null,null,"Tipo","Número",null,null,null,null,"SI - NO","Solo si repondio “SI” Especificar",null,null,null,null,null,null,null,null,null,null,null,null,null,"I","II","III","IV","V","VI","VII","VIII","IX","X","Sí / No",null,"Sí / No","Sí / No","Sí / No"]
["01: DNI.","01: IESP (Público)",1,{"$f":"IF(AND(LEFT(Q19,2)=\"01\",LEFT(W19,2)=\"01\",LEFT(X19,2)=\"01\",E19=1),1,0)","v":0},{"$f":"$B$16","v":""},{"$f":"COUNTIF(AJ19:AS19,\"X\")","v":0},{"$f":"IF(Q19<>\"\",VALUE(LEFT(Q19,2)),0)","v":0},{"$f":"IF(P19<>\"\",COUNTIF($P$19:$P$518,P19),0)","v":0},{"$f":"IF(K19<>\"\",1,0)","v":0},null,{"$f":"IF(C19<=$B$5,C19,\"\")","v":""}]
["02: Carnet Ext.","02: IESP (Privado)",2,{"$f":"IF(AND(LEFT(Q20,2)=\"01\",LEFT(W20,2)=\"01\",LEFT(X20,2)=\"01\",E20=1),1,0)","v":0},{"$f":"$B$16","v":""},{"$f":"COUNTIF(AJ20:AS20,\"X\")","v":0},{"$f":"IF(Q20<>\"\",VALUE(LEFT(Q20,2)),0)","v":0},{"$f":"IF(P20<>\"\",COUNTIF($P$19:$P$518,P20),0)","v":0},0,null,{"$f":"IF(C20<=$B$5,C20,\"\")","v":""}]
["03: Pasaporte","03: Universidad Privada",3,0,"",0,0,0,0,null,{"$f":"IF(C21<=$B$5,C21,\"\")","v":""}]
[null,"04: Universidad Pública",4,0,"",0,0,0,0,null,""]
["303. Tipo de Personal",null,5,0,"",0,0,0,0,null,""]
["01: Docente","314. Segunda Especialidad",6,0,"",0,0,0,0,null,""]
["02: Administrativo","Utilice las especialidades de la tabla de códigos 313.",7,0,"",0,0,0,0,null,""]
["03: Aux. de Educación",null,8,0,"",0,0,0,0,null,""]
[null,"315. Estudios de Postgrado en Pedagogía",9,0,"",0,0,0,0,null,""]
["305. Sexo","Estudios de Maestría y doctorado",10,0,"",0,0,0,0,null,""]
["Hombre","01: Maestria concluida con grado",11,0,"",0,0,0,0,null,""]
["Mujer","02: Maestria concluida sin grado",12,0,"",0,0,0,0,null,""]
[null,"03: Maestria en proceso",13,0,"",0,0,0,0,null,""]
["306. Lengua Materna","04: Doctorado concluido con grado",14,0,"",0,0,0,0,null,""]
["0100: Castellano","05: Doctorado concluido sin grado",15,0,"",0,0,0,0,null,""]
["0200: Achuar","06: Doctorado en proceso",16,0,"",0,0,0,0,null,""]
["0300: Aimara","07: Sin Postgrado",17,0,"",0,0,0,0,null,""]
["0400: Amahuaca",null,18,0,"",0,0,0,0,null,""]
["0500: Arabela",null,19,0,"",0,0,0,0,null,""]
["0600: Asháninka","316. Tiempo de Servicio",20,0,"",0,0,0,0,null,""]
["0610: Asheninka","Solo personal Nombrado.",21,0,"",0,0,0,0,null,""]
["0700: Awajún","Tiempo contado expresado en años desde su fecha de Nombramiento",22,0,"",0,0,0,0,null,""]
["0800: Bora",null,23,0,"",0,0,0,0,null,""]
["0900: Kapanawa","317. Años de Experiencia Laboral",24,0,"",0,0,0,0,null,""]
["1000: Cashinahua","Registre el total de años que tiene como experiencia",25,0,"",0,0,0,0,null,""]
["1100: Kawki","en el Tipo de Personal que se está registrando (Tabla 301.)",26,0,"",0,0,0,0,null,""]
["1200: Chamikuro",null,27,0,"",0,0,0,0,null,""]
["1300: Ese eja","318. Años de experiencia laboral en este servicio/ nivel educativo",28,0,"",0,0,0,0,null,""]
["1400: Harakbut","Anote el N° de años de experiencia prestando servicios",29,0,"",0,0,0,0,null,""]
["1500: Iñapari","en este servicio/nivel educativo por el tipo de personal",30,0,"",0,0,0,0,null,""]
["1600: Ikuitu","que se está registrando (Tabla 301.)",31,0,"",0,0,0,0,null,""]
["1700: Iskonawa",null,32,0,"",0,0,0,0,null,""]
["1800: Jaqaru","319. Escala Magisterial",33,0,"",0,0,0,0,null,""]
["1900: Kakataibo","Complete los datos de Escala Magisterial, según corresponda",34,0,"",0,0,0,0,null,""]
["2000: Kakinte (caquinte)","01: Primera",35,0,"",0,0,0,0,null,""]
["2110: Kandozi (Chapra)","02: Segunda",36,0,"",0,0,0,0,null,""]
["2120: Kandozi (Kandozi)","03: Tercera",37,0,"",0,0,0,0,null,""]
["2200: Kukama-kukamiria","04: Cuarta",38,0,"",0,0,0,0,null,""]
["2300: Madija (culina)","05: Quinta",39,0,"",0,0,0,0,null,""]
["2400: Maijiki","06: Sexta",40,0,"",0,0,0,0,null,""]
["2500: Matsés","07: Séptima",41,0,"",0,0,0,0,null,""]
["2600: Matsigenka","08: Octava",42,0,"",0,0,0,0,null,""]
["2700: Munichi","09: Sin Escala",43,0,"",0,0,0,0,null,""]
["2800: Murui-muinani",null,44,0,"",0,0,0,0,null,""]
["2900: Matsigenka-montetokunirira","320. Función o Cargo",45,0,"",0,0,0,0,null,""]
["3000: Nomatsigenga","(Desempeñado a la fecha de reporte)",46,0,"",0,0,0,0,null,""]
["3100: Ocaina","Docentes",47,0,"",0,0,0,0,null,""]
["3200: Omagua","01: (101)-Director General",48,0,"",0,0,0,0,null,""]
["3310: Quechua amazónico (Kichwa)","02: (103)-Sub Director",49,0,"",0,0,0,0,null,""]
["3321: Quechua central (Ancash)","03: (129)-Jefe de departamento",50,0,"",0,0,0,0,null,""]
["3322: Quechua central (Huánuco)","04: (130)-Jefe de área / coordinador",51,0,"",0,0,0,0,null,""]
["3323: Quechua central (Wanka)","05: (124)-Jefe de unidad administrativa",52,0,"",0,0,0,0,null,""]
["3324: Quechua central (Pasco)","06: (123)-Jefe de unidad académica",53,0,"",0,0,0,0,null,""]
["3331: Quechua norteño (Cajamarca)","07: (125)-Jefe de unidad académica inicial",54,0,"",0,0,0,0,null,""]
["3332: Quechua norteño (Inkawasi Kañaris)","08: (126)-Jefe de unidad académica Primaria",55,0,"",0,0,0,0,null,""]
["3341: Quechua sureño (Chanka)","09: (127)-Jefe de unidad académica Secundaria",56,0,"",0,0,0,0,null,""]
["3342: Quechua sureño (Collao)","10: (128)-Jefe de área de formación artística",57,0,"",0,0,0,0,null,""]
["3400: Resígaro","11: (131)-Jefe de taller",58,0,"",0,0,0,0,null,""]
["3500: Secoya","12: (108)-Coordinador de Taller",59,0,"",0,0,0,0,null,""]
["3600: Sharanahua","13: (132)-Secretario General",60,0,"",0,0,0,0,null,""]
["3700: Shawi","14: (137)-Secretario Académico",61,0,"",0,0,0,0,null,""]
["3800: Shipibo-Konibo","15: (111)-Docente por horas",62,0,"",0,0,0,0,null,""]
["3900: Shiwilu","16: (136)-Asistente",63,0,"",0,0,0,0,null,""]
["4000: Taushiro","17: (110)-Coordinador",64,0,"",0,0,0,0,null,""]
["4100: Ticuna","18: (139)-Otro docente o jerarquico",65,0,"",0,0,0,{"$f":"IF(K83<>\"\",1,0)","v":0},null,""]
["4200: Urarina",null,66,{"$f":"IF(AND(LEFT(Q84,2)=\"01\",LEFT(W84,2)=\"01\",LEFT(X84,2)=\"01\",E84=1),1,0)","v":0},{"$f":"$B$16","v":""},{"$f":"COUNTIF(AJ84:AS84,\"X\")","v":0},{"$f":"IF(Q84<>\"\",VALUE(LEFT(Q84,2)),0)","v":0},{"$f":"IF(P84<>\"\",COUNTIF($P$19:$P$518,P84),0)","v":0},0,null,""]
["4300: Wampis",null,67,0,"",0,0,0,0,null,{"$f":"IF(C85<=$B$5,C85,\"\")","v":""}]
["4400: Yagua","Administrativos",68,0,"",0,0,0,0,null,""]
["4500: Yaminahua","19: (534)-Administrador",69,0,"",0,0,0,0,null,""]
["4600: Yanesha","20: (535)-Contador",70,0,"",0,0,0,0,null,""]
["4700: Yine","21: (501)-Psicólogo",71,0,"",0,0,0,0,null,""]
["4800: Nahua","22: (502)-Trabajo social / Servicio social",72,0,"",0,0,0,0,null,""]
["5100: Alemán","23: (503)-Personal de Salud",73,0,"",0,0,0,0,null,""]
["5200: Inglés","24: (537)-Guía intérprete de sordoceguera",74,0,"",0,0,0,0,null,""]
["5300: Italiano","25: (538)-Intérprete de Lengua de Señas Peruana",75,0,"",0,0,0,0,null,""]
["5400: Japonés","26: (539)-Modelo Lingüístio",76,0,"",0,0,0,0,null,""]
["5500: Portugués","27: (506)-Auxiliar de Biblioteca",77,0,"",0,0,0,0,null,""]
["5600: Ruso","28: (507)-Auxiliar de Laboratorio",78,0,"",0,0,0,0,null,""]
["5700: Francés","29: (508)-Secretaria u Oficinista",79,0,"",0,0,0,0,null,""]
["5800: Otra lengua extranjera","30: (536)-Bibliotecario",80,0,"",0,0,0,0,null,""]
[null,"31: (512)-Personal de Servicio - Mantenimiento",81,0,"",0,0,0,0,null,""]
["307. Lengua Originaria","32: (513)-Personal de Servicio - Cocina",82,0,"",0,0,0,0,null,""]
["De: 0200 a 4800","33: (514)-Personal de Servicio - Limpieza",83,0,"",0,0,0,0,null,""]
[null,"34: (516)-Personal de Servicio - Vigilante",84,0,"",0,0,0,0,null,""]
["308. Fuente de Financiamiento","35: (517)-Personal de servicio - Otro",85,0,"",0,0,0,0,null,""]
["01: Sector Educación","36: (505)-Otro personal profesional",86,0,"",0,0,0,0,null,""]
["02: Otro sector público","37: (518)-Otro personal No profesional",87,0,"",0,0,0,0,null,""]
["03: Municipalidad",null,88,0,"",0,0,0,0,null,""]
["04: Gobierno Regional",null,89,0,"",0,0,0,0,null,""]
["05: APAFA",null,90,0,"",0,0,0,0,null,""]
["06: Otra fuente Privada",null,91,0,"",0,0,0,0,null,""]
[null,null,92,0,"",0,0,0,0,null,""]
["309. Condición Laboral",null,93,0,"",0,0,0,0,null,""]
["01: Nombrado",null,94,0,"",0,0,0,0,null,""]
["02: Contratado",null,95,0,"",0,0,0,0,null,""]
["03: No aplica",null,96,0,"",0,0,0,0,null,""]
[null,null,97,0,"",0,0,0,0,null,""]
["310. Modalidad de Contrato",null,98,0,"",0,0,0,0,null,""]
["Contrato Público",null,99,0,"",0,0,0,0,null,""]
["01: A plazo fijo D. Leg. 728",null,100,0,"",0,0,0,0,null,""]
["02: Locación de Serv. / Honorarios",null,101,0,"",0,0,0,0,null,""]
["03: CAS - D. Leg. 1057","99: (999)-Auxiliar de Educación",102,0,"",0,0,0,0,null,""]
["04: Contrato D. Leg. 276",null,103,0,"",0,0,0,0,null,""]
["05: Contrato Ley 30512","321. Situación en el Cargo Directivo",104,0,"",0,0,0,0,null,""]
["06: Contrato Ley 30328","01: Designado",105,0,"",0,0,0,0,null,""]
["07: Otra modalidad","02: Encargado",106,0,"",0,0,0,0,null,""]
["Contrato Privado",null,107,0,"",0,0,0,0,null,""]
["08: A plazo indefinido (Permanente)",null,108,0,"",0,0,0,0,null,""]
["09: Plazo fijo (Tiempo determinado)",null,109,0,"",0,0,0,0,null,""]
["10: A tiempo parcial (por horas)",null,110,0,"",0,0,0,0,null,""]
["11: Locación de Serv. / Honorarios","322. Destaque o Licencia",111,0,"",0,0,0,0,null,""]
["12: Otra modalidad","01: Haciendo uso de licencia",112,0,"",0,0,0,0,null,""]
[null,"02: A otra I.E/DRE/UGEL",113,0,"",0,0,0,0,null,""]
["311. Máximo Nivel Educativo Alcanzado","03: Cubriendo una licencia",114,0,"",0,0,0,0,null,""]
["01: EP.Concluidos con título","04: De otra I.E./DRE/UGEL",115,0,"",0,0,0,0,null,""]
["02: EP.Concluidos sin título","05: No Aplica",116,0,"",0,0,0,0,null,""]
["03: EP.No concluidos",null,117,0,"",0,0,0,0,null,""]
["04: NP.Concluidos con título","323. Jornada Laboral (Nombramiento / Contrato)",118,0,"",0,0,0,0,null,""]
["05: NP.Concluidos sin título","40: 40 horas",119,0,"",0,0,0,0,null,""]
["06: NP.No concluidos","30: 30 horas",120,0,"",0,0,0,0,null,""]
["07: Secundaria","25: 25 horas",121,0,"",0,0,0,0,null,""]
["08: Primaria","24: 24 horas",122,0,"",0,0,0,0,null,""]
[null,"23: Menos 24 horas",123,0,"",0,0,0,0,null,""]
["311. Máximo Nivel Educativo Alcanzado",null,124,0,"",0,0,0,0,null,""]
["01: Técnico","SI / NO",125,0,"",0,0,0,0,null,""]
["02: Profesional técnico","SI",126,0,"",0,0,0,0,null,""]
["03: Universitario","NO",127,0,"",0,0,0,0,null,""]
[null,null,128,0,"",0,0,0,0,null,""]
["312. Especialidad del Título","332 ¿Cuál es el tipo de discapacidad?",129,0,"",0,0,0,{"$f":"IF(K147<>\"\",1,0)","v":0},null,""]
["01: Educación Inicial","01: Auditiva",130,{"$f":"IF(AND(LEFT(Q148,2)=\"01\",LEFT(W148,2)=\"01\",LEFT(X148,2)=\"01\",E148=1),1,0)","v":0},{"$f":"$B$16","v":""},{"$f":"COUNTIF(AJ148:AS148,\"X\")","v":0},{"$f":"IF(Q148<>\"\",VALUE(LEFT(Q148,2)),0)","v":0},{"$f":"IF(P148<>\"\",COUNTIF($P$19:$P$518,P148),0)","v":0},0,null,""]
["02: Educación Primaria","02: Visual",131,0,"",0,0,0,0,null,{"$f":"IF(C149<=$B$5,C149,\"\")","v":""}]
["03: E.I. Intercultural Bilingüe","03: Física o Motora",132,0,"",0,0,0,0,null,""]
["04: E.P. Intercultural Bilingüe","04: Otras",133,0,"",0,0,0,0,null,""]
["05: Educación Básica Alternativa",null,134,0,"",0,0,0,0,null,""]
["06: Educación Especial","Parroquiales",135,0,"",0,0,0,0,null,""]
["07: Educación Física","05: APAFA",136,0,"",0,0,0,0,null,""]
["08: Educación Artística","06: Otra fuente Privada",137,0,"",0,0,0,0,null,""]
["09: E.S. Lengua y Literatura","01: Sector Educación",138,0,"",0,0,0,0,null,""]
["10: E.S. Comunicación",null,139,0,"",0,0,0,0,null,""]
["11: E.S. Matemática y Física","Parroquiales",140,0,"",0,0,0,0,null,""]
["12: E.S. Matemática","01: Técnico",141,0,"",0,0,0,0,null,""]
["13: E.S. CCSS y Filosofía","02: Profesional técnico",142,0,"",0,0,0,0,null,""]
["14: E.S. Ciencias Sociales","03: Universitario",143,0,"",0,0,0,0,null,""]
["15: E.S. Ciencias Naturales",null,144,0,"",0,0,0,0,null,""]
["16: E.S. Ciencia Tecnología y Ambiente",null,145,0,"",0,0,0,0,null,""]
["17: E.S. Alimentación y Nutrición",null,146,0,"",0,0,0,0,null,""]
["18: E.S. Biología y Química",null,147,0,"",0,0,0,0,null,""]
["19: E.S. Historia y Geografía",null,148,0,"",0,0,0,0,null,""]
["20: E.S. CC.HH. Sociales",null,149,0,"",0,0,0,0,null,""]
["21: E.S. Idioma Inglés",null,150,0,"",0,0,0,0,null,""]
["22: Educación Religiosa",null,151,0,"",0,0,0,0,null,""]
["23: E.S. Educación Familiar",null,152,0,"",0,0,0,0,null,""]
["24: E.T. Artes Industriales",null,153,0,"",0,0,0,0,null,""]
["25: E.T. Artesanía",null,154,0,"",0,0,0,0,null,""]
["26: E.T. Agropecuaria",null,155,0,"",0,0,0,0,null,""]
["27: E.T. Construcción en madera",null,156,0,"",0,0,0,0,null,""]
["28: E.T. Computación e Informática",null,157,0,"",0,0,0,0,null,""]
["29: E.T. Carpintería/Ebanistería",null,158,0,"",0,0,0,0,null,""]
["30: E.T. Electricidad",null,159,0,"",0,0,0,0,null,""]
["31: E.T. Electrónica",null,160,0,"",0,0,0,0,null,""]
["32: E.T. Ebanistería",null,161,0,"",0,0,0,0,null,""]
["33: E.T. Industria del Vestido",null,162,0,"",0,0,0,0,null,""]
["34: E.T. Industria del Vestido Alimentación y Alta Costura",null,163,0,"",0,0,0,0,null,""]
["35: E.T. en Industria del Vestido y Alta Costura",null,164,0,"",0,0,0,0,null,""]
["36: E.T.Técnica Esp. Ind. del Vestido Ind.Alimentaria y Artes",null,165,0,"",0,0,0,0,null,""]
["37: E.T. Industria Alimentaria",null,166,0,"",0,0,0,0,null,""]
["38: E.T. Mecánica Automotriz",null,167,0,"",0,0,0,0,null,""]
["39: E.T. Mecánica de Producción",null,168,0,"",0,0,0,0,null,""]
["40: E.T. Mecánica de Producción y Soldadura",null,169,0,"",0,0,0,0,null,""]
["41: E.T. Textilería",null,170,0,"",0,0,0,0,null,""]
["42: Otra pedagógica",null,171,0,"",0,0,0,0,null,""]
[null,null,172,0,"",0,0,0,0,null,""]
[null,null,173,0,"",0,0,0,0,null,""]
[null,null,174,0,"",0,0,0,0,null,""]
[null,null,175,0,"",0,0,0,0,null,""]
[null,null,176,0,"",0,0,0,0,null,""]
[null,null,177,0,"",0,0,0,0,null,""]
[null,null,178,0,"",0,0,0,0,null,""]
[null,null,179,0,"",0,0,0,0,null,""]
[null,null,180,0,"",0,0,0,0,null,""]
[null,null,181,0,"",0,0,0,0,null,""]
[null,null,182,0,"",0,0,0,0,null,""]
[null,null,183,0,"",0,0,0,0,null,""]
[null,null,184,0,"",0,0,0,0,null,""]
[null,null,185,0,"",0,0,0,0,null,""]
[null,null,186,0,"",0,0,0,0,null,""]
[null,null,187,0,"",0,0,0,0,null,""]
[null,null,188,0,"",0,0,0,0,null,""]
[null,null,189,0,"",0,0,0,0,null,""]
[null,null,190,0,"",0,0,0,0,null,""]
[null,null,191,0,"",0,0,0,0,null,""]
[null,null,192,0,"",0,0,0,0,null,""]
[null,null,193,0,"",0,0,0,{"$f":"IF(K211<>\"\",1,0)","v":0},null,""]
[null,null,194,{"$f":"IF(AND(LEFT(Q212,2)=\"01\",LEFT(W212,2)=\"01\",LEFT(X212,2)=\"01\",E212=1),1,0)","v":0},{"$f":"$B$16","v":""},{"$f":"COUNTIF(AJ212:AS212,\"X\")","v":0},{"$f":"IF(Q212<>\"\",VALUE(LEFT(Q212,2)),0)","v":0},{"$f":"IF(P212<>\"\",COUNTIF($P$19:$P$518,P212),0)","v":0},0,null,""]
[null,null,195,0,"",0,0,0,0,null,{"$f":"IF(C213<=$B$5,C213,\"\")","v":""}]
[null,null,196,0,"",0,0,0,0,null,""]
[null,null,197,0,"",0,0,0,0,null,""]
[null,null,198,0,"",0,0,0,0,null,""]
[null,null,199,0,"",0,0,0,0,null,""]
[null,null,200,0,"",0,0,0,{"$f":"IF(K218<>\"\",1,0)","v":0},null,""]
[null,null,201,0,"",0,0,0,{"$f":"IF(K219<>\"\",1,0)","v":0},null,""]
[null,null,202,0,"",0,0,0,0,null,""]
[null,null,203,0,"",0,0,0,0,null,""]
[null,null,204,0,"",0,0,0,0,null,""]
[null,null,205,0,"",0,0,0,0,null,""]
[null,null,206,0,"",0,0,0,0,null,""]
[null,null,207,0,"",0,0,0,0,null,""]
[null,null,208,0,"",0,0,0,0,null,""]
[null,null,209,0,"",0,0,0,0,null,""]
[null,null,210,0,"",0,0,0,0,null,""]
[null,null,211,0,"",0,0,0,0,null,""]
[null,null,212,0,"",0,0,0,0,null,""]
[null,null,213,0,"",0,0,0,0,null,""]
[null,null,214,0,"",0,0,0,0,null,""]
[null,null,215,0,"",0,0,0,0,null,""]
[null,null,216,0,"",0,0,0,0,null,""]
[null,null,217,0,"",0,0,0,0,null,""]
[null,null,218,0,"",0,0,0,0,null,""]
[null,null,219,0,"",0,0,0,0,null,""]
[null,null,220,0,"",0,0,0,0,null,""]
[null,null,221,0,"",0,0,0,0,null,""]
[null,null,222,0,"",0,0,0,0,null,""]
[null,null,223,0,"",0,0,0,0,null,""]
[null,null,224,0,"",0,0,0,0,null,""]
[null,null,225,0,"",0,0,0,0,null,""]
[null,null,226,0,"",0,0,0,0,null,""]
[null,null,227,0,"",0,0,0,0,null,""]
[null,null,228,0,"",0,0,0,0,null,""]
[null,null,229,0,"",0,0,0,0,null,""]
[null,null,230,0,"",0,0,0,0,null,""]
[null,null,231,0,"",0,0,0,0,null,""]
[null,null,232,0,"",0,0,0,0,null,""]
[null,null,233,0,"",0,0,0,0,null,""]
[null,null,234,0,"",0,0,0,0,null,""]
[null,null,235,0,"",0,0,0,0,null,""]
[null,null,236,0,"",0,0,0,0,null,""]
[null,null,237,0,"",0,0,0,0,null,""]
[null,null,238,0,"",0,0,0,0,null,""]
[null,null,239,0,"",0,0,0,0,null,""]
[null,null,240,0,"",0,0,0,0,null,""]
[null,null,241,0,"",0,0,0,0,null,""]
[null,null,242,0,"",0,0,0,0,null,""]
[null,null,243,0,"",0,0,0,0,null,""]
[null,null,244,0,"",0,0,0,0,null,""]
[null,null,245,0,"",0,0,0,0,null,""]
[null,null,246,0,"",0,0,0,0,null,""]
[null,null,247,0,"",0,0,0,0,null,""]
[null,null,248,0,"",0,0,0,0,null,""]
[null,null,249,0,"",0,0,0,0,null,""]
[null,null,250,0,"",0,0,0,0,null,""]
[null,null,251,0,"",0,0,0,0,null,""]
[null,null,252,0,"",0,0,0,0,null,""]
[null,null,253,0,"",0,0,0,0,null,""]
[null,null,254,0,"",0,0,0,0,null,""]
[null,null,255,0,"",0,0,0,0,null,""]
[null,null,256,0,"",0,0,0,0,null,""]
[null,null,257,0,"",0,0,0,0,null,""]
[null,null,258,{"$f":"IF(AND(LEFT(Q276,2)=\"01\",LEFT(W276,2)=\"01\",LEFT(X276,2)=\"01\",E276=1),1,0)","v":0},{"$f":"$B$16","v":""},{"$f":"COUNTIF(AJ276:AS276,\"X\")","v":0},{"$f":"IF(Q276<>\"\",VALUE(LEFT(Q276,2)),0)","v":0},{"$f":"IF(P276<>\"\",COUNTIF($P$19:$P$518,P276),0)","v":0},0,null,""]
[null,null,259,0,"",0,0,0,0,null,{"$f":"IF(C277<=$B$5,C277,\"\")","v":""}]
[null,null,260,0,"",0,0,0,0,null,""]
[null,null,261,0,"",0,0,0,0,null,""]
[null,null,262,0,"",0,0,0,0,null,""]
[null,null,263,0,"",0,0,0,0,null,""]
[null,null,264,0,"",0,0,0,0,null,""]
[null,null,265,0,"",0,0,0,{"$f":"IF(K283<>\"\",1,0)","v":0},null,""]
[null,null,266,0,"",0,0,0,0,null,""]
[null,null,267,0,"",0,0,0,0,null,""]
[null,null,268,0,"",0,0,0,0,null,""]
[null,null,269,0,"",0,0,0,0,null,""]
[null,null,270,0,"",0,0,0,0,null,""]
[null,null,271,0,"",0,0,0,0,null,""]
[null,null,272,0,"",0,0,0,0,null,""]
[null,null,273,0,"",0,0,0,0,null,""]
[null,null,274,0,"",0,0,0,0,null,""]
[null,null,275,0,"",0,0,0,0,null,""]
[null,null,276,0,"",0,0,0,0,null,""]
[null,null,277,0,"",0,0,0,0,null,""]
[null,null,278,0,"",0,0,0,0,null,""]
[null,null,279,0,"",0,0,0,0,null,""]
[null,null,280,0,"",0,0,0,0,null,""]
[null,null,281,0,"",0,0,0,0,null,""]
[null,null,282,0,"",0,0,0,0,null,""]
[null,null,283,0,"",0,0,0,0,null,""]
[null,null,284,0,"",0,0,0,0,null,""]
[null,null,285,0,"",0,0,0,0,null,""]
[null,null,286,0,"",0,0,0,0,null,""]
[null,null,287,0,"",0,0,0,0,null,""]
[null,null,288,0,"",0,0,0,0,null,""]
[null,null,289,0,"",0,0,0,0,null,""]
[null,null,290,0,"",0,0,0,0,null,""]
[null,null,291,0,"",0,0,0,0,null,""]
[null,null,292,0,"",0,0,0,0,null,""]
[null,null,293,0,"",0,0,0,0,null,""]
[null,null,294,0,"",0,0,0,0,null,""]
[null,null,295,0,"",0,0,0,0,null,""]
[null,null,296,0,"",0,0,0,0,null,""]
[null,null,297,0,"",0,0,0,0,null,""]
[null,null,298,0,"",0,0,0,0,null,""]
[null,null,299,0,"",0,0,0,0,null,""]
[null,null,300,0,"",0,0,0,0,null,""]
[null,null,301,0,"",0,0,0,0,null,""]
[null,null,302,0,"",0,0,0,0,null,""]
[null,null,303,0,"",0,0,0,0,null,""]
[null,null,304,0,"",0,0,0,0,null,""]
[null,null,305,0,"",0,0,0,0,null,""]
[null,null,306,0,"",0,0,0,0,null,""]
[null,null,307,0,"",0,0,0,0,null,""]
[null,null,308,0,"",0,0,0,0,null,""]
[null,null,309,0,"",0,0,0,0,null,""]
[null,null,310,0,"",0,0,0,0,null,""]
[null,null,311,0,"",0,0,0,0,null,""]
[null,null,312,0,"",0,0,0,0,null,""]
[null,null,313,0,"",0,0,0,0,null,""]
[null,null,314,0,"",0,0,0,0,null,""]
[null,null,315,0,"",0,0,0,0,null,""]
[null,null,316,0,"",0,0,0,0,null,""]
[null,null,317,0,"",0,0,0,0,null,""]
[null,null,318,0,"",0,0,0,0,null,""]
[null,null,319,0,"",0,0,0,0,null,""]
[null,null,320,0,"",0,0,0,0,null,""]
[null,null,321,0,"",0,0,0,0,null,""]
[null,null,322,{"$f":"IF(AND(LEFT(Q340,2)=\"01\",LEFT(W340,2)=\"01\",LEFT(X340,2)=\"01\",E340=1),1,0)","v":0},{"$f":"$B$16","v":""},{"$f":"COUNTIF(AJ340:AS340,\"X\")","v":0},{"$f":"IF(Q340<>\"\",VALUE(LEFT(Q340,2)),0)","v":0},{"$f":"IF(P340<>\"\",COUNTIF($P$19:$P$518,P340),0)","v":0},0,null,""]
[null,null,323,0,"",0,0,0,0,null,{"$f":"IF(C341<=$B$5,C341,\"\")","v":""}]
[null,null,324,0,"",0,0,0,0,null,""]
[null,null,325,0,"",0,0,0,0,null,""]
[null,null,326,0,"",0,0,0,0,null,""]
[null,null,327,0,"",0,0,0,0,null,""]
[null,null,328,0,"",0,0,0,0,null,""]
[null,null,329,0,"",0,0,0,{"$f":"IF(K347<>\"\",1,0)","v":0},null,""]
[null,null,330,0,"",0,0,0,0,null,""]
[null,null,331,0,"",0,0,0,0,null,""]
[null,null,332,0,"",0,0,0,0,null,""]
[null,null,333,0,"",0,0,0,0,null,""]
[null,null,334,0,"",0,0,0,0,null,""]
[null,null,335,0,"",0,0,0,0,null,""]
[null,null,336,0,"",0,0,0,0,null,""]
[null,null,337,0,"",0,0,0,0,null,""]
[null,null,338,0,"",0,0,0,0,null,""]
[null,null,339,0,"",0,0,0,0,null,""]
[null,null,340,0,"",0,0,0,0,null,""]
[null,null,341,0,"",0,0,0,0,null,""]
[null,null,342,0,"",0,0,0,0,null,""]
[null,null,343,0,"",0,0,0,0,null,""]
[null,null,344,0,"",0,0,0,0,null,""]
[null,null,345,0,"",0,0,0,0,null,""]
[null,null,346,0,"",0,0,0,0,null,""]
[null,null,347,0,"",0,0,0,0,null,""]
[null,null,348,0,"",0,0,0,0,null,""]
[null,null,349,0,"",0,0,0,0,null,""]
[null,null,350,0,"",0,0,0,0,null,""]
[null,null,351,0,"",0,0,0,0,null,""]
[null,null,352,0,"",0,0,0,0,null,""]
[null,null,353,0,"",0,0,0,0,null,""]
[null,null,354,0,"",0,0,0,0,null,""]
[null,null,355,0,"",0,0,0,0,null,""]
[null,null,356,0,"",0,0,0,0,null,""]
[null,null,357,0,"",0,0,0,0,null,""]
[null,null,358,0,"",0,0,0,0,null,""]
[null,null,359,0,"",0,0,0,0,null,""]
[null,null,360,0,"",0,0,0,0,null,""]
[null,null,361,0,"",0,0,0,0,null,""]
[null,null,362,0,"",0,0,0,0,null,""]
[null,null,363,0,"",0,0,0,0,null,""]
[null,null,364,0,"",0,0,0,0,null,""]
[null,null,365,0,"",0,0,0,0,null,""]
[null,null,366,0,"",0,0,0,0,null,""]
[null,null,367,0,"",0,0,0,0,null,""]
[null,null,368,0,"",0,0,0,0,null,""]
[null,null,369,0,"",0,0,0,0,null,""]
[null,null,370,0,"",0,0,0,0,null,""]
[null,null,371,0,"",0,0,0,0,null,""]
[null,null,372,0,"",0,0,0,0,null,""]
[null,null,373,0,"",0,0,0,0,null,""]
[null,null,374,0,"",0,0,0,0,null,""]
[null,null,375,0,"",0,0,0,0,null,""]
[null,null,376,0,"",0,0,0,0,null,""]
[null,null,377,0,"",0,0,0,0,null,""]
[null,null,378,0,"",0,0,0,0,null,""]
[null,null,379,0,"",0,0,0,0,null,""]
[null,null,380,0,"",0,0,0,0,null,""]
[null,null,381,0,"",0,0,0,0,null,""]
[null,null,382,0,"",0,0,0,0,null,""]
[null,null,383,0,"",0,0,0,0,null,""]
[null,null,384,0,"",0,0,0,0,null,""]
[null,null,385,0,"",0,0,0,0,null,""]
[null,null,386,{"$f":"IF(AND(LEFT(Q404,2)=\"01\",LEFT(W404,2)=\"01\",LEFT(X404,2)=\"01\",E404=1),1,0)","v":0},{"$f":"$B$16","v":""},{"$f":"COUNTIF(AJ404:AS404,\"X\")","v":0},{"$f":"IF(Q404<>\"\",VALUE(LEFT(Q404,2)),0)","v":0},{"$f":"IF(P404<>\"\",COUNTIF($P$19:$P$518,P404),0)","v":0},0,null,""]
[null,null,387,0,"",0,0,0,0,null,{"$f":"IF(C405<=$B$5,C405,\"\")","v":""}]
[null,null,388,0,"",0,0,0,0,null,""]
[null,null,389,0,"",0,0,0,0,null,""]
[null,null,390,0,"",0,0,0,0,null,""]
[null,null,391,0,"",0,0,0,0,null,""]
[null,null,392,0,"",0,0,0,0,null,""]
[null,null,393,0,"",0,0,0,{"$f":"IF(K411<>\"\",1,0)","v":0},null,""]
[null,null,394,0,"",0,0,0,0,null,""]
[null,null,395,0,"",0,0,0,0,null,""]
[null,null,396,0,"",0,0,0,0,null,""]
[null,null,397,0,"",0,0,0,0,null,""]
[null,null,398,0,"",0,0,0,0,null,""]
[null,null,399,0,"",0,0,0,0,null,""]
[null,null,400,0,"",0,0,0,0,null,""]
[null,null,401,0,"",0,0,0,0,null,""]
[null,null,402,0,"",0,0,0,0,null,""]
[null,null,403,0,"",0,0,0,0,null,""]
[null,null,404,0,"",0,0,0,0,null,""]
[null,null,405,0,"",0,0,0,0,null,""]
[null,null,406,0,"",0,0,0,0,null,""]
[null,null,407,0,"",0,0,0,0,null,""]
[null,null,408,0,"",0,0,0,0,null,""]
[null,null,409,0,"",0,0,0,0,null,""]
[null,null,410,0,"",0,0,0,0,null,""]
[null,null,411,0,"",0,0,0,0,null,""]
[null,null,412,0,"",0,0,0,0,null,""]
[null,null,413,0,"",0,0,0,0,null,""]
[null,null,414,0,"",0,0,0,0,null,""]
[null,null,415,0,"",0,0,0,0,null,""]
[null,null,416,0,"",0,0,0,0,null,""]
[null,null,417,0,"",0,0,0,0,null,""]
[null,null,418,0,"",0,0,0,0,null,""]
[null,null,419,0,"",0,0,0,0,null,""]
[null,null,420,0,"",0,0,0,0,null,""]
[null,null,421,0,"",0,0,0,0,null,""]
[null,null,422,0,"",0,0,0,0,null,""]
[null,null,423,0,"",0,0,0,0,null,""]
[null,null,424,0,"",0,0,0,0,null,""]
[null,null,425,0,"",0,0,0,0,null,""]
[null,null,426,0,"",0,0,0,0,null,""]
[null,null,427,0,"",0,0,0,0,null,""]
[null,null,428,0,"",0,0,0,0,null,""]
[null,null,429,0,"",0,0,0,0,null,""]
[null,null,430,0,"",0,0,0,0,null,""]
[null,null,431,0,"",0,0,0,0,null,""]
[null,null,432,0,"",0,0,0,0,null,""]
[null,null,433,0,"",0,0,0,0,null,""]
[null,null,434,0,"",0,0,0,0,null,""]
[null,null,435,0,"",0,0,0,0,null,""]
[null,null,436,0,"",0,0,0,0,null,""]
[null,null,437,0,"",0,0,0,0,null,""]
[null,null,438,0,"",0,0,0,0,null,""]
[null,null,439,0,"",0,0,0,0,null,""]
[null,null,440,0,"",0,0,0,0,null,""]
[null,null,441,0,"",0,0,0,0,null,""]
[null,null,442,0,"",0,0,0,0,null,""]
[null,null,443,0,"",0,0,0,0,null,""]
[null,null,444,0,"",0,0,0,0,null,""]
[null,null,445,0,"",0,0,0,0,null,""]
[null,null,446,0,"",0,0,0,0,null,""]
[null,null,447,0,"",0,0,0,0,null,""]
[null,null,448,0,"",0,0,0,0,null,""]
[null,null,449,0,"",0,0,0,0,null,""]
[null,null,450,{"$f":"IF(AND(LEFT(Q468,2)=\"01\",LEFT(W468,2)=\"01\",LEFT(X468,2)=\"01\",E468=1),1,0)","v":0},{"$f":"$B$16","v":""},{"$f":"COUNTIF(AJ468:AS468,\"X\")","v":0},{"$f":"IF(Q468<>\"\",VALUE(LEFT(Q468,2)),0)","v":0},{"$f":"IF(P468<>\"\",COUNTIF($P$19:$P$518,P468),0)","v":0},0,null,""]
[null,null,451,0,"",0,0,0,0,null,{"$f":"IF(C469<=$B$5,C469,\"\")","v":""}]
[null,null,452,0,"",0,0,0,0,null,""]
[null,null,453,0,"",0,0,0,0,null,""]
[null,null,454,0,"",0,0,0,0,null,""]
[null,null,455,0,"",0,0,0,0,null,""]
[null,null,456,0,"",0,0,0,0,null,""]
[null,null,457,0,"",0,0,0,{"$f":"IF(K475<>\"\",1,0)","v":0},null,""]
[null,null,458,0,"",0,0,0,0,null,""]
[null,null,459,0,"",0,0,0,0,null,""]
[null,null,460,0,"",0,0,0,0,null,""]
[null,null,461,0,"",0,0,0,0,null,""]
[null,null,462,0,"",0,0,0,0,null,""]
[null,null,463,0,"",0,0,0,0,null,""]
[null,null,464,0,"",0,0,0,0,null,""]
[null,null,465,0,"",0,0,0,0,null,""]
[null,null,466,0,"",0,0,0,0,null,""]
[null,null,467,0,"",0,0,0,0,null,""]
[null,null,468,0,"",0,0,0,0,null,""]
[null,null,469,0,"",0,0,0,0,null,""]
[null,null,470,0,"",0,0,0,0,null,""]
[null,null,471,0,"",0,0,0,0,null,""]
[null,null,472,0,"",0,0,0,0,null,""]
[null,null,473,0,"",0,0,0,0,null,""]
[null,null,474,0,"",0,0,0,0,null,""]
[null,null,475,0,"",0,0,0,0,null,""]
[null,null,476,0,"",0,0,0,0,null,""]
[null,null,477,0,"",0,0,0,0,null,""]
[null,null,478,0,"",0,0,0,0,null,""]
[null,null,479,0,"",0,0,0,0,null,""]
[null,null,480,0,"",0,0,0,0,null,""]
[null,null,481,0,"",0,0,0,0,null,""]
[null,null,482,0,"",0,0,0,0,null,""]
[null,null,483,0,"",0,0,0,0,null,""]
[null,null,484,0,"",0,0,0,0,null,""]
[null,null,485,0,"",0,0,0,0,null,""]
[null,null,486,0,"",0,0,0,0,null,""]
[null,null,487,0,"",0,0,0,0,null,""]
[null,null,488,0,"",0,0,0,0,null,""]
[null,null,489,0,"",0,0,0,0,null,""]
[null,null,490,0,"",0,0,0,0,null,""]
[null,null,491,0,"",0,0,0,0,null,""]
[null,null,492,0,"",0,0,0,0,null,""]
[null,null,493,0,"",0,0,0,0,null,""]
[null,null,494,0,"",0,0,0,0,null,""]
[null,null,495,0,"",0,0,0,0,null,""]
[null,null,496,0,"",0,0,0,0,null,""]
[null,null,497,0,"",0,0,0,0,null,""]
[null,null,498,0,"",0,0,0,0,null,""]
[null,null,499,0,"",0,0,0,0,null,""]
[null,null,500,0,"",0,0,0,{"$f":"IF(K518<>\"\",1,0)","v":0},null,{"$f":"IF(C518<=$B$5,C518,\"\")","v":""}]
[null,null,null,null,null,null,null,null,null," "," ",null,null,null,null,"","","","","","","","","","","","","","","","","","","","","","","","","","","","","","","","",null,null,null,"",null,0]
[null,null,null,null,null,null,null,null,null,null,"…","…","…","…","…","…","…","…","…","…","…","…","…","…","…","…","…","…","…","…","…","…","…","…","…","…","…","…","…","…","…","…","…","…","…","…","…","…","…","…"]

{"sheet":"C400","index":4,"n_rows":44,"n_cols":19,"rows_kept":44,"cut":false,"hidden":false,"merged":[[15,14,15,17],[35,14,35,17],[1,5,1,17],[2,5,2,17]]}
[]
[null,null,null,null,null,"CENSO EDUCATIVO 2025"]
[null,null,null,null,null,"MATRÍCULA, DOCENTES Y RECURSOS"]
[]
[]
[]
[null,"324. ÁREA DE PSICOLOGÍA"]
[null,"324.1 DURANTE EL PRESENTE AÑO, ¿SE CUENTA CON ALGÚN PROFESIONAL DE PSICOLOGÍA",null,null,null,null,null,null,null,null,"324.2. ¿A TRAVÉS DE QUÉ MECANISMO SE INCORPORÓ AL PROFESIONAL DE PSICOLOGÍA?"]
[null,null,"INCORPORADO AL INSTITUTO O ESCUELA O PROGRAMA EDUCATIVO?",null,null,null,null,null,null,null,null,"Marque con una “X”, una opción"]
[]
[null,null,null,null,null,null,null,null,null,null,null,null,null,"Contratación a través de UGEL (pe. JEC, Convivencia Escolar, etc.)"]
[null,null,"Sí",null,null,"No",null,null,null,"Pase a la Sección 400",null,null,null,"Contratación a través de UGEL (por identificación de necesidad)"]
[null,null,null,null,null,null,null,null,null,null,null,null,null,"Prácticas profesionales"]
[null,null,null,null,null,null,null,null,null,null,null,null,null,"Servicio Rural y Urbano Marginal de Salud (Serums)"]
[null,null,null,null,null,null,null,null,null,null,null,null,null,"Pasantías"]
[null,null,null,null,null,null,null,null,null,null,null,null,null,"Otro"]
[]
[]
[null,"400. FORTALECIMIENTO DE LA GESTIÓN"]
[]
[null,"401. ¿CUÁLES SON LAS DOS PRINCIPALES TEMÁTICAS QUE CONSIDERA USTED QUE",null,null,null,null,null,null,null,null,"403. ¿SE HA INCORPORADO ALGÚN OBJETIVO O ACCIÓN REFERIDA A LA PREVENCIÓN,"]
[null,null,"EL PERSONAL ADMINISTRATIVO DE ESTE INSTITUTO O ESCUELA PODRÍA SER  CAPACITADO?",null,null,null,null,null,null,null,null,"PROMOCIÓN Y ATENCIÓN DE LA SALUD (FÍSICA, MENTAL O EMOCIONAL)"]
[null,null,"Marque con una “X”, solamente dos opciones",null,null,null,null,null,null,null,null,"O ALGUNA OTRA SIMILAR DIRIGIDA A PERSONAL DOCENTE, DIRECTIVO, JERÁRQUICO"]
[null,null,null,null,null,null,null,null,null,null,null,"O ADMINISTRATIVO EN LOS INSTRUMENTOS DE GESTIÓN DEL INSTITUTO O ESCUELA?"]
[null,null,0,null,"Seguridad de control de accesos y de control interno de la IE."]
[null,null,null,null,"Gestión de limpieza y/o mantenimiento de la IE",null,null,null,null,null,null,"Sí",null,null,"No",null,null,null,"Pase a la pregunta 405"]
[null,null,null,null,"Manejo de habilidades interpersonales (atención de usuarios)."]
[null,null,null,null,"Técnicas de archivo y despacho de documentos."]
[null,null,null,null,"Manejo de los sistemas informáticos del Minedu.",null,null,null,null,null,"404. ¿A TRAVÉS DE QUÉ INSTRUMENTOS DE GESTIÓN SE HA INCORPORADO?"]
[null,null,null,null,"Administración y control de recursos propios (financieros).",null,null,null,null,null,null,"Marque con una “X”, una opción"]
[null,null,null,null,"Manejo de herramientas TIC y ofimática."]
[null,null,null,null,"La gestión de riesgo de desastres priorizando la prevención y reducción",null,null,null,null,null,null,null,null,"Proyecto Educativo Institucional (PEI)"]
[null,null,null,null,null,null,null,null,null,null,null,null,null,"Plan Anual de Trabajo (PAT)"]
[null,"402.  CON RESPECTO A LAS LABORES DEL PERSONAL ADMINISTRATIVO DURANTE EL",null,null,null,null,null,null,null,null,null,null,null,"Proyecto Curricular de la IE (PCI)"]
[null,null,"AÑO 2023, ¿EN QUÉ ÁMBITO(S) IDENTIFICÓ MAYOR CARGA DE ACTIVIDADES",null,null,null,null,null,null,null,null,null,null,"Reglamento Interno (RI)"]
[null,null,"OPERATIVAS ADMINISTRATIVAS?",null,null,null,null,null,null,null,null,null,null,"Otro"]
[null,null,"Marque con una “X”, hasta dos opciones"]
[null,null,null,null,null,null,null,null,null,null,"405. ¿HA RECIBIDO ASISTENCIA Y ORIENTACIÓN PARA LA ATENCIÓN EDUCATIVA EDUCATIVA"]
[null,null,0,null,"Gestión de recursos financieros, bienes, servicios e infraestructura",null,null,null,null,null,null,"DE ESTUDIANTES CON DISCAPACIDAD DE PARTE DEL EQUIPO DE SERVICIO DE APOYO"]
[null,null,null,null,"Gestión de información de la IE (registro en sistemas administrativos)",null,null,null,null,null,null,"EDUCATIVO VIRTUAL (SAEV) ?"]
[null,null,null,null,"Gestión y seguimiento del uso de los recursos educativos."]
[null,null,null,null,"Limpieza y mantenimiento",null,null,null,null,null,null,"Sí",null,null,"No"]
[null,null,null,null,"La gestión de riesgo de desastres priorizando la prevención y reducción"]
[null,null,null,null,"Vigilancia y guardianía"]

{"sheet":"C500","index":5,"n_rows":142,"n_cols":27,"rows_kept":142,"cut":false,"hidden":false,"merged":[[76,9,76,12],[77,9,77,12],[78,9,78,12],[79,9,79,12],[80,9,80,12],[74,9,74,12],[74,20,74,21],[74,22,74,23],[75,9,75,12],[75,20,75,21],[75,22,75,23],[71,16,72,19],[71,20,71,25],[72,9,72,12],[72,22,72,23],[73,9,73,12],[73,20,73,21],[73,22,73,23],[58,2,58,4],[58,5,58,7],[58,8,58,9],[58,10,58,11],[70,5,71,6],[70,8,71,8],[70,9,71,12],[54,2,57,4],[54,5,57,7],[54,8,57,9],[54,10,57,11],[54,12,57,12],[25,3,25,6],[25,8,25,9],[25,10,25,11],[30,17,36,20],[32,15,34,16],[6,1,6,27],[12,15,13,16],[12,17,13,20],[12,21,12,26],[14,15,21,16],[14,17,21,20],[18,7,18,9],[18,10,18,12],[19,7,20,7],[19,8,20,9],[19,10,20,11],[19,12,20,12],[21,8,21,9],[21,10,21,11],[22,8,22,9],[22,10,22,11],[22,15,29,16],[22,17,29,20],[23,10,23,11],[24,8,24,9],[24,10,24,11]]}
[]
[null,null,null,null,null,"CENSO EDUCATIVO 2025"]
[null,null,null,null,null,"MATRÍCULA, DOCENTES Y MATERIALES EDUCATIVOS"]
[]
[]
[]
[null,"500. GESTIÓN DEL RIESGO DE DESASTRES"]
[]
[null,null,"501. EN EL PRESENTE AÑO, ESTE SERVICIO/NIVEL EDUCATIVO, ¿HA INCORPORADO ACCIONES",null,null,null,null,null,null,null,null,null,null,null,null,"502. SOBRE LA GESTIÓN DEL RIESGO DE DESASTRES EN ESTE SERVICIO/NIVEL EDUCATIVO,"]
[null,null,null,"ESTRATÉGICAS Y OPERATIVAS EN GESTIÓN DEL RIESGO DE DESASTRES Y SEGURIDAD Y",null,null,null,null,null,null,null,null,null,null,null,null,"ATIENDA LAS SIGUIENTES PREGUNTAS:"]
[null,null,null,"DEFENSA NACIONAL EN SUS INSTRUMENTOS DE GESTIÓN VIGENTES? ",null,null,null,null,null,null,null,null,null,null,null,null,"Marque con una “X” en “Si” o “No” según corresponda en atención a cada pregunta"]
[]
[null,null,null,"Sí","",null,null,null,"No  ",null,null,null,null,null,null,"Bien o Servicio",null,"Pregunta",null,null,null,"Marque con un “X”, según corresponda "]
[null,null,null,null,null,null,null,null,null,null,null,null,null,null,null,null,null,null,null,null,null,null,"SI","NO","Si es Sí, de quién lo recibió"]
[null,null,null,null,null,null,null,null,null,null,null,null,null,null,null,"Planos de Seguridad",null,"¿El servicio/nivel educativo cuenta con planos de seguridad acorde a la normativa?"]
[null,null,null,"Precise las acciones incorporadas en los documentos de gestión",null,null,null,null,null,null,null,null,null,null,null,null,null,null,null,null,null,null,null,null,"De la DRE/GRE",null,""]
[null,null,null,"Marque con una “X”, según corresponda ",null,null,null,null,null,null,null,null,null,null,null,null,null,null,null,null,null,null,null,null,"De la UGEL",null,""]
[null,null,null,null,null,null,null,null,null,null,null,null,null,null,null,null,null,null,null,null,null,null,"",null,"De la Municipalidad",null,""]
[null,null,null,null,null,null,null,"Riesgo de Desastres",null,null,"Seguridad y Defensa Nacional",null,null,null,null,null,null,null,null,null,null,null,null,null,"De una entidad privada",null,""]
[null,null,"Documentos de Gestión",null,null,null,null,"Acciones Estratégicas","Acciones Operativas",null,"Acciones Estratégicas",null,"Acciones Operativas",null,null,null,null,null,null,null,null,null,null,null,"Adquisición de la IE",null,""]
[null,null,null,null,null,null,null,null,null,null,null,null,null,null,null,null,null,null,null,null,null,null,null,null,"Donación",null,""]
[null,null,"Proyecto Educativo Inst. (PEI)",null,null,null,null,"",null,null,""]
[null,null,"Plan Anual de Trabajo (PAT)",null,null,null,null,null,"",null,null,null,"",null,null,"Dispositivos de Seguridad",null,"¿El servicio/nivel educativo cuenta con dispositivos de seguridad acorde a lo que indica en sus planos de seguridad?"]
[null,null,"Proyecto Curricular. Inst. (PCI)",null,null,null,null,"",null,null,"",null,null,null,null,null,null,null,null,null,null,null,null,null,"De la DRE/GRE",null,""]
[null,null,"Reglamento Interno (RI)",null,null,null,null,null,"",null,null,null,"",null,null,null,null,null,null,null,null,null,null,null,"De la UGEL",null,""]
[null,null,"Otros",null,null,null,null,"","",null,"",null,"",null,null,null,null,null,null,null,null,null,"",null,"De la Municipalidad",null,""]
[null,null,null,null,null,null,null,null,null,null,null,null,null,null,null,null,null,null,null,null,null,null,null,null,"De una entidad privada",null,""]
[null,null,null,null,null,null,null,null,null,null,null,null,null,null,null,null,null,null,null,null,null,null,null,null,"Adquisición de la IE",null,""]
[null,null,null,null,null,null,null,null,null,null,null,null,null,null,null,null,null,null,null,null,null,null,null,null,"Donación",null,""]
[]
[null,null,null,null,null,null,null,null,null,null,null,null,null,null,null,null,null,"¿El servicio/nivel educativo cuenta con dispositivos de seguridad incompletos"]
[null,null,null,null,null,null,null,null,null,null,null,null,null,null,null,null,null,null,null,null,null,null,null,null,"De la DRE/GRE",null,""]
[null,null,null,null,null,null,null,null,null,null,null,null,null,null,null,"Otros Casos",null,null,null,null,null,null,null,null,"De la UGEL",null,""]
[null,null,null,null,null,null,null,null,null,null,null,null,null,null,null,null,null,null,null,null,null,null,"",null,"De la Municipalidad",null,""]
[null,null,null,null,null,null,null,null,null,null,null,null,null,null,null,null,null,null,null,null,null,null,null,null,"De una entidad privada",null,""]
[null,null,null,null,null,null,null,null,null,null,null,null,null,null,null,null,null,null,null,null,null,null,null,null,"Adquisición de la IE",null,""]
[null,null,null,null,null,null,null,null,null,null,null,null,null,null,null,null,null,null,null,null,null,null,null,null,"Donación",null,""]
[]
[]
[]
[null,null,"503. EN EL PRESENTE AÑO, LOS MIEMBROS DE ESTE SERVICIO/NIVEL EDUCATIVO,",null,null,null,null,null,null,null,null,null,null,null,null,"504. EN EL PRESENTE AÑO, ESTE SERVICIO/NIVEL EDUCATIVO HA SUFRIDO EL IMPACTO DE"]
[null,null,null,"¿HAN RECIBIDO ACCIONES FORMATIVAS EN MATERIA DE LA GESTIÓN DEL RIESGO ",null,null,null,null,null,null,null,null,null,null,null,null,"DAÑOS DE UN FENÓMENO NATURAL O ANTRÓPICO?"]
[null,null,null,"DE DESASTRES (GRD) Y/O SEGURIDAD Y DEFENSA NACIONAL (SDN)?"]
[null,null,null,null,null,null,null,null,null,null,null,null,null,null,null,null,"Sí",null,null,null,null,null,"No  ",""]
[null,null,null,"Sí","",null,null,null,"No  "]
[]
[null,null,null,null,null,null,null,null,null,null,"Entidad",null,"SI - NO",null,null,null,null,null,null,"¿El servicio fue",null,null,"Sí",""]
[null,null,null,null,null,"El servicio fue brindado por:",null,null,null,"DRE/GRE",null,null,"",null,null,null,null,null,null,"suspendido?"]
[null,null,null,null,null,null,null,null,null,"UGEL",null,null,"",null,null,null,null,null,null,null,null,null,"No  ",""]
[null,null,null,null,null,null,null,null,null,"Municipio",null,null,""]
[null,null,null,null,null,null,null,null,null,"ONG/Entidad privada",null,null,"",null,null,null,"¿Cuál de los siguientes canales se utilizó para reportar la emergencia a la UGEL?"]
[null,null,null,null,null,null,null,null,null,null,null,null,{"$f":"COUNTIF(M48:M51,\"SI\")+COUNTIF(M48:M51,\"SI\")","v":0},null,null,null,"Marque con una “X”, una o más opciones"]
[null,null,"Tematicas: Marque con una “X”, según corresponda"]
[null,null,"Gestión del Riesgo de Desastres",null,null,null,null,null,null,null,"Seguridad y Defensa Nacional",null,null,null,null,null,"","Celular"]
[null,null,"Política/Plan NAcional en GRD",null,null,"Componentes, procesos o procedimientos de la GRD",null,null,"*Herramientas técnicas / Financieras en GRD",null,"Política/Plan Nacional en SDN",null,"Fundamentos de la SDN",null,null,null,"","Radiofonía"]
[null,null,null,null,null,null,null,null,null,null,null,null,null,null,null,null,"","Teléfono satelital"]
[null,null,null,null,null,null,null,null,null,null,null,null,null,null,null,null,"","Plataforma web"]
[null,null,null,null,null,null,null,null,null,null,null,null,null,null,null,null,"","Por conducto regular (oficio, informe)"]
[null,null,"",null,null,"",null,null,"",null,"",null,"",null,null,null,null,"No se sabía que había que reportar a la UGEL"]
[null,null,{"$f":"COUNTIF(C59:M59,\"X\")","v":0},null,null,null,null,null,null,null,null,null,null,null,null,null,"","No se reportó la emergencia porque no hay cobertura ni canal disponible en la zona."]
[]
[]
[null,null,"505. EN EL PRESENTE AÑO, ESTE SERVICIO/NIVEL EDUCATIVO, ¿HA ORGANIZADO Y EJECUTADO",null,null,null,null,null,null,null,null,null,null,null,null,"507. EN EL AÑO 2024, ESTE SERVICIO/NIVEL EDUCATIVO, ¿PARTICIPÓ EN LOS SIMULACROS"]
[null,null,null,"CAMPAÑAS COMUNICACIONALES DE GESTIÓN DEL RIESGO DE DESASTRES (GRD) Y/O",null,null,null,null,null,null,null,null,null,null,null,null,"CONVOCADOS POR MINEDU Y/O INDECI?"]
[null,null,null,"SEGURIDAD Y DEFENSA NACIONAL (SDN)?"]
[null,null,null,null,null,null,null,null,null,null,null,null,null,null,null,null,"Sí","",null,null,null,null,"No  "]
[null,null,null,"Sí","",null,null,null,"No  "]
[]
[null,null,null,null,null,null,null,null,null,null,null,null,null,null,null,null,"¿Qué nivel de preparación lograron?"]
[null,null,null,"Tipo de campaña que realizó",null,null,null,null,null,null,null,null,null,null,null,null,"Marque con una “X”, el nivel logrado en cada simulacro"]
[null,null,null,null,null,"Ítems",null,null,"Elija una opción","Temática de la campaña*"]
[null,null,null,null,null,null,null,{"$f":"COUNTIF(I73:I81,\"SI\")+COUNTIF(I73:I81,\"NO\")","v":0},null,null,null,null,null,null,null,null,"N° de simulacro",null,null,null,"Nivel de preparación Marque con un “X”"]
[null,null,null,1,"Pasacalle",null,null,null,"","",null,null,null,null,null,null,null,null,null,null,"Inicio",null,"Proceso",null,"Bueno","Destacado"]
[null,null,null,2,"Feria",null,null,null,"","",null,null,null,null,null,null,1,"Primer simulacro",null,null,"",null,"",null,"",""]
[null,null,null,3,"Activaciones motivadoras",null,null,null,"","",null,null,null,null,null,null,2,"Segundo simulacro",null,null,"",null,"",null,"",""]
[null,null,null,4,"Conferencias /Foros",null,null,null,"","",null,null,null,null,null,null,3,"Tercer simulacro",null,null,"",null,"",null,"",""]
[null,null,null,5,"Webinars",null,null,null,"",""]
[null,null,null,6,"Difusión de afiches, trípticos, volantes",null,null,null,"",""]
[null,null,null,7,"Murales",null,null,null,"",""]
[null,null,null,8,"Post en redes sociales",null,null,null,"",""]
[null,null,null,9,"Post radiales",null,null,null,"",""]
[]
[]
[null,null,"506. ESTE SERVICIO/NIVEL EDUCATIVO, ¿CUENTA CON UN PLAN DE GESTIÓN DEL RIESGO DE DESASTRES?"]
[]
[null,null,null,"Sí","",null,null,null,"No  "]
[]
[]
[null,null,null,"¿Qué actividades ha desarrollado en el Plan?"]
[null,null,null,"Marque con una “X”, una o más opciones"]
[]
[null,null,null,"","Identificó los peligros más frecuentes de la IE. (Ejem: lluvias, huaycos, entre otros)."]
[null,null,null,"","Identificó las vulnerabilidades en la IE. (Ejem: techos, canaletas, paredes, pisos en mal estado, personal sin capacitación, entre otros)."]
[null,null,null,"","Priorizó acciones correctivas en la infraestructura de la IE con presupuesto de mantenimiento."]
[null,null,null,"","Procedimientos de evacuación a zonas seguras en situaciones de emergencias."]
[null,null,null,"","Procedimientos de contención y soporte socioemocional en situaciones de emergencias."]
[null,null,null,"","Procedimientos de aplicación del currículo vigente en situaciones de emergencias"]
[]
[]
[]
[]
[]
[]
["DIRECTOR(A)"]
["SUB DIRECTOR(A)"]
["DOCENTE"]
["COORDINADOR(A)"]
["ASESOR"]
["ADMINISTRATIVO"]
["ASISTENTE"]
["AUXILIAR"]
["SECRETARIA(O)"]
["ESTADÍSTICO"]
["ESPECIALISTA"]
["BIBLIOTECARIO"]
["CARE"]
["COMANDANTE PNP"]
["CONTADOR"]
["DAIP"]
["DIGITADOR(A)"]
["GERENTE"]
["JEFE ACADÉMICO"]
["JEFE ADMINISTRATIVO"]
["JEFE DE ÁREA"]
["JEFE DE LABORATORIO"]
["JEFE DE PERSONAL"]
["JEFE DE SEDE"]
["JEFE DE UNIDAD"]
["OFICINISTA"]
["OPERADOR DE SISTEMAS"]
["PERSONAL DE SERVICIO"]
["PROGRAMADOR"]
["PROMOTOR(A)"]
["PSICOLOGO"]
["REGISTRADOR(A)"]
["REPRESENTANTE LEGAL"]
["SOPORTE TECNOLOGICO"]
["TÉCNICO ADMINISTRATIVO"]
["TESORERO(A)"]
["TRABAJADOR SOCIAL"]
["TUTOR"]
["OTROS"]

{"sheet":"C600","index":6,"n_rows":149,"n_cols":23,"rows_kept":149,"cut":false,"hidden":false,"merged":[[69,20,69,22],[84,11,84,18],[84,19,84,21],[6,1,6,23],[15,15,16,19],[15,20,16,20],[15,21,16,21],[15,22,16,22],[26,17,26,19],[44,9,44,11],[46,8,46,10],[47,8,47,10],[47,20,47,22],[48,8,48,10],[85,3,85,7],[85,8,85,10],[85,11,85,18],[85,19,85,21],[83,3,83,7],[83,8,83,10],[83,11,83,18],[83,19,83,21],[84,3,84,7],[84,8,84,10]]}
[]
[null,null,null,null,null,"CENSO EDUCATIVO 2025"]
[null,null,null,null,null,"MATRÍCULA, DOCENTES Y MATERIALES EDUCATIVOS"]
[]
[]
[]
[null,"600. EDUCACIÓN AMBIENTAL"]
[]
[null,null,"601. EN EL PRESENTE AÑO, ESTE SERVICIO/NIVEL EDUCATIVO, ¿HA ELABORADO SU PROYECTO",null,null,null,null,null,null,null,null,null,null,null,"602. SEÑOR(A) DIRECTOR(A), SI HA ELABORADO SU PROYECTO EDUCATIVO AMBIENTAL"]
[null,null,null,"EDUCATIVO AMBIENTAL INTEGRADO (PEAI)?",null,null,null,null,null,null,null,null,null,null,null,"INTEGRADO (PEAI), MARQUE USTED, LAS PROBLEMÁTICAS/OPORTUNIDADES AMBIENTALES"]
[null,null,null,null,null,null,null,null,null,null,null,null,null,null,null,"QUE SE ABORDAN EN EL PEAI, DE ACUERDO A LO SIGUIENTE:"]
[null,null,null,"Sí"]
[null,null,null,null,null,null,null,null,null,null,null,null,null,null,null,"Marque con una “X”, hasta dos opciones"]
[null,null,null,null,null,"¿Ha implementado su proyecto educativo ambiental integrado (PEAI):"]
[]
[null,null,null,null,null,"Sí  ","",null,"Período",null,"Año","Mes",null,null,null,"Problemáticas / Oportunidades",null,null,null,null,"Principal","Comple- mentario","No aplica"]
[null,null,null,null,null,null,null,"","Desde",null,"",""]
[null,null,null,null,null,"No  ","","","Hasta",null,"","",null,null,null,1,"Contaminación por residuos sólidos",null,null,null,"","",""]
[null,null,null,null,null,null,null,null,null,null,null,null,null,null,null,2,"Cambio climático"]
[null,null,null,null,null,null,null,null,null,null,null,null,null,null,null,3,"Contaminación del agua"]
[null,null,null,"No  ","",null,"Pase a la pregunta 603.",null,null,null,null,null,null,null,null,4,"Desertificación"]
[null,null,null,null,null,null,null,null,null,null,null,null,null,null,null,5,"Depredación de flora y fauna"]
[null,null,null,null,null,null,null,null,null,null,null,null,null,null,null,6,"Microplásticos"]
[null,null,null,null,"Indique el/los motivo(s):",null,null,null,null,null,null,null,null,null,null,7,"3R: reducir, reusar, reciclar"]
[null,null,null,null,"Marque con una “X”, una o más opciones",null,null,null,null,null,null,null,null,null,null,8,"Contaminación del aire"]
[null,null,null,null,null,null,null,null,null,null,null,null,null,null,null,9,"Alimentación saludable"]
[null,null,null,null,"","Falta de conocimiento o capacitación",null,null,null,null,null,null,null,null,null,10,"Otro"]
[null,null,null,null,"","Falta de recursos"]
[null,null,null,null,"","Resistencia al cambio"]
[null,null,null,null,"","Dificultades para integrar el PEAI en el currículo"]
[null,null,null,null,"","Falta de apoyo institucional"]
[]
[]
[null,null,"603. EL SERVICIO/NIVEL EDUCATIVO, ¿CUENTA CON LA BRIGADA DE EDUCACIÓN AMBIENTAL Y",null,null,null,null,null,null,null,null,null,null,null,"605. SEÑOR(A) DIRECTOR(A), ¿LA BRIGADA DE EDUCACIÓN AMBIENTAL Y GESTIÓN DEL"]
[null,null,null,"GESTIÓN DE RIESGO DE DESASTRES?",null,null,null,null,null,null,null,null,null,null,null,"RIESGO DE DESASTRES CONFORMADA HA SIDO FORTALECIDO?"]
[]
[null,null,null,null,null,null,null,null,null,null,null,null,null,null,null,"Sí"]
[]
[null,null,null,"Sí","",null,null,null,"No  ",null," u   Datos del responsable.",null,null,null,null,null,null,null,"¿Quiénes la realizaron?"]
[null,null,null,null,null,null,null,null,null,null,null,null,null,null,null,null,null,null,"Marque con una “X”, una o más opciones"]
[]
[null,null,null,null,null,"Documento que lo aprueba",null,null,null,null,"Resolución",null,null,null,null,null,null,null,null,"El brigadista líder"]
[null,null,null,null,null,null,null,null,null,null,"Otro",null,null,null,null,null,null,null,null,"Directivo"]
[null,null,null,null,null,null,null,null,null,null,null,null,null,null,null,null,null,null,null,"Docentes"]
[null,null,null,null,null,"Número del Documento",null,null,null,"",null,null,null,null,null,null,null,null,null,"UGEL"]
[null,null,null,null,null,null,null,null,null,null,null,null,null,null,null,null,null,null,null,"DRE/GRE"]
[null,null,null,null,null,null,null,null,"Desde:",null,null,"Hasta:",null,null,null,null,null,null,null,"Gobierno local"]
[null,null,null,null,null,"Vigencia de la brigada",null,null,"DD/MM/AAAA",null,null,"DD/MM/AAAA",null,null,null,null,null,null,null,"Otro",""]
[null,null,null,null,null,null,null,null,"",null,null,""]
[null,null,null,null,null,null,null,null,null,null,null,null,null,null,"606. SEÑOR(A) DIRECTOR(A), INDIQUE USTED, ¿SI EN LOS DOS ÚLTIMOS AÑOS, LOS"]
[null,null,null,null,null,null,null,null,null,null,null,null,null,null,null,"INTEGRANTES DE LA BRIGADA DE EDUCACIÓN AMBIENTAL Y GESTIÓN DEL"]
[null,null,null,null,null,null,null,null,null,null,null,null,null,null,null,"RIESGO DE DESASTRES, HAN SIDO CAPACITADOS?"]
[]
[null,null,null,null,null,null,null,null,null,null,null,null,null,null,null,"Sí",null,null,"¿En qué temas han sido capacitados?"]
[null,null,"604. SEÑOR(A) DIRECTOR(A), LA BRIGADA DE EDUCACIÓN AMBIENTAL Y GESTIÓN DEL",null,null,null,null,null,null,null,null,null,null,null,null,null,null,null,"Marque con una “X”, una o más opciones"]
[null,null,null,"RIESGO DE DESASTRES CONFORMADA, ¿CUENTA CON UN PLAN DE ACCIÓN ELABORADO?"]
[null,null,null,null,null,null,null,null,null,null,null,null,null,null,null,null,null,null,null,"Cambio climático"]
[null,null,null,null,null,null,null,null,null,null,null,null,null,null,null,null,null,null,null,"Manejo de residuos sólidos"]
[null,null,null,"Sí",null,null,null,null,null,null,null,null,null,null,null,null,null,null,null,"Cuidado de los humedales"]
[null,null,null,null,null,null,null,null,null,null,null,null,null,null,null,null,null,null,null,"Diversidad biológica"]
[null,null,null,null,null,null,"Indique la fecha de la elaboración del plan de acción",null,null,null,null,null,null,null,null,null,null,null,null,"Primeros auxilios"]
[null,null,null,null,null,null,null,null,null,null,null,null,null,null,null,null,null,null,null,"Capacitación contra Incendios"]
[null,null,null,null,null,null,null,null,null,null,null,null,null,null,null,null,null,null,null,"Señalización y evacuación"]
[null,null,null,null,null,null,"Día","Mes","Año",null,null,null,null,null,null,null,null,null,null,"Seguridad y protección"]
[null,null,null,null,null,null,null,null,null,null,null,{"$f":"CONCATENATE(G65,\"/\",H65,\"/\",I65)","v":"//"},null,null,null,null,null,null,null,"Soporte Socioemocional y actividades lúdicas"]
[null,null,null,null,null,null,null,null,null,null,null,null,null,null,null,null,null,null,null,"Alimentación saludable"]
[null,null,null,null,null,null,null,null,null,null,null,null,null,null,null,null,null,null,null,"Transporte sostenible"]
[null,null,null,null,null,null,null,null,null,null,null,null,null,null,null,null,null,null,null,"Desertificación"]
[null,null,null,null,null,null,null,null,null,null,null,null,null,null,null,null,null,null,null,"Plásticos y microplásticos"]
[null,null,null,null,null,null,null,null,null,null,null,null,null,null,null,null,null,null,null,"Otro",""]
[null,null,null,"No  ",null,null,null,null,null,null,null,null,null,null,null,null,null,null,""]
[null,null,null,null,null,null,null,null,null,null,null,null,null,null,null,"No  ",null,null,"Indique, ¿cuál es el motivo?"]
[null,null,null,null,null,null,null,null,null,null,null,null,null,null,null,null,null,null,"Marque con una “X”, una opción"]
[null,null,null,null,"¿El plan de acción esta incorporado en el plan anual de trabajo?"]
[null,null,null,null,null,null,null,null,null,null,null,null,null,null,null,null,null,null,null,"No saben a quién solicitar apoyo para la capacitación"]
[null,null,null,null,"Sí",null,null,null,"No  ",null,null,null,null,null,null,null,null,null,null,"No cuentan con aliados especializados"]
[null,null,null,null,null,null,null,null,null,null,null,null,null,null,null,null,null,null,null,"Se suspendió por cruce de actividades"]
[null,null,null,null,null,null,null,null,null,null,null,null,null,null,null,null,null,null,null,"No se ha recibido invitación"]
[]
[]
[null,"DATOS DEL DIRECTOR/RESPONSABLE DEL LLENADO DE LA CÉDULA"]
[]
[null,null,null,"NOMBRES Y APELLIDOS",null,null,null,null,"CARGO",null,null,"CORREO ELECTRÓNICO",null,null,null,null,null,null,null,"TELÉFONO"]
[]
[]
[]
[]
[]
[]
[]
[]
[]
[]
[]
[]
[]
[]
[]
[]
[]
[]
[]
[]
[]
[]
[]
[]
[]
[]
["DIRECTOR(A)"]
["SUB DIRECTOR(A)"]
["DOCENTE"]
["COORDINADOR(A)"]
["ASESOR"]
["ADMINISTRATIVO"]
["ASISTENTE"]
["AUXILIAR"]
["SECRETARIA(O)"]
["ESTADÍSTICO"]
["ESPECIALISTA"]
["BIBLIOTECARIO"]
["CARE"]
["COMANDANTE PNP"]
["CONTADOR"]
["DAIP"]
["DIGITADOR(A)"]
["GERENTE"]
["JEFE ACADÉMICO"]
["JEFE ADMINISTRATIVO"]
["JEFE DE AREA"]
["JEFE DE LABORATORIO"]
["JEFE DE PERSONAL"]
["JEFE DE SEDE"]
["JEFE UNIDAD"]
["OFICINISTA"]
["OPERADOR DE SISTEMAS"]
["PERSONAL DE SERVICIO"]
["PROGRAMADOR"]
["PROMOTOR(A)"]
["PSICOLOGO"]
["REGISTRADOR(A)"]
["REPRESENTANTE LEGAL"]
["SOPORTE TECNOLOGICO"]
["TÉCNICO ADMINISTRATIVO"]
["TESORERO(A)"]
["TRABAJADOR SOCIAL"]
["TUTOR"]
["OTROS"]
["DOCENTE COORDINADOR(A)"]

{"sheet":"Enviar","index":7,"n_rows":9,"n_cols":4,"rows_kept":9,"cut":false,"hidden":false,"merged":[[0,1,0,4],[1,1,1,4]]}
[null,"CENSO EDUCATIVO 2025"]
[null,"MATRÍCULA, DOCENTES Y RECURSOS"]
[]
[]
[null,null,"Paso 1:","Realice el ENVÍO con su clave EOL."]
[]
[null,null,"Paso 2:","Una vez realizado el ENVÍO,  Revise su constancia de envio."]
[]
[null,null,"  ADVERTENCIA","ASEGÚRESE DE REGISTRAR TODA LA INFORMACIÓN DEL NIVEL INFORMANTE"]

{"sheet":"Carreras","index":8,"n_rows":161,"n_cols":3,"rows_kept":161,"cut":false,"hidden":false,"merged":[]}
[]
[]
[null,"PROFESIONAL  (5 AÑOS DE ESTUDIO)"]
[null,"APF2156520","ARTE DRAMÁTICO"]
[null,"APF2136668","ARTES PLÁSTICAS Y VISUALES EN LA ESPECIALIDAD DE ESCULTURA"]
[null,"APF2136669","ARTES PLÁSTICAS Y VISUALES EN LA ESPECIALIDAD DE GRABADO Y CERÁMICA"]
[null,"APF2136670","ARTES PLÁSTICAS Y VISUALES EN LA ESPECIALIDAD DE PINTURA"]
[null,"APF2136671","ARTES VISUALES CON MENCIÓN EN ACUARELA"]
[null,"APF2136672","ARTES VISUALES CON MENCIÓN EN CERÁMICA"]
[null,"APF2136673","ARTES VISUALES CON MENCIÓN EN ESCULTURA"]
[null,"APF2136674","ARTES VISUALES CON MENCIÓN EN PINTURA"]
[null,"APF2156675","ARTISTA MÚSICO EN LA ESPECIALIDAD DE COMPOSICIÓN"]
[null,"APF2156676","ARTISTA MÚSICO EN LA ESPECIALIDAD DE EJECUCIÓN INSTRUMENTAL Y CANTO"]
[null,"APF2136677","ARTISTA PROFESIONAL ARTES PLÁSTICAS Y VISUALES"]
[null,"APF2242837","ARTISTA PROFESIONAL CON MENCIÓN EN DIRECCIÓN CORAL"]
[null,"APF2242938","ARTISTA PROFESIONAL CON MENCIÓN EN DIRECCIÓN INSTRUMENTAL"]
[null,"APF2243039","ARTISTA PROFESIONAL CON MENCIÓN EN EJECUCIÓN INSTRUMENTAL"]
[null,"APF2136490","ARTÍSTA PROFESIONAL EN ARTES PLÁSTICAS Y VISUALES"]
[null,"APF2156493","ARTISTA PROFESIONAL EN DANZA"]
[null,"APF2156649","ARTISTA PROFESIONAL EN FOLKLORE CON MENCIÓN EN DANZA"]
[null,"APF2156650","ARTISTA PROFESIONAL EN FOLKLORE CON MENCIÓN EN MÚSICA"]
[null,"APF2156522","ARTISTA PROFESIONAL EN FOLKLORE"]
[null,"APF2156651","ARTISTA PROFESIONAL EN LA ESPECIALIDAD ACTUACIÓN TEATRAL"]
[null,"APF2136685","ARTISTA PROFESIONAL EN LA ESPECIALIDAD ARTES PLÁSTICAS Y VISUALES CON MENCIÓN EN ESCULTURA"]
[null,"APF2136686","ARTISTA PROFESIONAL EN LA ESPECIALIDAD ARTES PLÁSTICAS Y VISUALES CON MENCIÓN EN GRABADO DISEÑO GRÁFICO"]
[null,"APF2136687","ARTISTA PROFESIONAL EN LA ESPECIALIDAD ARTES PLÁSTICAS Y VISUALES CON MENCIÓN EN PINTURA"]
[null,"APF2136645","ARTISTA PROFESIONAL EN LA ESPECIALIDAD DE ARTES PLÁSTICAS"]
[null,"APF2136678","ARTISTA PROFESIONAL EN LA ESPECIALIDAD DE ARTES PLÁSTICAS"]
[null,"APF2136689","ARTISTA PROFESIONAL EN LA ESPECIALIDAD DE ARTES PLÁSTICAS Y VISUALES"]
[null,"APF2156690","ARTISTA PROFESIONAL EN LA ESPECIALIDAD DE DANZA"]
[null,"APF2136681","ARTISTA PROFESIONAL EN LA ESPECIALIDAD DE ESCULTURA"]
[null,"APF2136682","ARTISTA PROFESIONAL EN LA ESPECIALIDAD DE GRABADO"]
[null,"APF2156691","ARTISTA PROFESIONAL EN LA ESPECIALIDAD DE MÚSICA"]
[null,"APF2136683","ARTISTA PROFESIONAL EN LA ESPECIALIDAD DE PINTURA"]
[null,"APF2136684","ARTISTA PROFESIONAL EN LA ESPECIALIDAD DE PRODUCCIÓN EN DISEÑO GRÁFICO Y ARTES PUBLICITARIAS"]
[null,"APF2156692","ARTISTA PROFESIONAL EN LA ESPECIALIDAD DE TEATRO"]
[null,"APF2136646","ARTISTA PROFESIONAL EN LA ESPECIALIDAD EN ARTES PLÁSTICAS CON MENCIÓN EN ESCULTURA"]
[null,"APF2136647","ARTISTA PROFESIONAL EN LA ESPECIALIDAD EN ARTES PLÁSTICAS CON MENCIÓN EN GRABADO"]
[null,"APF2136648","ARTISTA PROFESIONAL EN LA ESPECIALIDAD EN ARTES PLÁSTICAS CON MENCIÓN EN PINTURA"]
[null,"APF2156652","ARTISTA PROFESIONAL EN LA ESPECIALIDAD MÚSICA"]
[null,"APF2156693","ARTISTA PROFESIONAL EN LA INTERPRETACIÓN MUSICAL"]
[null,"APF2156491","ARTISTA PROFESIONAL EN MÚSICA"]
[null,"APF2136680","ARTISTA PROFESIONAL EN PINTURA Y ESCULTURA"]
[null,"APF2156492","ARTISTA PROFESIONAL EN TEATRO"]
[null,"APF2253140","ARTISTA PROFESIONAL ESPECIALIDAD ARTE DRAMÁTICO"]
[null,"APF2136694","CONSERVACIÓN Y RESTAURACIÓN"]
[null,"APF2156132","DANZA"]
[null,"APF2156664","DOCENTE EN DANZA CLÁSICA"]
[null,"APF1616526","DOCENTE EN EDUCACIÓN EN DANZA"]
[null,"APF1616525","DOCENTE EN EDUCACIÓN MUSICAL CON MENCIÓN EN UN INSTRUMENTO"]
[null,"APF1616524","DOCENTE EN EDUCACIÓN MUSICAL"]
[null,"APF1616695","EDUCACIÓN ARTÍSTICA ARTES PLÁSTICAS Y VISUALES"]
[null,"APF1616696","EDUCACIÓN ARTÍSTICA CON MENCIÓN EN ARTES PLÁSTICAS"]
[null,"APF1616697","EDUCACIÓN ARTÍSTICA CON MENCIÓN EN DANZA"]
[null,"APF1616698","EDUCACIÓN ARTÍSTICA CON MENCIÓN EN MÚSICA"]
[null,"APF1616699","EDUCACIÓN ARTÍSTICA CON MENCIÓN EN TEATRO"]
[null,"APF1616494","EDUCACIÓN ARTÍSTICA EN ARTES PLÁSTICAS Y VISUALES"]
[null,"APF1616497","EDUCACIÓN ARTÍSTICA EN DANZA"]
[null,"APF1616653","EDUCACIÓN ARTÍSTICA EN FOLKLORE CON MENCIÓN EN DANZA"]
[null,"APF1616654","EDUCACIÓN ARTÍSTICA EN FOLKLORE CON MENCIÓN EN MÚSICA"]
[null,"APF1616523","EDUCACIÓN ARTÍSTICA EN FOLKLORE"]
[null,"APF1616658","EDUCACIÓN ARTÍSTICA EN LA ESPECIALIDAD DANZAS FOLKLÓRICAS"]
[null,"APF1616659","EDUCACIÓN ARTÍSTICA EN LA ESPECIALIDAD DE ARTE DRAMÁTICO"]
[null,"APF1616708","EDUCACIÓN ARTÍSTICA EN LA ESPECIALIDAD DE ARTES PLÁSTICAS"]
[null,"APF1616655","EDUCACIÓN ARTÍSTICA EN LA ESPECIALIDAD DE ARTES PLÁSTICAS Y VISUALES"]
[null,"APF1616702","EDUCACIÓN ARTÍSTICA EN LA ESPECIALIDAD DE ARTES PLÁSTICAS Y VISUALES"]
[null,"APF1616703","EDUCACIÓN ARTÍSTICA EN LA ESPECIALIDAD DE ARTES VISUALES"]
[null,"APF1616656","EDUCACIÓN ARTÍSTICA EN LA ESPECIALIDAD DE DANZA"]
[null,"APF1616709","EDUCACIÓN ARTÍSTICA EN LA ESPECIALIDAD DE DANZA FOLKLÓRICA"]
[null,"APF1616657","EDUCACIÓN ARTÍSTICA EN LA ESPECIALIDAD DE EDUCACIÓN MUSICAL"]
[null,"APF1616700","EDUCACIÓN ARTÍSTICA EN LA ESPECIALIDAD DE MÚSICA"]
[null,"APF1616707","EDUCACIÓN ARTÍSTICA EN LA ESPECIALIDAD DE TEATRO"]
[null,"APF1616711","EDUCACIÓN ARTÍSTICA EN LA ESPECIALIDAD EN ARTES VISUALES"]
[null,"APF1616712","EDUCACIÓN ARTÍSTICA EN LA ESPECIALIDAD EN DANZA"]
[null,"APF1616713","EDUCACIÓN ARTÍSTICA EN LA ESPECIALIDAD EN MÚSICA"]
[null,"APF1616714","EDUCACIÓN ARTÍSTICA EN LA ESPECIALIDAD EN TEATRO"]
[null,"APF1616660","EDUCACIÓN ARTÍSTICA EN LA ESPECIALIDAD MÚSICA"]
[null,"APF1616661","EDUCACIÓN ARTÍSTICA EN LA ESPECIALIDAD TEATRO"]
[null,"APF1616495","EDUCACIÓN ARTÍSTICA EN MÚSICA"]
[null,"APF1616496","EDUCACIÓN ARTÍSTICA EN TEATRO"]
[null,"APF1616716","EDUCACIÓN MUSICAL"]
[null,"APF1616665","EDUCACIÓN MUSICAL Y ARTES"]
[null,"APF1616717","FORMACIÓN ARTÍSTICA CON LA ESPECIALIDADE DE ARTES PLÁSTICAS"]
[null,"APF1616718","FORMACIÓN ARTÍSTICA CON LA ESPECIALIDADE DE MÚSICA"]
[null,"APF1616719","FORMACIÓN ARTÍSTICA EN LA ESPECIALIDAD EN DANZA CON MENCIÓN EN DANZA CLÁSICA, MODERNA O TRADICIONAL"]
[null,"APF1616720","FORMACIÓN ARTÍSTICA EN LA ESPECIALIDAD EN DIRECCIÓN MUSICAL CON MENCIÓN EN DIRECCIÓN CORAL ORQUESTAL O BANDA"]
[null,"APF1616721","FORMACIÓN ARTÍSTICA EN LA ESPECIALIDAD EN INTERPRETACIÓN INSTRUMENTAL CON MENCIÓN EN UN INSTRUMENTO"]
[null,"APF1616722","FORMACIÓN ARTÍSTICA EN LA ESPECIALIDAD EN MÚSICA CON MENCIÓN EN CANTO"]
[null,"APF1616723","FORMACIÓN ARTÍSTICA EN LA ESPECIALIDAD EN MÚSICA CON MENCIÓN EN COMPOSICIÓN MUSICAL"]
[null,"APF1616724","FORMACIÓN ARTÍSTICA EN LA ESPECIALIDAD EN MÚSICA CON MENCIÓN EN MUSICOLOGÍA"]
[null,"APF1616662","FORMACIÓN ARTÍSTICA EN LA ESPECIALIDAD TEATRO CON MENCIÓN EN ACTUACIÓN"]
[null,"APF1616663","FORMACIÓN ARTÍSTICA EN LA ESPECIALIDAD TEATRO CON MENCIÓN EN DISEÑO ESCENOGRÁFICO"]
[null,"APF1616725","FORMACIÓN DOCENTE EN LA ESPECIALIDAD EDUCACIÓN DANZA CON MENCIÓN EN DANZA CLÁSICA MODERNA O TRADICIONAL"]
[null,"APF1616727","FORMACIÓN DOCENTE EN LA ESPECIALIDAD EDUCACIÓN MUSICAL CON MENCIÓN EN UN INSTRUMENTO"]
[null,"APF1616726","FORMACIÓN DOCENTE EN LA ESPECIALIDAD EDUCACIÓN MUSICAL"]
[null,"APF2156527","INTERPRETACIÓN INSTRUMENTAL"]
[null,"APF2156528","INTERPRETACIÓN MUSICAL CANTO"]
[null,"APF2156728","INTERPRETACIÓN MUSICAL CON MENCIÓN EN ACORDEÓN"]
[null,"APF2156729","INTERPRETACIÓN MUSICAL CON MENCIÓN EN CANTO"]
[null,"APF2156730","INTERPRETACIÓN MUSICAL CON MENCIÓN EN CIOLÍN"]
[null,"APF2156731","INTERPRETACIÓN MUSICAL CON MENCIÓN EN CLARINETE"]
[null,"APF2156732","INTERPRETACIÓN MUSICAL CON MENCIÓN EN CONTRABAJO"]
[null,"APF2156733","INTERPRETACIÓN MUSICAL CON MENCIÓN EN CORNO"]
[null,"APF2156734","INTERPRETACIÓN MUSICAL CON MENCIÓN EN FAGOT"]
[null,"APF2156735","INTERPRETACIÓN MUSICAL CON MENCIÓN EN FLAUTA TRAVERSA"]
[null,"APF2156736","INTERPRETACIÓN MUSICAL CON MENCIÓN EN GUITARRA"]
[null,"APF2156737","INTERPRETACIÓN MUSICAL CON MENCIÓN EN INSTRUMENTOS NATIVOS"]
[null,"APF2156738","INTERPRETACIÓN MUSICAL CON MENCIÓN EN OBOE"]
[null,"APF2156739","INTERPRETACIÓN MUSICAL CON MENCIÓN EN PERCUSIÓN"]
[null,"APF2156740","INTERPRETACIÓN MUSICAL CON MENCIÓN EN PIANO"]
[null,"APF2156741","INTERPRETACIÓN MUSICAL CON MENCIÓN EN SAXOFÓN"]
[null,"APF2156742","INTERPRETACIÓN MUSICAL CON MENCIÓN EN TROMBÓN"]
[null,"APF2156743","INTERPRETACIÓN MUSICAL CON MENCIÓN EN TROMPETA"]
[null,"APF2156744","INTERPRETACIÓN MUSICAL CON MENCIÓN EN TUBA"]
[null,"APF2156745","INTERPRETACIÓN MUSICAL CON MENCIÓN EN VIOLA"]
[null,"APF2156746","INTERPRETACIÓN MUSICAL CON MENCIÓN EN VIOLONCHELLO"]
[null,"APF2156666","INTERPRETACIÓN MUSICAL"]
[null,"APF2156667","INTÉRPRETE EN DANZA CLÁSICA"]
[null,"APF2136747","MEDIOS AUDIOVISUALES"]
[null,"APF2156748","MÚSICA"]
[null,"APF2156751","MÚSICA EN LA ESPECIALIDAD DE EJECUCIÓN INSTRUMENTAL CON MENCIÓN EN CANTO"]
[null,"APF2156752","MÚSICA EN LA ESPECIALIDAD DE EJECUCIÓN INSTRUMENTAL CON MENCIÓN EN COMPOSICIÓN"]
[null,"APF2156753","MÚSICA EN LA ESPECIALIDAD DE EJECUCIÓN INSTRUMENTAL CON MENCIÓN EN DIRECCIÓN CORAL"]
[null,"APF2156754","MÚSICA EN LA ESPECIALIDAD DE EJECUCIÓN INSTRUMENTAL CON MENCIÓN EN DIRECCIÓN DE BANDA"]
[null,"APF2156131","MÚSICA"]
[null,"APF2156749","MÚSICA Y ARTES VISUALES DEL ÁREA DE DOCENCIA"]
[null,"APF2156750","MÚSICA Y TÉCNOLOGÍAS DE SONIDO, ESPECIALIDAD EN PRODUCCIÓN MUSICAL"]
[null,"APF2156755","MÚSICO PROFESIONAL EN LA ESPECIALIDAD DE INTERPRETACIÓN MUSICAL CANTO"]
[null,"APF2156756","MÚSICO PROFESIONAL EN LA ESPECIALIDAD DE INTERPRETACIÓN MUSICAL CON MENCIÓN EN ARPA"]
[null,"APF2156757","MÚSICO PROFESIONAL EN LA ESPECIALIDAD DE INTERPRETACIÓN MUSICAL CON MENCIÓN EN CHARANGO"]
[null,"APF2156758","MÚSICO PROFESIONAL EN LA ESPECIALIDAD DE INTERPRETACIÓN MUSICAL CON MENCIÓN EN CLARINETE"]
[null,"APF2156759","MÚSICO PROFESIONAL EN LA ESPECIALIDAD DE INTERPRETACIÓN MUSICAL CON MENCIÓN EN CONTRABAJO"]
[null,"APF2156760","MÚSICO PROFESIONAL EN LA ESPECIALIDAD DE INTERPRETACIÓN MUSICAL CON MENCIÓN EN CORNO"]
[null,"APF2156761","MÚSICO PROFESIONAL EN LA ESPECIALIDAD DE INTERPRETACIÓN MUSICAL CON MENCIÓN EN EUFONIO"]
[null,"APF2156762","MÚSICO PROFESIONAL EN LA ESPECIALIDAD DE INTERPRETACIÓN MUSICAL CON MENCIÓN EN FAGOT"]
[null,"APF2156763","MÚSICO PROFESIONAL EN LA ESPECIALIDAD DE INTERPRETACIÓN MUSICAL CON MENCIÓN EN FLAUTA DULCE"]
[null,"APF2156764","MÚSICO PROFESIONAL EN LA ESPECIALIDAD DE INTERPRETACIÓN MUSICAL CON MENCIÓN EN FLAUTA TRAVERSA"]
[null,"APF2156765","MÚSICO PROFESIONAL EN LA ESPECIALIDAD DE INTERPRETACIÓN MUSICAL CON MENCIÓN EN GUITARRA"]
[null,"APF2156766","MÚSICO PROFESIONAL EN LA ESPECIALIDAD DE INTERPRETACIÓN MUSICAL CON MENCIÓN EN OBOE"]
[null,"APF2156767","MÚSICO PROFESIONAL EN LA ESPECIALIDAD DE INTERPRETACIÓN MUSICAL CON MENCIÓN EN ORGANO"]
[null,"APF2156768","MÚSICO PROFESIONAL EN LA ESPECIALIDAD DE INTERPRETACIÓN MUSICAL CON MENCIÓN EN PERCUSIÓN"]
[null,"APF2156769","MÚSICO PROFESIONAL EN LA ESPECIALIDAD DE INTERPRETACIÓN MUSICAL CON MENCIÓN EN PIANO"]
[null,"APF2156770","MÚSICO PROFESIONAL EN LA ESPECIALIDAD DE INTERPRETACIÓN MUSICAL CON MENCIÓN EN QUENA"]
[null,"APF2156771","MÚSICO PROFESIONAL EN LA ESPECIALIDAD DE INTERPRETACIÓN MUSICAL CON MENCIÓN EN SAXOFÓN"]
[null,"APF2156772","MÚSICO PROFESIONAL EN LA ESPECIALIDAD DE INTERPRETACIÓN MUSICAL CON MENCIÓN EN TROMBÓN"]
[null,"APF2156773","MÚSICO PROFESIONAL EN LA ESPECIALIDAD DE INTERPRETACIÓN MUSICAL CON MENCIÓN EN TROMPETA"]
[null,"APF2156774","MÚSICO PROFESIONAL EN LA ESPECIALIDAD DE INTERPRETACIÓN MUSICAL CON MENCIÓN EN TUBA"]
[null,"APF2156775","MÚSICO PROFESIONAL EN LA ESPECIALIDAD DE INTERPRETACIÓN MUSICAL CON MENCIÓN EN VIOLA"]
[null,"APF2156776","MÚSICO PROFESIONAL EN LA ESPECIALIDAD DE INTERPRETACIÓN MUSICAL CON MENCIÓN EN VIOLÍN"]
[null,"APF2156777","MÚSICO PROFESIONAL EN LA ESPECIALIDAD DE INTERPRETACIÓN MUSICAL CON MENCIÓN EN VIOLONCHELLO"]
[null,"APF2156778","MÚSICO PROFESIONAL EN LA ESPECIALIDAD DE INTERPRETACIÓN MUSICAL DIRECCIÓN MUSICAL"]
[null,"APFAG99999","OTROS"]
[null,"APF1616779","PROFESOR DE EDUCACIÓN ARTÍSTICA EN LA ESPECIALIDAD ARTES VISUALES"]
[null,"APF1616780","PROFESOR DE EDUCACIÓN ARTÍSTICA EN LA ESPECIALIDAD DANZA"]
[null,"APF1616781","PROFESOR DE EDUCACIÓN ARTÍSTICA EN LA ESPECIALIDAD MÚSICA"]
[null,"APF1616782","PROFESOR DE EDUCACIÓN ARTÍSTICA EN LA ESPECIALIDAD TEATRO"]
[null,"APF2136783","PROGRAMA ACADÉMICO DE ARTES PLÁSTICAS Y VISUALES EN LA ESPECIALIDAD DE ESCULTURA"]
[null,"APF2136784","PROGRAMA ACADÉMICO DE ARTES PLÁSTICAS Y VISUALES EN LA ESPECIALIDAD DE GRABADO"]
[null,"APF2136785","PROGRAMA ACADÉMICO DE ARTES PLÁSTICAS Y VISUALES EN LA ESPECIALIDAD DE PINTURA"]
[null,"APF2136786","PROGRAMA ACADÉMICO DE ARTES PLÁSTICAS Y VISUALES EN LA ESPECIALIDAD DE RESTAURACIÓN Y CONSERVACIÓN"]
[null,"APF2156129","TEATRO"]